Workbook

Sheet Main
B10: 2021-02-26
B12: Sheet No. | C12: Template Name | D12: Summary
B13: 1 | C13: Future Intra | D13: For Intraday trading in F&O segment
B14: 2 | C14: Cash Intra | D14: For Intraday trading in cash market segment
B15: 3 | C15: Mid-cap Intra | D15: For Intraday trading in Mid-cap stocks
B16: 4 | C16: Bulk Deals | D16: Reveals Bulk Deals carried on NSE & BSE
B17: 5 | C17: Call Tracker
K27: `

Sheet Future Intra
M5: Back to Main Page
A6: FOR INTRA DAY TRADING | L6: =Main!B10 -> 2021-02-26
A9: Sr.no | B9: Sector | C9: Scrip | D9: Expiry Date | E9: CLOSE RATE | F9: Pivot Point | G9: Supports | J9: Resistances
B10: Sector | E10: Point | F10: Point | G10: S1 | H10: S2 | I10: S3 | J10: R1 | K10: R2 | L10: R3 | M10: HIGH | N10: LOW | O10: OI | P10: % Change in OI
A11: 1 | B11: Index | C11: BANKNIFTY | D11: 2021-03-25 | E11: 36719.70 | F11: 36893.90 | G11: 36462.80 | H11: 36205.90 | I11: 35774.80 | J11: 37150.80 | K11: 37581.90 | L11: 37838.80 | M11: 37325 | N11: 36637 | O11: 1402325 | P11: -30.02%
A12: 2 | B12: Index | C12: NIFTY | D12: 2021-03-25 | E12: 15169.50 | F12: 15178.42 | G12: 15066.83 | H12: 14964.17 | I12: 14852.58 | J12: 15281.08 | K12: 15392.67 | L12: 15495.33 | M12: 15290 | N12: 15075.75 | O12: 10450950 | P12: -17.18%
A13: 3 | B13: Index | C13: FINNIFTY | D13: 2021-03-25 | E13: 17005.65 | F13: 17121.60 | G13: 16864.65 | H13: 16723.65 | I13: 16466.70 | J13: 17262.60 | K13: 17519.55 | L13: 17660.55 | M13: 17378.55 | N13: 16980.6 | O13: 12120 | P13: -54.91%
A14: 4 | B14: Others | C14: AARTIIND | D14: 2021-03-25 | E14: 1243.65 | F14: 1240.33 | G14: 1232.32 | H14: 1220.98 | I14: 1212.97 | J14: 1251.67 | K14: 1259.68 | L14: 1271.02 | M14: 1248.35 | N14: 1229 | O14: 389725 | P14: -10.62%
A15: 5 | B15: Cement | C15: ACC | D15: 2021-03-25 | E15: 1811.70 | F15: 1790.37 | G15: 1760.13 | H15: 1708.57 | I15: 1678.33 | J15: 1841.93 | K15: 1872.17 | L15: 1923.73 | M15: 1820.6 | N15: 1738.8 | O15: 2745500 | P15: -12.52%
A16: 6 | B16: Others | C16: ADANIENT | D16: 2021-03-25 | E16: 849.55 | F16: 843.13 | G16: 818.47 | H16: 787.38 | I16: 762.72 | J16: 874.22 | K16: 898.88 | L16: 929.97 | M16: 867.8 | N16: 812.05 | O16: 17882000 | P16: -4.00%
A17: 7 | B17: Others | C17: ADANIPORTS | D17: 2021-03-25 | E17: 708.50 | F17: 698.65 | G17: 681.30 | H17: 654.10 | I17: 636.75 | J17: 725.85 | K17: 743.20 | L17: 770.40 | M17: 716 | N17: 671.45 | O17: 53875000 | P17: -9.95%
A18: 8 | B18: Automobile | C18: AMARAJABAT | D18: 2021-03-25 | E18: 891.10 | F18: 886.75 | G18: 878.15 | H18: 865.20 | I18: 856.60 | J18: 899.70 | K18: 908.30 | L18: 921.25 | M18: 895.35 | N18: 873.8 | O18: 2906000 | P18: -11.29%
A19: 9 | B19: Cement | C19: AMBUJACEM | D19: 2021-03-25 | E19: 280.10 | F19: 278.02 | G19: 274.08 | H19: 268.07 | I19: 264.13 | J19: 284.03 | K19: 287.97 | L19: 293.98 | M19: 281.95 | N19: 272 | O19: 14124000 | P19: -28.72%
A20: 10 | B20: Others | C20: APOLLOHOSP | D20: 2021-03-25 | E20: 3097.50 | F20: 3097.02 | G20: 3062.38 | H20: 3027.27 | I20: 2992.63 | J20: 3132.13 | K20: 3166.77 | L20: 3201.88 | M20: 3131.65 | N20: 3061.9 | O20: 1330000 | P20: -22.63%
A21: 11 | B21: Automobile | C21: APOLLOTYRE | D21: 2021-03-25 | E21: 242.10 | F21: 242.48 | G21: 240.07 | H21: 238.03 | I21: 235.62 | J21: 244.52 | K21: 246.93 | L21: 248.97 | M21: 244.9 | N21: 240.45 | O21: 14395000 | P21: -14.06%
A22: 12 | B22: Automobile | C22: ASHOKLEY | D22: 2021-03-25 | E22: 132.05 | F22: 130.87 | G22: 129.18 | H22: 126.32 | I22: 124.63 | J22: 133.73 | K22: 135.42 | L22: 138.28 | M22: 132.55 | N22: 128 | O22: 37989000 | P22: -9.46%
A23: 13 | B23: FMCG | C23: ASIANPAINT | D23: 2021-03-25 | E23: 2390.65 | F23: 2381.20 | G23: 2362.40 | H23: 2334.15 | I23: 2315.35 | J23: 2409.45 | K23: 2428.25 | L23: 2456.50 | M23: 2400 | N23: 2352.95 | O23: 6532500 | P23: 0.75%
A24: 14 | B24: Pharma | C24: AUROPHARMA | D24: 2021-03-25 | E24: 867.05 | F24: 869.87 | G24: 859.33 | H24: 851.62 | I24: 841.08 | J24: 877.58 | K24: 888.12 | L24: 895.83 | M24: 880.4 | N24: 862.15 | O24: 9348950 | P24: -4.06%
A25: 15 | B25: Banking | C25: AXISBANK | D25: 2021-03-25 | E25: 774.15 | F25: 775.47 | G25: 763.73 | H25: 753.32 | I25: 741.58 | J25: 785.88 | K25: 797.62 | L25: 808.03 | M25: 787.2 | N25: 765.05 | O25: 36848400 | P25: -18.43%
A26: 16 | B26: Automobile | C26: BAJAJ-AUTO | D26: 2021-03-25 | E26: 3964.70 | F26: 3961.83 | G26: 3928.72 | H26: 3892.73 | I26: 3859.62 | J26: 3997.82 | K26: 4030.93 | L26: 4066.92 | M26: 3994.95 | N26: 3925.85 | O26: 1581500 | P26: -13.92%
A27: 17 | B27: Finance | C27: BAJAJFINSV | D27: 2021-03-25 | E27: 10326.70 | F27: 10319.52 | G27: 10189.08 | H27: 10051.47 | I27: 9921.03 | J27: 10457.13 | K27: 10587.57 | L27: 10725.18 | M27: 10449.95 | N27: 10181.9 | O27: 545125 | P27: -11.15%
A28: 18 | B28: Finance | C28: BAJFINANCE | D28: 2021-03-25 | E28: 5565.90 | F28: 5581.15 | G28: 5524.30 | H28: 5482.70 | I28: 5425.85 | J28: 5622.75 | K28: 5679.60 | L28: 5721.20 | M28: 5638 | N28: 5539.55 | O28: 3783750 | P28: -10.41%
A29: 19 | B29: Automobile | C29: BALKRISIND | D29: 2021-03-25 | E29: 1587.35 | F29: 1595.38 | G29: 1574.87 | H29: 1562.38 | I29: 1541.87 | J29: 1607.87 | K29: 1628.38 | L29: 1640.87 | M29: 1615.9 | N29: 1582.9 | O29: 2484400 | P29: -12.83%
A30: 20 | B30: Banking | C30: BANDHANBNK | D30: 2021-03-25 | E30: 344.15 | F30: 343.63 | G30: 338.92 | H30: 333.68 | I30: 328.97 | J30: 348.87 | K30: 353.58 | L30: 358.82 | M30: 348.35 | N30: 338.4 | O30: 20395800 | P30: -15.60%
A31: 21 | B31: Banking | C31: BANKBARODA | D31: 2021-03-25 | E31: 86.70 | F31: 86.23 | G31: 85.27 | H31: 83.83 | I31: 82.87 | J31: 87.67 | K31: 88.63 | L31: 90.07 | M31: 87.2 | N31: 84.8 | O31: 87995700 | P31: -15.11%
A32: 22 | B32: FMCG | C32: BATAINDIA | D32: 2021-03-25 | E32: 1488.70 | F32: 1489.35 | G32: 1476.50 | H32: 1464.30 | I32: 1451.45 | J32: 1501.55 | K32: 1514.40 | L32: 1526.60 | M32: 1502.2 | N32: 1477.15 | O32: 1615350 | P32: -13.59%
A33: 23 | B33: Capital_Goods | C33: BEL | D33: 2021-03-25 | E33: 142.15 | F33: 140.92 | G33: 138.38 | H33: 134.62 | I33: 132.08 | J33: 144.68 | K33: 147.22 | L33: 150.98 | M33: 143.45 | N33: 137.15 | O33: 29199200 | P33: 3.14%
A34: 24 | B34: FMCG | C34: BERGEPAINT | D34: 2021-03-25 | E34: 728.15 | F34: 726.40 | G34: 721.95 | H34: 715.75 | I34: 711.30 | J34: 732.60 | K34: 737.05 | L34: 743.25 | M34: 730.85 | N34: 720.2 | O34: 3201000 | P34: -9.06%
A35: 25 | B35: Automobile | C35: BHARATFORG | D35: 2021-03-25 | E35: 623.75 | F35: 618.88 | G35: 610.47 | H35: 597.18 | I35: 588.77 | J35: 632.17 | K35: 640.58 | L35: 653.87 | M35: 627.3 | N35: 605.6 | O35: 6630000 | P35: -6.02%
A36: 26 | B36: Telecom | C36: BHARTIARTL | D36: 2021-03-25 | E36: 580.70 | F36: 581.75 | G36: 577.15 | H36: 573.60 | I36: 569.00 | J36: 585.30 | K36: 589.90 | L36: 593.45 | M36: 586.35 | N36: 578.2 | O36: 83124708 | P36: -7.46%
A37: 27 | B37: Capital_Goods | C37: BHEL | D37: 2021-03-25 | E37: 47.50 | F37: 46.57 | G37: 44.58 | H37: 41.67 | I37: 39.68 | J37: 49.48 | K37: 51.47 | L37: 54.38 | M37: 48.55 | N37: 43.65 | O37: 124467000 | P37: 19.96%
A38: 28 | B38: Pharma | C38: BIOCON | D38: 2021-03-25 | E38: 400.40 | F38: 397.77 | G38: 393.23 | H38: 386.07 | I38: 381.53 | J38: 404.93 | K38: 409.47 | L38: 416.63 | M38: 402.3 | N38: 390.6 | O38: 14697000 | P38: -10.42%
A39: 29 | B39: Automobile | C39: BOSCHLTD | D39: 2021-03-25 | E39: 15169.05 | F39: 15144.98 | G39: 14976.07 | H39: 14783.08 | I39: 14614.17 | J39: 15337.97 | K39: 15506.88 | L39: 15699.87 | M39: 15313.9 | N39: 14952 | O39: 98650 | P39: 0.71%
A40: 30 | B40: Oil_Gas | C40: BPCL | D40: 2021-03-25 | E40: 463.15 | F40: 458.63 | G40: 447.37 | H40: 431.58 | I40: 420.32 | J40: 474.42 | K40: 485.68 | L40: 501.47 | M40: 469.9 | N40: 442.85 | O40: 21110400 | P40: -13.61%
A41: 31 | B41: FMCG | C41: BRITANNIA | D41: 2021-03-25 | E41: 3413.80 | F41: 3409.60 | G41: 3389.20 | H41: 3364.60 | I41: 3344.20 | J41: 3434.20 | K41: 3454.60 | L41: 3479.20 | M41: 3430 | N41: 3385 | O41: 2537600 | P41: -13.38%
A42: 32 | B42: Pharma | C42: CADILAHC | D42: 2021-03-25 | E42: 439.75 | F42: 440.70 | G42: 435.45 | H42: 431.15 | I42: 425.90 | J42: 445.00 | K42: 450.25 | L42: 454.55 | M42: 445.95 | N42: 436.4 | O42: 10588600 | P42: -8.50%
A43: 33 | B43: Banking | C43: CANBK | D43: 2021-03-25 | E43: 164.35 | F43: 164.75 | G43: 162.35 | H43: 160.35 | I43: 157.95 | J43: 166.75 | K43: 169.15 | L43: 171.15 | M43: 167.15 | N43: 162.75 | O43: 53600400 | P43: -4.70%
A44: 34 | B44: Finance | C44: CHOLAFIN | D44: 2021-03-25 | E44: 525.65 | F44: 524.90 | G44: 510.70 | H44: 495.75 | I44: 481.55 | J44: 539.85 | K44: 554.05 | L44: 569.00 | M44: 539.1 | N44: 509.95 | O44: 5110000 | P44: -29.03%
A45: 35 | B45: Pharma | C45: CIPLA | D45: 2021-03-25 | E45: 811.45 | F45: 807.08 | G45: 797.27 | H45: 783.08 | I45: 773.27 | J45: 821.27 | K45: 831.08 | L45: 845.27 | M45: 816.9 | N45: 792.9 | O45: 11404900 | P45: -4.77%
A46: 36 | B46: Others | C46: COALINDIA | D46: 2021-03-25 | E46: 152.50 | F46: 149.52 | G46: 144.98 | H46: 137.47 | I46: 132.93 | J46: 157.03 | K46: 161.57 | L46: 169.08 | M46: 154.05 | N46: 142 | O46: 41164200 | P46: -20.92%
A47: 37 | B47: Technology | C47: COFORGE | D47: 2021-03-25 | E47: 2524.05 | F47: 2532.35 | G47: 2499.50 | H47: 2474.95 | I47: 2442.10 | J47: 2556.90 | K47: 2589.75 | L47: 2614.30 | M47: 2565.2 | N47: 2507.8 | O47: 317250 | P47: -18.81%
A48: 38 | B48: FMCG | C48: COLPAL | D48: 2021-03-25 | E48: 1576.30 | F48: 1570.25 | G48: 1560.05 | H48: 1543.80 | I48: 1533.60 | J48: 1586.50 | K48: 1596.70 | L48: 1612.95 | M48: 1580.45 | N48: 1554 | O48: 3030300 | P48: -4.29%
A49: 39 | B49: Others | C49: CONCOR | D49: 2021-03-25 | E49: 579.25 | F49: 584.17 | G49: 569.58 | H49: 559.92 | I49: 545.33 | J49: 593.83 | K49: 608.42 | L49: 618.08 | M49: 598.75 | N49: 574.5 | O49: 6001920 | P49: -8.81%
A50: 40 | B50: Capital_Goods | C50: CUMMINSIND | D50: 2021-03-25 | E50: 809.25 | F50: 808.98 | G50: 793.77 | H50: 778.28 | I50: 763.07 | J50: 824.47 | K50: 839.68 | L50: 855.17 | M50: 824.2 | N50: 793.5 | O50: 1450800 | P50: -22.30%
A51: 41 | B51: FMCG | C51: DABUR | D51: 2021-03-25 | E51: 511.00 | F51: 510.00 | G51: 508.00 | H51: 505.00 | I51: 503.00 | J51: 513.00 | K51: 515.00 | L51: 518.00 | M51: 512 | N51: 507 | O51: 9855000 | P51: -16.58%
A52: 42 | B52: Pharma | C52: DIVISLAB | D52: 2021-03-25 | E52: 3464.55 | F52: 3486.72 | G52: 3437.83 | H52: 3411.12 | I52: 3362.23 | J52: 3513.43 | K52: 3562.32 | L52: 3589.03 | M52: 3535.6 | N52: 3460 | O52: 3045000 | P52: -0.98%
A53: 43 | B53: Realty | C53: DLF | D53: 2021-03-25 | E53: 315.90 | F53: 317.02 | G53: 313.38 | H53: 310.87 | I53: 307.23 | J53: 319.53 | K53: 323.17 | L53: 325.68 | M53: 320.65 | N53: 314.5 | O53: 24548700 | P53: -14.62%
A54: 44 | B54: Pharma | C54: DRREDDY | D54: 2021-03-25 | E54: 4513.00 | F54: 4520.48 | G54: 4422.52 | H54: 4332.03 | I54: 4234.07 | J54: 4610.97 | K54: 4708.93 | L54: 4799.42 | M54: 4618.45 | N54: 4430 | O54: 3230500 | P54: -6.13%
A55: 45 | B55: Automobile | C55: EICHERMOT | D55: 2021-03-25 | E55: 2564.15 | F55: 2555.63 | G55: 2537.62 | H55: 2511.08 | I55: 2493.07 | J55: 2582.17 | K55: 2600.18 | L55: 2626.72 | M55: 2573.65 | N55: 2529.1 | O55: 2731400 | P55: -8.69%
A56: 46 | B56: Automobile | C56: ESCORTS | D56: 2021-03-25 | E56: 1315.10 | F56: 1317.00 | G56: 1302.10 | H56: 1289.10 | I56: 1274.20 | J56: 1330.00 | K56: 1344.90 | L56: 1357.90 | M56: 1331.9 | N56: 1304 | O56: 2786300 | P56: -5.70%
A57: 47 | B57: Automobile | C57: EXIDEIND | D57: 2021-03-25 | E57: 208.80 | F57: 208.15 | G57: 205.55 | H57: 202.30 | I57: 199.70 | J57: 211.40 | K57: 214.00 | L57: 217.25 | M57: 210.75 | N57: 204.9 | O57: 12481200 | P57: -3.45%
A58: 48 | B58: Banking | C58: FEDERALBNK | D58: 2021-03-25 | E58: 86.90 | F58: 87.22 | G58: 85.78 | H58: 84.67 | I58: 83.23 | J58: 88.33 | K58: 89.77 | L58: 90.88 | M58: 88.65 | N58: 86.1 | O58: 82170000 | P58: -4.33%
A59: 49 | B59: Oil_Gas | C59: GAIL | D59: 2021-03-25 | E59: 151.50 | F59: 150.68 | G59: 147.62 | H59: 143.73 | I59: 140.67 | J59: 154.57 | K59: 157.63 | L59: 161.52 | M59: 153.75 | N59: 146.8 | O59: 29957100 | P59: -4.97%
A60: 50 | B60: Pharma | C60: GLENMARK | D60: 2021-03-25 | E60: 476.05 | F60: 475.47 | G60: 469.58 | H60: 463.12 | I60: 457.23 | J60: 481.93 | K60: 487.82 | L60: 494.28 | M60: 481.35 | N60: 469 | O60: 5862700 | P60: -3.97%
A61: 51 | B61: Infrastructure | C61: GMRINFRA | D61: 2021-03-25 | E61: 27.00 | F61: 26.78 | G61: 26.12 | H61: 25.23 | I61: 24.57 | J61: 27.67 | K61: 28.33 | L61: 29.22 | M61: 27.45 | N61: 25.9 | O61: 147712500 | P61: -17.48%
A62: 52 | B62: FMCG | C62: GODREJCP | D62: 2021-03-25 | E62: 700.95 | F62: 697.40 | G62: 691.55 | H62: 682.15 | I62: 676.30 | J62: 706.80 | K62: 712.65 | L62: 722.05 | M62: 703.25 | N62: 688 | O62: 4681000 | P62: -0.06%
A63: 53 | B63: Others | C63: GODREJPROP | D63: 2021-03-25 | E63: 1549.50 | F63: 1537.47 | G63: 1513.03 | H63: 1476.57 | I63: 1452.13 | J63: 1573.93 | K63: 1598.37 | L63: 1634.83 | M63: 1561.9 | N63: 1501 | O63: 1833650 | P63: -13.99%
A64: 54 | B64: Cement | C64: GRASIM | D64: 2021-03-25 | E64: 1276.85 | F64: 1276.90 | G64: 1258.90 | H64: 1240.95 | I64: 1222.95 | J64: 1294.85 | K64: 1312.85 | L64: 1330.80 | M64: 1294.9 | N64: 1258.95 | O64: 16153800 | P64: -6.17%
A65: 55 | B65: Others | C65: HAVELLS | D65: 2021-03-25 | E65: 1180.10 | F65: 1178.00 | G65: 1158.00 | H65: 1135.90 | I65: 1115.90 | J65: 1200.10 | K65: 1220.10 | L65: 1242.20 | M65: 1198 | N65: 1155.9 | O65: 3232000 | P65: -8.44%
A66: 56 | B66: Technology | C66: HCLTECH | D66: 2021-03-25 | E66: 932.55 | F66: 931.17 | G66: 925.38 | H66: 918.22 | I66: 912.43 | J66: 938.33 | K66: 944.12 | L66: 951.28 | M66: 936.95 | N66: 924 | O66: 18306400 | P66: -12.75%
A67: 57 | B67: Finance | C67: HDFC | D67: 2021-03-25 | E67: 2697.80 | F67: 2713.88 | G67: 2674.52 | H67: 2651.23 | I67: 2611.87 | J67: 2737.17 | K67: 2776.53 | L67: 2799.82 | M67: 2753.25 | N67: 2690.6 | O67: 15518700 | P67: -15.52%
A68: 58 | B68: Finance | C68: HDFCAMC | D68: 2021-03-25 | E68: 2965.65 | F68: 2960.27 | G68: 2945.38 | H68: 2925.12 | I68: 2910.23 | J68: 2980.53 | K68: 2995.42 | L68: 3015.68 | M68: 2975.15 | N68: 2940 | O68: 539200 | P68: -5.17%
A69: 59 | B69: Banking | C69: HDFCBANK | D69: 2021-03-25 | E69: 1611.90 | F69: 1619.17 | G69: 1601.33 | H69: 1590.77 | I69: 1572.93 | J69: 1629.73 | K69: 1647.57 | L69: 1658.13 | M69: 1637 | N69: 1608.6 | O69: 21406550 | P69: -16.11%
A70: 60 | B70: Finance | C70: HDFCLIFE | D70: 2021-03-25 | E70: 738.10 | F70: 735.88 | G70: 723.17 | H70: 708.23 | I70: 695.52 | J70: 750.82 | K70: 763.53 | L70: 778.47 | M70: 748.6 | N70: 720.95 | O70: 6681400 | P70: 6.51%
A71: 61 | B71: Automobile | C71: HEROMOTOCO | D71: 2021-03-25 | E71: 3413.80 | F71: 3412.15 | G71: 3376.40 | H71: 3339.00 | I71: 3303.25 | J71: 3449.55 | K71: 3485.30 | L71: 3522.70 | M71: 3447.9 | N71: 3374.75 | O71: 3440700 | P71: -4.82%
A72: 62 | B72: Metals | C72: HINDALCO | D72: 2021-03-25 | E72: 350.75 | F72: 347.33 | G72: 341.42 | H72: 332.08 | I72: 326.17 | J72: 356.67 | K72: 362.58 | L72: 371.92 | M72: 353.25 | N72: 338 | O72: 23912300 | P72: -32.09%
A73: 63 | B73: Oil_Gas | C73: HINDPETRO | D73: 2021-03-25 | E73: 252.95 | F73: 252.65 | G73: 246.30 | H73: 239.65 | I73: 233.30 | J73: 259.30 | K73: 265.65 | L73: 272.30 | M73: 259 | N73: 246 | O73: 35953200 | P73: -4.87%
A74: 64 | B74: FMCG | C74: HINDUNILVR | D74: 2021-03-25 | E74: 2177.85 | F74: 2181.50 | G74: 2169.15 | H74: 2160.45 | I74: 2148.10 | J74: 2190.20 | K74: 2202.55 | L74: 2211.25 | M74: 2193.85 | N74: 2172.8 | O74: 8536200 | P74: -4.46%
A75: 65 | B75: Finance | C75: IBULHSGFIN | D75: 2021-03-25 | E75: 227.30 | F75: 225.53 | G75: 221.92 | H75: 216.53 | I75: 212.92 | J75: 230.92 | K75: 234.53 | L75: 239.92 | M75: 229.15 | N75: 220.15 | O75: 34310800 | P75: -0.91%
A76: 66 | B76: Banking | C76: ICICIBANK | D76: 2021-03-25 | E76: 632.40 | F76: 638.33 | G76: 624.62 | H76: 616.83 | I76: 603.12 | J76: 646.12 | K76: 659.83 | L76: 667.62 | M76: 652.05 | N76: 630.55 | O76: 107536000 | P76: -5.67%
A77: 67 | B77: Finance | C77: ICICIGI | D77: 2021-03-25 | E77: 1490.05 | F77: 1497.02 | G77: 1473.53 | H77: 1457.02 | I77: 1433.53 | J77: 1513.53 | K77: 1537.02 | L77: 1553.53 | M77: 1520.5 | N77: 1480.5 | O77: 775200 | P77: -4.05%
A78: 68 | B78: Finance | C78: ICICIPRULI | D78: 2021-03-25 | E78: 480.90 | F78: 484.78 | G78: 474.32 | H78: 467.73 | I78: 457.27 | J78: 491.37 | K78: 501.83 | L78: 508.42 | M78: 495.25 | N78: 478.2 | O78: 6993000 | P78: -25.26%
A79: 69 | B79: Telecom | C79: IDEA | D79: 2021-03-25 | E79: 11.75 | F79: 11.75 | G79: 11.55 | H79: 11.35 | I79: 11.15 | J79: 11.95 | K79: 12.15 | L79: 12.35 | M79: 11.95 | N79: 11.55 | O79: 848050000 | P79: -17.35%
A80: 70 | B80: Banking | C80: IDFCFIRSTB | D80: 2021-03-25 | E80: 64.10 | F80: 64.13 | G80: 63.37 | H80: 62.63 | I80: 61.87 | J80: 64.87 | K80: 65.63 | L80: 66.37 | M80: 64.9 | N80: 63.4 | O80: 135793000 | P80: -10.33%
A81: 71 | B81: Oil_Gas | C81: IGL | D81: 2021-03-25 | E81: 515.25 | F81: 514.73 | G81: 510.17 | H81: 505.08 | I81: 500.52 | J81: 519.82 | K81: 524.38 | L81: 529.47 | M81: 519.3 | N81: 509.65 | O81: 6796625 | P81: -5.81%
A82: 72 | B82: Others | C82: INDIGO | D82: 2021-03-25 | E82: 1666.70 | F82: 1657.23 | G82: 1634.47 | H82: 1602.23 | I82: 1579.47 | J82: 1689.47 | K82: 1712.23 | L82: 1744.47 | M82: 1680 | N82: 1625 | O82: 3140000 | P82: -1.13%
A83: 73 | B83: Banking | C83: INDUSINDBK | D83: 2021-03-25 | E83: 1117.30 | F83: 1109.92 | G83: 1092.28 | H83: 1067.27 | I83: 1049.63 | J83: 1134.93 | K83: 1152.57 | L83: 1177.58 | M83: 1127.55 | N83: 1084.9 | O83: 22734900 | P83: -2.18%
A84: 74 | B84: Telecom | C84: INDUSTOWER | D84: 2021-03-25 | E84: 270.55 | F84: 273.22 | G84: 264.98 | H84: 259.42 | I84: 251.18 | J84: 278.78 | K84: 287.02 | L84: 292.58 | M84: 281.45 | N84: 267.65 | O84: 10060400 | P84: -21.62%
A85: 75 | B85: Technology | C85: INFY | D85: 2021-03-25 | E85: 1283.35 | F85: 1290.12 | G85: 1274.23 | H85: 1265.12 | I85: 1249.23 | J85: 1299.23 | K85: 1315.12 | L85: 1324.23 | M85: 1306 | N85: 1281 | O85: 32199600 | P85: -9.67%
A86: 76 | B86: Oil_Gas | C86: IOC | D86: 2021-03-25 | E86: 101.65 | F86: 101.23 | G86: 99.82 | H86: 97.98 | I86: 96.57 | J86: 103.07 | K86: 104.48 | L86: 106.32 | M86: 102.65 | N86: 99.4 | O86: 71571500 | P86: -2.48%
A87: 77 | B87: FMCG | C87: ITC | D87: 2021-03-25 | E87: 210.45 | F87: 210.83 | G87: 209.57 | H87: 208.68 | I87: 207.42 | J87: 211.72 | K87: 212.98 | L87: 213.87 | M87: 212.1 | N87: 209.95 | O87: 135692800 | P87: -6.34%
A88: 78 | B88: Metals | C88: JINDALSTEL | D88: 2021-03-25 | E88: 347.25 | F88: 345.80 | G88: 342.10 | H88: 336.95 | I88: 333.25 | J88: 350.95 | K88: 354.65 | L88: 359.80 | M88: 349.5 | N88: 340.65 | O88: 22580000 | P88: -7.17%
A89: 79 | B89: Metals | C89: JSWSTEEL | D89: 2021-03-25 | E89: 424.40 | F89: 421.57 | G89: 414.98 | H89: 405.57 | I89: 398.98 | J89: 430.98 | K89: 437.57 | L89: 446.98 | M89: 428.15 | N89: 412.15 | O89: 29907900 | P89: -5.40%
A90: 80 | B90: Others | C90: JUBLFOOD | D90: 2021-03-25 | E90: 3073.65 | F90: 3076.72 | G90: 3032.93 | H90: 2992.22 | I90: 2948.43 | J90: 3117.43 | K90: 3161.22 | L90: 3201.93 | M90: 3120.5 | N90: 3036 | O90: 1373500 | P90: -12.77%
A91: 81 | B91: Banking | C91: KOTAKBANK | D91: 2021-03-25 | E91: 1906.80 | F91: 1927.17 | G91: 1880.18 | H91: 1853.57 | I91: 1806.58 | J91: 1953.78 | K91: 2000.77 | L91: 2027.38 | M91: 1974.15 | N91: 1900.55 | O91: 12695200 | P91: -12.07%
A92: 82 | B92: Finance | C92: L&TFH | D92: 2021-03-25 | E92: 106.80 | F92: 105.77 | G92: 104.03 | H92: 101.27 | I92: 99.53 | J92: 108.53 | K92: 110.27 | L92: 113.03 | M92: 107.5 | N92: 103 | O92: 35910176 | P92: -25.00%
A93: 83 | B93: Others | C93: LALPATHLAB | D93: 2021-03-25 | E93: 2323.50 | F93: 2322.93 | G93: 2299.92 | H93: 2276.33 | I93: 2253.32 | J93: 2346.52 | K93: 2369.53 | L93: 2393.12 | M93: 2345.95 | N93: 2299.35 | O93: 148000 | P93: -6.03%
A94: 84 | B94: Finance | C94: LICHSGFIN | D94: 2021-03-25 | E94: 454.55 | F94: 453.42 | G94: 448.48 | H94: 442.42 | I94: 437.48 | J94: 459.48 | K94: 464.42 | L94: 470.48 | M94: 458.35 | N94: 447.35 | O94: 9866000 | P94: -5.61%
A95: 85 | B95: Capital_Goods | C95: LT | D95: 2021-03-25 | E95: 1517.15 | F95: 1526.57 | G95: 1503.88 | H95: 1490.62 | I95: 1467.93 | J95: 1539.83 | K95: 1562.52 | L95: 1575.78 | M95: 1549.25 | N95: 1513.3 | O95: 12321100 | P95: -5.44%
A96: 86 | B96: Pharma | C96: LUPIN | D96: 2021-03-25 | E96: 1028.10 | F96: 1030.43 | G96: 1017.12 | H96: 1006.13 | I96: 992.82 | J96: 1041.42 | K96: 1054.73 | L96: 1065.72 | M96: 1043.75 | N96: 1019.45 | O96: 7849750 | P96: -13.41%
A97: 87 | B97: Automobile | C97: M&M | D97: 2021-03-25 | E97: 864.90 | F97: 860.30 | G97: 849.75 | H97: 834.60 | I97: 824.05 | J97: 875.45 | K97: 886.00 | L97: 901.15 | M97: 870.85 | N97: 845.15 | O97: 8433600 | P97: -17.23%
A98: 88 | B98: Finance | C98: M&MFIN | D98: 2021-03-25 | E98: 216.05 | F98: 215.77 | G98: 212.98 | H98: 209.92 | I98: 207.13 | J98: 218.83 | K98: 221.62 | L98: 224.68 | M98: 218.55 | N98: 212.7 | O98: 13508000 | P98: -14.46%
A99: 89 | B99: Finance | C99: MANAPPURAM | D99: 2021-03-25 | E99: 180.45 | F99: 178.52 | G99: 175.18 | H99: 169.92 | I99: 166.58 | J99: 183.78 | K99: 187.12 | L99: 192.38 | M99: 181.85 | N99: 173.25 | O99: 18654000 | P99: 1.44%
A100: 90 | B100: FMCG | C100: MARICO | D100: 2021-03-25 | E100: 409.40 | F100: 414.40 | G100: 400.80 | H100: 392.20 | I100: 378.60 | J100: 423.00 | K100: 436.60 | L100: 445.20 | M100: 428 | N100: 405.8 | O100: 5946000 | P100: -27.59%
A101: 91 | B101: Automobile | C101: MARUTI | D101: 2021-03-25 | E101: 6980.40 | F101: 7006.55 | G101: 6936.10 | H101: 6891.80 | I101: 6821.35 | J101: 7050.85 | K101: 7121.30 | L101: 7165.60 | M101: 7077 | N101: 6962.25 | O101: 3127900 | P101: 2.34%
A102: 92 | B102: FMCG | C102: MCDOWELL-N | D102: 2021-03-25 | E102: 548.20 | F102: 550.12 | G102: 545.23 | H102: 542.27 | I102: 537.38 | J102: 553.08 | K102: 557.97 | L102: 560.93 | M102: 555 | N102: 547.15 | O102: 14170000 | P102: -1.58%
A103: 93 | B103: Finance | C103: MFSL | D103: 2021-03-25 | E103: 893.20 | F103: 909.83 | G103: 871.57 | H103: 849.93 | I103: 811.67 | J103: 931.47 | K103: 969.73 | L103: 991.37 | M103: 948.1 | N103: 888.2 | O103: 3023800 | P103: -13.05%
A104: 94 | B104: Oil_Gas | C104: MGL | D104: 2021-03-25 | E104: 1201.70 | F104: 1186.03 | G104: 1159.22 | H104: 1116.73 | I104: 1089.92 | J104: 1228.52 | K104: 1255.33 | L104: 1297.82 | M104: 1212.85 | N104: 1143.55 | O104: 1564200 | P104: -3.94%
A105: 95 | B105: Technology | C105: MINDTREE | D105: 2021-03-25 | E105: 1613.30 | F105: 1629.28 | G105: 1591.12 | H105: 1568.93 | I105: 1530.77 | J105: 1651.47 | K105: 1689.63 | L105: 1711.82 | M105: 1667.45 | N105: 1607.1 | O105: 1144800 | P105: -14.47%
A106: 96 | B106: Automobile | C106: MOTHERSUMI | D106: 2021-03-25 | E106: 219.20 | F106: 220.18 | G106: 216.62 | H106: 214.03 | I106: 210.47 | J106: 222.77 | K106: 226.33 | L106: 228.92 | M106: 223.75 | N106: 217.6 | O106: 30926000 | P106: -11.66%
A107: 97 | B107: Automobile | C107: MRF | D107: 2021-03-25 | E107: 88088.85 | F107: 88343.93 | G107: 87671.32 | H107: 87253.78 | I107: 86581.17 | J107: 88761.47 | K107: 89434.08 | L107: 89851.62 | M107: 89016.55 | N107: 87926.4 | O107: 52500 | P107: -7.42%
A108: 98 | B108: Finance | C108: MUTHOOTFIN | D108: 2021-03-25 | E108: 1330.70 | F108: 1322.28 | G108: 1305.57 | H108: 1280.43 | I108: 1263.72 | J108: 1347.42 | K108: 1364.13 | L108: 1389.27 | M108: 1339 | N108: 1297.15 | O108: 2847750 | P108: -25.71%
A109: 99 | B109: Metals | C109: NATIONALUM | D109: 2021-03-25 | E109: 57.35 | F109: 57.00 | G109: 56.10 | H109: 54.85 | I109: 53.95 | J109: 58.25 | K109: 59.15 | L109: 60.40 | M109: 57.9 | N109: 55.75 | O109: 63104000 | P109: -6.17%
A110: 100 | B110: Others | C110: NAUKRI | D110: 2021-03-25 | E110: 4994.25 | F110: 5014.30 | G110: 4953.60 | H110: 4912.95 | I110: 4852.25 | J110: 5054.95 | K110: 5115.65 | L110: 5156.30 | M110: 5075 | N110: 4973.65 | O110: 825000 | P110: -5.34%
A111: 101 | B111: FMCG | C111: NESTLEIND | D111: 2021-03-25 | E111: 16222.05 | F111: 16292.53 | G111: 16132.52 | H111: 16042.98 | I111: 15882.97 | J111: 16382.07 | K111: 16542.08 | L111: 16631.62 | M111: 16452.55 | N111: 16203 | O111: 370650 | P111: -7.31%
A112: 102 | B112: Metals | C112: NMDC | D112: 2021-03-25 | E112: 128.30 | F112: 127.40 | G112: 125.35 | H112: 122.40 | I112: 120.35 | J112: 130.35 | K112: 132.40 | L112: 135.35 | M112: 129.45 | N112: 124.45 | O112: 49834600 | P112: -12.57%
A113: 103 | B113: Power | C113: NTPC | D113: 2021-03-25 | E113: 108.75 | F113: 107.45 | G113: 104.15 | H113: 99.55 | I113: 96.25 | J113: 112.05 | K113: 115.35 | L113: 119.95 | M113: 110.75 | N113: 102.85 | O113: 82370700 | P113: -3.84%
A114: 104 | B114: Oil_Gas | C114: ONGC | D114: 2021-03-25 | E114: 118.45 | F114: 118.32 | G114: 115.93 | H114: 113.42 | I114: 111.03 | J114: 120.83 | K114: 123.22 | L114: 125.73 | M114: 120.7 | N114: 115.8 | O114: 44136400 | P114: -20.20%
A115: 105 | B115: Textile | C115: PAGEIND | D115: 2021-03-25 | E115: 28895.90 | F115: 28929.17 | G115: 28712.83 | H115: 28529.77 | I115: 28313.43 | J115: 29112.23 | K115: 29328.57 | L115: 29511.63 | M115: 29145.5 | N115: 28746.1 | O115: 81480 | P115: -11.04%
A116: 106 | B116: Pharma | C116: PEL | D116: 2021-03-25 | E116: 1959.70 | F116: 1937.70 | G116: 1900.70 | H116: 1841.70 | I116: 1804.70 | J116: 1996.70 | K116: 2033.70 | L116: 2092.70 | M116: 1974.7 | N116: 1878.7 | O116: 3570600 | P116: -8.20%
A117: 107 | B117: Oil_Gas | C117: PETRONET | D117: 2021-03-25 | E117: 259.90 | F117: 258.70 | G117: 255.05 | H117: 250.20 | I117: 246.55 | J117: 263.55 | K117: 267.20 | L117: 272.05 | M117: 262.35 | N117: 253.85 | O117: 17169000 | P117: -9.36%
A118: 108 | B118: Finance | C118: PFC | D118: 2021-03-25 | E118: 130.15 | F118: 128.90 | G118: 126.25 | H118: 122.35 | I118: 119.70 | J118: 132.80 | K118: 135.45 | L118: 139.35 | M118: 131.55 | N118: 125 | O118: 35513600 | P118: -14.43%
A119: 109 | B119: FMCG | C119: PIDILITIND | D119: 2021-03-25 | E119: 1730.35 | F119: 1727.43 | G119: 1710.17 | H119: 1689.98 | I119: 1672.72 | J119: 1747.62 | K119: 1764.88 | L119: 1785.07 | M119: 1744.7 | N119: 1707.25 | O119: 2286000 | P119: 2.21%
A120: 110 | B120: Banking | C120: PNB | D120: 2021-03-25 | E120: 42.10 | F120: 41.57 | G120: 40.83 | H120: 39.57 | I120: 38.83 | J120: 42.83 | K120: 43.57 | L120: 44.83 | M120: 42.3 | N120: 40.3 | O120: 157472000 | P120: -28.99%
A121: 111 | B121: Power | C121: POWERGRID | D121: 2021-03-25 | E121: 224.35 | F121: 223.25 | G121: 217.90 | H121: 211.45 | I121: 206.10 | J121: 229.70 | K121: 235.05 | L121: 241.50 | M121: 228.6 | N121: 216.8 | O121: 11084000 | P121: -40.33%
A122: 112 | B122: Media | C122: PVR | D122: 2021-03-25 | E122: 1420.50 | F122: 1414.00 | G122: 1397.50 | H122: 1374.50 | I122: 1358.00 | J122: 1437.00 | K122: 1453.50 | L122: 1476.50 | M122: 1430.5 | N122: 1391 | O122: 1684166 | P122: -4.39%
A123: 113 | B123: Cement | C123: RAMCOCEM | D123: 2021-03-25 | E123: 991.95 | F123: 985.18 | G123: 971.47 | H123: 950.98 | I123: 937.27 | J123: 1005.67 | K123: 1019.38 | L123: 1039.87 | M123: 998.9 | N123: 964.7 | O123: 1689800 | P123: -11.92%
A124: 114 | B124: Banking | C124: RBLBANK | D124: 2021-03-25 | E124: 250.55 | F124: 252.35 | G124: 246.70 | H124: 242.85 | I124: 237.20 | J124: 256.20 | K124: 261.85 | L124: 265.70 | M124: 258 | N124: 248.5 | O124: 17823400 | P124: -30.60%
A125: 115 | B125: Power | C125: RECLTD | D125: 2021-03-25 | E125: 143.60 | F125: 141.72 | G125: 139.08 | H125: 134.57 | I125: 131.93 | J125: 146.23 | K125: 148.87 | L125: 153.38 | M125: 144.35 | N125: 137.2 | O125: 17640000 | P125: -1.04%
A126: 116 | B126: Oil_Gas | C126: RELIANCE | D126: 2021-03-25 | E126: 2157.70 | F126: 2133.73 | G126: 2099.47 | H126: 2041.23 | I126: 2006.97 | J126: 2191.97 | K126: 2226.23 | L126: 2284.47 | M126: 2168 | N126: 2075.5 | O126: 26761250 | P126: -2.00%
A127: 117 | B127: Metals | C127: SAIL | D127: 2021-03-25 | E127: 73.70 | F127: 73.52 | G127: 72.63 | H127: 71.57 | I127: 70.68 | J127: 74.58 | K127: 75.47 | L127: 76.53 | M127: 74.4 | N127: 72.45 | O127: 98097000 | P127: -20.09%
A128: 118 | B128: Finance | C128: SBILIFE | D128: 2021-03-25 | E128: 878.75 | F128: 880.90 | G128: 873.80 | H128: 868.85 | I128: 861.75 | J128: 885.85 | K128: 892.95 | L128: 897.90 | M128: 888 | N128: 875.95 | O128: 5091750 | P128: -3.54%
A129: 119 | B129: Banking | C129: SBIN | D129: 2021-03-25 | E129: 409.60 | F129: 412.02 | G129: 406.53 | H129: 403.47 | I129: 397.98 | J129: 415.08 | K129: 420.57 | L129: 423.63 | M129: 417.5 | N129: 408.95 | O129: 82491000 | P129: -11.00%
A130: 120 | B130: Cement | C130: SHREECEM | D130: 2021-03-25 | E130: 27610.50 | F130: 27675.55 | G130: 27358.95 | H130: 27107.40 | I130: 26790.80 | J130: 27927.10 | K130: 28243.70 | L130: 28495.25 | M130: 27992.15 | N130: 27424 | O130: 119500 | P130: -22.02%
A131: 121 | B131: Capital_Goods | C131: SIEMENS | D131: 2021-03-25 | E131: 1920.60 | F131: 1927.90 | G131: 1903.05 | H131: 1885.50 | I131: 1860.65 | J131: 1945.45 | K131: 1970.30 | L131: 1987.85 | M131: 1952.75 | N131: 1910.35 | O131: 733700 | P131: -7.94%
A132: 122 | B132: Textile | C132: SRF | D132: 2021-03-25 | E132: 5575.20 | F132: 5544.07 | G132: 5471.13 | H132: 5367.07 | I132: 5294.13 | J132: 5648.13 | K132: 5721.07 | L132: 5825.13 | M132: 5617 | N132: 5440 | O132: 279750 | P132: -7.29%
A133: 123 | B133: Finance | C133: SRTRANSFIN | D133: 2021-03-25 | E133: 1389.75 | F133: 1393.92 | G133: 1375.98 | H133: 1362.22 | I133: 1344.28 | J133: 1407.68 | K133: 1425.62 | L133: 1439.38 | M133: 1411.85 | N133: 1380.15 | O133: 3856000 | P133: -13.65%
A134: 124 | B134: Pharma | C134: SUNPHARMA | D134: 2021-03-25 | E134: 612.90 | F134: 613.02 | G134: 604.88 | H134: 596.87 | I134: 588.73 | J134: 621.03 | K134: 629.17 | L134: 637.18 | M134: 621.15 | N134: 605 | O134: 40994800 | P134: -5.09%
A135: 125 | B135: Media | C135: SUNTV | D135: 2021-03-25 | E135: 513.30 | F135: 512.78 | G135: 501.82 | H135: 490.33 | I135: 479.37 | J135: 524.27 | K135: 535.23 | L135: 546.72 | M135: 523.75 | N135: 501.3 | O135: 11155500 | P135: -1.22%
A136: 126 | B136: Fertilisers | C136: TATACHEM | D136: 2021-03-25 | E136: 738.10 | F136: 718.65 | G136: 696.40 | H136: 654.70 | I136: 632.45 | J136: 760.35 | K136: 782.60 | L136: 824.30 | M136: 740.9 | N136: 676.95 | O136: 8748000 | P136: -12.17%
A137: 127 | B137: Others | C137: TATACONSUM | D137: 2021-03-25 | E137: 633.20 | F137: 633.78 | G137: 626.57 | H137: 619.93 | I137: 612.72 | J137: 640.42 | K137: 647.63 | L137: 654.27 | M137: 641 | N137: 627.15 | O137: 13221900 | P137: -5.77%
A138: 128 | B138: Automobile | C138: TATAMOTORS | D138: 2021-03-25 | E138: 335.50 | F138: 332.23 | G138: 327.77 | H138: 320.03 | I138: 315.57 | J138: 339.97 | K138: 344.43 | L138: 352.17 | M138: 336.7 | N138: 324.5 | O138: 80124900 | P138: -0.97%
A139: 129 | B139: Power | C139: TATAPOWER | D139: 2021-03-25 | E139: 96.60 | F139: 96.55 | G139: 94.90 | H139: 93.20 | I139: 91.55 | J139: 98.25 | K139: 99.90 | L139: 101.60 | M139: 98.2 | N139: 94.85 | O139: 135621000 | P139: -6.93%
A140: 130 | B140: Metals | C140: TATASTEEL | D140: 2021-03-25 | E140: 747.55 | F140: 746.80 | G140: 736.05 | H140: 724.55 | I140: 713.80 | J140: 758.30 | K140: 769.05 | L140: 780.55 | M140: 757.55 | N140: 735.3 | O140: 40198200 | P140: -9.01%
A141: 131 | B141: Technology | C141: TCS | D141: 2021-03-25 | E141: 3006.55 | F141: 3009.85 | G141: 2971.70 | H141: 2936.85 | I141: 2898.70 | J141: 3044.70 | K141: 3082.85 | L141: 3117.70 | M141: 3048 | N141: 2975 | O141: 7101000 | P141: -10.64%
A142: 132 | B142: Technology | C142: TECHM | D142: 2021-03-25 | E142: 963.75 | F142: 964.92 | G142: 956.93 | H142: 950.12 | I142: 942.13 | J142: 971.73 | K142: 979.72 | L142: 986.53 | M142: 972.9 | N142: 958.1 | O142: 10609200 | P142: -8.35%
A143: 133 | B143: FMCG | C143: TITAN | D143: 2021-03-25 | E143: 1444.65 | F143: 1449.52 | G143: 1434.03 | H143: 1423.42 | I143: 1407.93 | J143: 1460.13 | K143: 1475.62 | L143: 1486.23 | M143: 1465 | N143: 1438.9 | O143: 6573750 | P143: -11.12%
A144: 134 | B144: Pharma | C144: TORNTPHARM | D144: 2021-03-25 | E144: 2480.80 | F144: 2499.88 | G144: 2455.87 | H144: 2430.93 | I144: 2386.92 | J144: 2524.82 | K144: 2568.83 | L144: 2593.77 | M144: 2543.9 | N144: 2474.95 | O144: 1041250 | P144: -17.95%
A145: 135 | B145: Power | C145: TORNTPOWER | D145: 2021-03-25 | E145: 392.55 | F145: 384.93 | G145: 374.87 | H145: 357.18 | I145: 347.12 | J145: 402.62 | K145: 412.68 | L145: 430.37 | M145: 395 | N145: 367.25 | O145: 3189000 | P145: -18.04%
A146: 136 | B146: Automobile | C146: TVSMOTOR | D146: 2021-03-25 | E146: 600.05 | F146: 603.15 | G146: 594.50 | H146: 588.95 | I146: 580.30 | J146: 608.70 | K146: 617.35 | L146: 622.90 | M146: 611.8 | N146: 597.6 | O146: 4131400 | P146: -14.78%
A147: 137 | B147: FMCG | C147: UBL | D147: 2021-03-25 | E147: 1202.80 | F147: 1195.70 | G147: 1185.40 | H147: 1168.00 | I147: 1157.70 | J147: 1213.10 | K147: 1223.40 | L147: 1240.80 | M147: 1206 | N147: 1178.3 | O147: 1183700 | P147: -10.29%
A148: 138 | B148: Cement | C148: ULTRACEMCO | D148: 2021-03-25 | E148: 6436.00 | F148: 6439.58 | G148: 6375.42 | H148: 6314.83 | I148: 6250.67 | J148: 6500.17 | K148: 6564.33 | L148: 6624.92 | M148: 6503.75 | N148: 6379 | O148: 1493000 | P148: -5.40%
A149: 139 | B149: Fertilisers | C149: UPL | D149: 2021-03-25 | E149: 595.80 | F149: 585.32 | G149: 571.83 | H149: 547.87 | I149: 534.38 | J149: 609.28 | K149: 622.77 | L149: 646.73 | M149: 598.8 | N149: 561.35 | O149: 18226000 | P149: -4.64%
A150: 140 | B150: Metals | C150: VEDL | D150: 2021-03-25 | E150: 209.85 | F150: 209.65 | G150: 207.30 | H150: 204.75 | I150: 202.40 | J150: 212.20 | K150: 214.55 | L150: 217.10 | M150: 212 | N150: 207.1 | O150: 96075200 | P150: -5.66%
A151: 141 | B151: Capital_Goods | C151: VOLTAS | D151: 2021-03-25 | E151: 1054.35 | F151: 1045.08 | G151: 1029.47 | H151: 1004.58 | I151: 988.97 | J151: 1069.97 | K151: 1085.58 | L151: 1110.47 | M151: 1060.7 | N151: 1020.2 | O151: 2557000 | P151: -2.11%
A152: 142 | B152: Technology | C152: WIPRO | D152: 2021-03-25 | E152: 422.00 | F152: 424.23 | G152: 418.97 | H152: 415.93 | I152: 410.67 | J152: 427.27 | K152: 432.53 | L152: 435.57 | M152: 429.5 | N152: 421.2 | O152: 29689600 | P152: -15.39%
A153: 143 | B153: Media | C153: ZEEL | D153: 2021-03-25 | E153: 210.15 | F153: 209.85 | G153: 208.00 | H153: 205.85 | I153: 204.00 | J153: 212.00 | K153: 213.85 | L153: 216.00 | M153: 211.7 | N153: 207.7 | O153: 34632000 | P153: -5.46%
A154: 144
A155: 145
A156: 146
A157: 147
A175: Pivot Point: This is trigger point for intra day buy/sell based on the price range of the previous day
A176: As per the tool,the trader should take BUY position just above Pivot and keep the stop loss of pivot point and the first target would be Resistance 1(R1)
A177: If R1 is crossed then R2 becomes the next target with stop loss of at R1
A178: Similarly if price goes below pivot point then the trader should sell and keep a stop loss of pivot point and the first target would be S1
A179: If S1 is crossed then S2 becomes the next target with stop loss of at S1
A181: Disclaimer:
A182: This document has been prepared by the Retail Research Desk of Asit C Mehta
A183: Investment Intermediates Ltd. and is meant for use of the recipient only
A184: and is not for circulation. This document is not to be reported or
A185: copied or made available to others. It should not be considered to be
A186: taken as an offer to sell or a solicitation to buy any security. The
A187: information contained herein is from sources believed reliable. We do
A188: not represent that it is accurate or complete and it should not be
A189: relied upon as such. We may from time to time have positions in and buy
A190: and sell securities referred to herein

Sheet Cash Intra
M5: Back to Main Page
A6: FOR INTRA DAY TRADING | K6: =Main!B10 -> 2021-02-26
A8: Sr.no | B8: Scrip | C8: CLOSE RATE | D8: Pivot Point | E8: Supports | H8: Resistances
C9: Point | E9: S1 | F9: S2 | G9: S3 | H9: R1 | I9: R2 | J9: R3 | K9: HIGH | L9: LOW | M9: Total Trade Quanity in Lakhs
A10: 1 | B10: Nifty 50 | C10: 15097.35 | D10: 15113.07 | E10: 15049.63 | F10: 15001.92 | G10: 14938.48 | H10: 15160.78 | I10: 15224.22 | J10: 15271.93 | K10: 15176.5 | L10: 15065.35
A11: 2 | B11: Nifty Bank | C11: 36549 | D11: 36758.40 | E11: 36284.60 | F11: 36020.20 | G11: 35546.40 | H11: 37022.80 | I11: 37496.60 | J11: 37761.00 | K11: 37232.2 | L11: 36494
A12: 3 | B12: Nifty CPSE | C12: 1914.05 | D12: 1897.10 | E12: 1863.95 | F12: 1813.85 | G12: 1780.70 | H12: 1947.20 | I12: 1980.35 | J12: 2030.45 | K12: 1930.25 | L12: 1847
A13: 4 | B13: Nifty Infra | C13: 4262.05 | D13: 4249.92 | E13: 4224.28 | F13: 4186.52 | G13: 4160.88 | H13: 4287.68 | I13: 4313.32 | J13: 4351.08 | K13: 4275.55 | L13: 4212.15
A14: 5 | B14: Nifty IT | C14: 24872.45 | D14: 24967.65 | E14: 24735.50 | F14: 24598.55 | G14: 24366.40 | H14: 25104.60 | I14: 25336.75 | J14: 25473.70 | K14: 25199.8 | L14: 24830.7
A15: 6 | B15: Nifty PSE | C15: 3315.45 | D15: 3289.38 | E15: 3242.82 | F15: 3170.18 | G15: 3123.62 | H15: 3362.02 | I15: 3408.58 | J15: 3481.22 | K15: 3335.95 | L15: 3216.75
A16: 7 | B16: Nifty Midcap 50 | C16: 6959.6 | D16: 6942.08 | E16: 6908.17 | F16: 6856.73 | G16: 6822.82 | H16: 6993.52 | I16: 7027.43 | J16: 7078.87 | K16: 6976 | L16: 6890.65
A17: 8 | B17: ACC | C17: 1801.25 | D17: 1780.45 | E17: 1750.90 | F17: 1700.55 | G17: 1671.00 | H17: 1830.80 | I17: 1860.35 | J17: 1910.70 | K17: 1810 | L17: 1730.1 | M17: 11.14144
A18: 9 | B18: AUBANK | C18: 1166.7 | D18: 1177.25 | E18: 1147.50 | F18: 1128.30 | G18: 1098.55 | H18: 1196.45 | I18: 1226.20 | J18: 1245.40 | K18: 1207 | L18: 1158.05 | M18: 6.36284
A19: 10 | B19: AARTIIND | C19: 1235.65 | D19: 1233.03 | E19: 1223.07 | F19: 1210.48 | G19: 1200.52 | H19: 1245.62 | I19: 1255.58 | J19: 1268.17 | K19: 1243 | L19: 1220.45 | M19: 1.97379
A20: 11 | B20: ABBOTINDIA | C20: 14352.55 | D20: 14437.02 | E20: 14185.58 | F20: 14018.62 | G20: 13767.18 | H20: 14603.98 | I20: 14855.42 | J20: 15022.38 | K20: 14688.45 | L20: 14270.05 | M20: 0.249
A21: 12 | B21: ADANIENT | C21: 843.5 | D21: 838.30 | E21: 814.20 | F21: 784.90 | G21: 760.80 | H21: 867.60 | I21: 891.70 | J21: 921.00 | K21: 862.4 | L21: 809 | M21: 121.18095
A22: 13 | B22: ADANIGREEN | C22: 1128.55 | D22: 1146.00 | E22: 1100.00 | F22: 1071.45 | G22: 1025.45 | H22: 1174.55 | I22: 1220.55 | J22: 1249.10 | K22: 1192 | L22: 1117.45 | M22: 6.78592
A23: 14 | B23: ADANIPORTS | C23: 704.3 | D23: 694.27 | E23: 677.18 | F23: 650.07 | G23: 632.98 | H23: 721.38 | I23: 738.47 | J23: 765.58 | K23: 711.35 | L23: 667.15 | M23: 185.9669
A24: 15 | B24: ATGL | C24: 500.4 | D24: 501.25 | E24: 494.25 | F24: 488.10 | G24: 481.10 | H24: 507.40 | I24: 514.40 | J24: 520.55 | K24: 508.25 | L24: 495.1 | M24: 11.89419
A25: 16 | B25: ADANITRANS | C25: 739.6 | D25: 744.37 | E25: 730.73 | F25: 721.87 | G25: 708.23 | H25: 753.23 | I25: 766.87 | J25: 775.73 | K25: 758 | L25: 735.5 | M25: 5.05499
A26: 17 | B26: ABCAPITAL | C26: 120.8 | D26: 122.17 | E26: 116.98 | F26: 113.17 | G26: 107.98 | H26: 125.98 | I26: 131.17 | J26: 134.98 | K26: 127.35 | L26: 118.35 | M26: 137.09277
A27: 18 | B27: ABFRL | C27: 182.35 | D27: 181.23 | E27: 177.47 | F27: 172.58 | G27: 168.82 | H27: 186.12 | I27: 189.88 | J27: 194.77 | K27: 185 | L27: 176.35 | M27: 56.18914
A28: 19 | B28: AJANTPHARM | C28: 1750.05 | D28: 1748.10 | E28: 1736.20 | F28: 1722.35 | G28: 1710.45 | H28: 1761.95 | I28: 1773.85 | J28: 1787.70 | K28: 1760 | L28: 1734.25 | M28: 1.95857
A29: 20 | B29: APLLTD | C29: 897.35 | D29: 893.90 | E29: 884.45 | F29: 871.55 | G29: 862.10 | H29: 906.80 | I29: 916.25 | J29: 929.15 | K29: 903.35 | L29: 881 | M29: 3.12518
A30: 21 | B30: ALKEM | C30: 2733.5 | D30: 2747.35 | E30: 2706.20 | F30: 2678.90 | G30: 2637.75 | H30: 2774.65 | I30: 2815.80 | J30: 2843.10 | K30: 2788.5 | L30: 2720.05 | M30: 1.35048
A31: 22 | B31: AMARAJABAT | C31: 890.35 | D31: 889.62 | E31: 879.58 | F31: 868.82 | G31: 858.78 | H31: 900.38 | I31: 910.42 | J31: 921.18 | K31: 899.65 | L31: 878.85 | M31: 15.08314
A32: 23 | B32: AMBUJACEM | C32: 279.7 | D32: 277.48 | E32: 273.37 | F32: 267.03 | G32: 262.92 | H32: 283.82 | I32: 287.93 | J32: 294.27 | K32: 281.6 | L32: 271.15 | M32: 94.36339
A33: 24 | B33: APOLLOHOSP | C33: 3091.35 | D33: 3096.40 | E33: 3052.85 | F33: 3014.35 | G33: 2970.80 | H33: 3134.90 | I33: 3178.45 | J33: 3216.95 | K33: 3139.95 | L33: 3057.9 | M33: 8.19639
A34: 25 | B34: APOLLOTYRE | C34: 241.35 | D34: 241.53 | E34: 239.32 | F34: 237.28 | G34: 235.07 | H34: 243.57 | I34: 245.78 | J34: 247.82 | K34: 243.75 | L34: 239.5 | M34: 66.7869
A35: 26 | B35: ASHOKLEY | C35: 131.15 | D35: 130.05 | E35: 128.40 | F35: 125.65 | G35: 124.00 | H35: 132.80 | I35: 134.45 | J35: 137.20 | K35: 131.7 | L35: 127.3 | M35: 240.88432
A36: 27 | B36: ASIANPAINT | C36: 2373.75 | D36: 2365.40 | E36: 2344.55 | F36: 2315.35 | G36: 2294.50 | H36: 2394.60 | I36: 2415.45 | J36: 2444.65 | K36: 2386.25 | L36: 2336.2 | M36: 28.39515
A37: 28 | B37: AUROPHARMA | C37: 863.25 | D37: 864.93 | E37: 854.67 | F37: 846.08 | G37: 835.82 | H37: 873.52 | I37: 883.78 | J37: 892.37 | K37: 875.2 | L37: 856.35 | M37: 25.79512
A38: 29 | B38: DMART | C38: 3089.2 | D38: 3111.68 | E38: 3047.52 | F38: 3005.83 | G38: 2941.67 | H38: 3153.37 | I38: 3217.53 | J38: 3259.22 | K38: 3175.85 | L38: 3070 | M38: 4.05664
A39: 30 | B39: AXISBANK | C39: 770.65 | D39: 772.10 | E39: 760.70 | F39: 750.75 | G39: 739.35 | H39: 782.05 | I39: 793.45 | J39: 803.40 | K39: 783.5 | L39: 762.15 | M39: 266.35119
A40: 31 | B40: BAJAJ-AUTO | C40: 3944.8 | D40: 3944.95 | E40: 3909.90 | F40: 3875.00 | G40: 3839.95 | H40: 3979.85 | I40: 4014.90 | J40: 4049.80 | K40: 3980 | L40: 3910.05 | M40: 6.32973
A41: 32 | B41: BAJFINANCE | C41: 5529.95 | D41: 5553.75 | E41: 5487.55 | F41: 5445.15 | G41: 5378.95 | H41: 5596.15 | I41: 5662.35 | J41: 5704.75 | K41: 5619.95 | L41: 5511.35 | M41: 15.84595
A42: 33 | B42: BAJAJFINSV | C42: 10264.45 | D42: 10258.00 | E42: 10138.05 | F42: 10011.65 | G42: 9891.70 | H42: 10384.40 | I42: 10504.35 | J42: 10630.75 | K42: 10377.95 | L42: 10131.6 | M42: 3.54802
A43: 34 | B43: BAJAJHLDNG | C43: 3718.2 | D43: 3705.45 | E43: 3653.75 | F43: 3589.30 | G43: 3537.60 | H43: 3769.90 | I43: 3821.60 | J43: 3886.05 | K43: 3757.15 | L43: 3641 | M43: 0.51595
A44: 35 | B44: BALKRISIND | C44: 1580.35 | D44: 1588.10 | E44: 1566.25 | F44: 1552.15 | G44: 1530.30 | H44: 1602.20 | I44: 1624.05 | J44: 1638.15 | K44: 1609.95 | L44: 1574 | M44: 6.97534
A45: 36 | B45: BANDHANBNK | C45: 342.2 | D45: 342.15 | E45: 337.55 | F45: 332.90 | G45: 328.30 | H45: 346.80 | I45: 351.40 | J45: 356.05 | K45: 346.75 | L45: 337.5 | M45: 76.41813
A46: 37 | B46: BANKBARODA | C46: 89.95 | D46: 89.87 | E46: 89.08 | F46: 88.22 | G46: 87.43 | H46: 90.73 | I46: 91.52 | J46: 92.38 | K46: 90.65 | L46: 89 | M46: 525.00068
A47: 38 | B47: BANKINDIA | C47: 86.5 | D47: 87.42 | E47: 85.13 | F47: 83.77 | G47: 81.48 | H47: 88.78 | I47: 91.07 | J47: 92.43 | K47: 89.7 | L47: 86.05 | M47: 98.56511
A48: 39 | B48: BATAINDIA | C48: 1482.6 | D48: 1482.40 | E48: 1470.20 | F48: 1457.80 | G48: 1445.60 | H48: 1494.80 | I48: 1507.00 | J48: 1519.40 | K48: 1494.6 | L48: 1470 | M48: 5.31883
A49: 40 | B49: BERGEPAINT | C49: 722.9 | D49: 723.23 | E49: 715.37 | F49: 707.83 | G49: 699.97 | H49: 730.77 | I49: 738.63 | J49: 746.17 | K49: 731.1 | L49: 715.7 | M49: 12.19033
A50: 41 | B50: BEL | C50: 141.7 | D50: 140.58 | E50: 138.17 | F50: 134.63 | G50: 132.22 | H50: 144.12 | I50: 146.53 | J50: 150.07 | K50: 143 | L50: 137.05 | M50: 197.7534
A51: 42 | B51: BHARATFORG | C51: 620.85 | D51: 616.28 | E51: 608.87 | F51: 596.88 | G51: 589.47 | H51: 628.27 | I51: 635.68 | J51: 647.67 | K51: 623.7 | L51: 604.3 | M51: 23.84168
A52: 43 | B52: BHEL | C52: 47.15 | D52: 46.18 | E52: 44.37 | F52: 41.58 | G52: 39.77 | H52: 48.97 | I52: 50.78 | J52: 53.57 | K52: 48 | L52: 43.4 | M52: 3286.16125
A53: 44 | B53: BPCL | C53: 461.55 | D53: 457.07 | E53: 446.33 | F53: 431.12 | G53: 420.38 | H53: 472.28 | I53: 483.02 | J53: 498.23 | K53: 467.8 | L53: 441.85 | M53: 188.10829
A54: 45 | B54: BHARTIARTL | C54: 579.15 | D54: 580.22 | E54: 575.98 | F54: 572.82 | G54: 568.58 | H54: 583.38 | I54: 587.62 | J54: 590.78 | K54: 584.45 | L54: 577.05 | M54: 159.31134
A55: 46 | B55: BIOCON | C55: 397.8 | D55: 396.35 | E55: 392.00 | F55: 386.20 | G55: 381.85 | H55: 402.15 | I55: 406.50 | J55: 412.30 | K55: 400.7 | L55: 390.55 | M55: 43.5006
A56: 47 | B56: BBTC | C56: 1178.2 | D56: 1181.38 | E56: 1162.82 | F56: 1147.43 | G56: 1128.87 | H56: 1196.77 | I56: 1215.33 | J56: 1230.72 | K56: 1199.95 | L56: 1166 | M56: 0.4416
A57: 48 | B57: BOSCHLTD | C57: 15109.05 | D57: 15105.35 | E57: 14923.70 | F57: 14738.35 | G57: 14556.70 | H57: 15290.70 | I57: 15472.35 | J57: 15657.70 | K57: 15287 | L57: 14920 | M57: 0.86192
A58: 49 | B58: BRITANNIA | C58: 3405 | D58: 3401.77 | E58: 3377.83 | F58: 3350.67 | G58: 3326.73 | H58: 3428.93 | I58: 3452.87 | J58: 3480.03 | K58: 3425.7 | L58: 3374.6 | M58: 5.86357
A59: 50 | B59: CESC | C59: 613.4 | D59: 610.93 | E59: 603.92 | F59: 594.43 | G59: 587.42 | H59: 620.42 | I59: 627.43 | J59: 636.92 | K59: 617.95 | L59: 601.45 | M59: 3.8059
A60: 51 | B60: CADILAHC | C60: 438.05 | D60: 439.53 | E60: 434.67 | F60: 431.28 | G60: 426.42 | H60: 442.92 | I60: 447.78 | J60: 451.17 | K60: 444.4 | L60: 436.15 | M60: 31.41003
A61: 52 | B61: CANBK | C61: 163.5 | D61: 163.93 | E61: 161.97 | F61: 160.43 | G61: 158.47 | H61: 165.47 | I61: 167.43 | J61: 168.97 | K61: 165.9 | L61: 162.4 | M61: 168.49604
A62: 53 | B62: CASTROLIND | C62: 128.25 | D62: 127.42 | E62: 126.33 | F62: 124.42 | G62: 123.33 | H62: 129.33 | I62: 130.42 | J62: 132.33 | K62: 128.5 | L62: 125.5 | M62: 14.42915
A63: 54 | B63: CHOLAFIN | C63: 526.05 | D63: 524.68 | E63: 511.37 | F63: 496.68 | G63: 483.37 | H63: 539.37 | I63: 552.68 | J63: 567.37 | K63: 538 | L63: 510 | M63: 62.24603
A64: 55 | B64: CIPLA | C64: 809.15 | D64: 804.53 | E64: 795.07 | F64: 780.98 | G64: 771.52 | H64: 818.62 | I64: 828.08 | J64: 842.17 | K64: 814 | L64: 790.45 | M64: 54.78169
A65: 56 | B65: CUB | C65: 167.5 | D65: 168.18 | E65: 166.07 | F65: 164.63 | G65: 162.52 | H65: 169.62 | I65: 171.73 | J65: 173.17 | K65: 170.3 | L65: 166.75 | M65: 55.6597
A66: 57 | B66: COALINDIA | C66: 156.1 | D66: 153.18 | E66: 148.67 | F66: 141.23 | G66: 136.72 | H66: 160.62 | I66: 165.13 | J66: 172.57 | K66: 157.7 | L66: 145.75 | M66: 855.80477
A67: 58 | B67: COFORGE | C67: 2516.9 | D67: 2528.30 | E67: 2495.60 | F67: 2474.30 | G67: 2441.60 | H67: 2549.60 | I67: 2582.30 | J67: 2603.60 | K67: 2561 | L67: 2507 | M67: 1.32411
A68: 59 | B68: COLPAL | C68: 1570.9 | D68: 1563.53 | E68: 1550.47 | F68: 1530.03 | G68: 1516.97 | H68: 1583.97 | I68: 1597.03 | J68: 1617.47 | K68: 1576.6 | L68: 1543.1 | M68: 7.58926
A69: 60 | B69: CONCOR | C69: 575.2 | D69: 581.22 | E69: 565.43 | F69: 555.67 | G69: 539.88 | H69: 590.98 | I69: 606.77 | J69: 616.53 | K69: 597 | L69: 571.45 | M69: 42.00415
A70: 61 | B70: COROMANDEL | C70: 779.1 | D70: 776.83 | E70: 766.67 | F70: 754.23 | G70: 744.07 | H70: 789.27 | I70: 799.43 | J70: 811.87 | K70: 787 | L70: 764.4 | M70: 3.56962
A71: 62 | B71: CROMPTON | C71: 383.6 | D71: 384.08 | E71: 379.52 | F71: 375.43 | G71: 370.87 | H71: 388.17 | I71: 392.73 | J71: 396.82 | K71: 388.65 | L71: 380 | M71: 24.36161
A72: 63 | B72: CUMMINSIND | C72: 805.1 | D72: 806.37 | E72: 790.73 | F72: 776.37 | G72: 760.73 | H72: 820.73 | I72: 836.37 | J72: 850.73 | K72: 822 | L72: 792 | M72: 25.07715
A73: 64 | B73: DLF | C73: 314.7 | D73: 315.68 | E73: 312.37 | F73: 310.03 | G73: 306.72 | H73: 318.02 | I73: 321.33 | J73: 323.67 | K73: 319 | L73: 313.35 | M73: 100.43934
A74: 65 | B74: DABUR | C74: 509.05 | D74: 508.22 | E74: 505.88 | F74: 502.72 | G74: 500.38 | H74: 511.38 | I74: 513.72 | J74: 516.88 | K74: 510.55 | L74: 505.05 | M74: 44.92656
A75: 66 | B75: DALBHARAT | C75: 1444.45 | D75: 1453.80 | E75: 1422.60 | F75: 1400.75 | G75: 1369.55 | H75: 1475.65 | I75: 1506.85 | J75: 1528.70 | K75: 1485 | L75: 1431.95 | M75: 2.03741
A76: 67 | B76: DHANI | C76: 363.65 | D76: 362.95 | E76: 355.95 | F76: 348.25 | G76: 341.25 | H76: 370.65 | I76: 377.65 | J76: 385.35 | K76: 369.95 | L76: 355.25 | M76: 9.28468
A77: 68 | B77: DIVISLAB | C77: 3440.05 | D77: 3461.85 | E77: 3410.20 | F77: 3380.35 | G77: 3328.70 | H77: 3491.70 | I77: 3543.35 | J77: 3573.20 | K77: 3513.5 | L77: 3432 | M77: 8.76984
A78: 69 | B78: LALPATHLAB | C78: 2305.25 | D78: 2310.23 | E78: 2281.02 | F78: 2256.78 | G78: 2227.57 | H78: 2334.47 | I78: 2363.68 | J78: 2387.92 | K78: 2339.45 | L78: 2286 | M78: 2.32153
A79: 70 | B79: DRREDDY | C79: 4480.15 | D79: 4497.10 | E79: 4404.20 | F79: 4328.25 | G79: 4235.35 | H79: 4573.05 | I79: 4665.95 | J79: 4741.90 | K79: 4590 | L79: 4421.15 | M79: 17.06375
A80: 71 | B80: EDELWEISS | C80: 70.35 | D80: 69.75 | E80: 67.15 | F80: 63.95 | G80: 61.35 | H80: 72.95 | I80: 75.55 | J80: 78.75 | K80: 72.35 | L80: 66.55 | M80: 121.33979
A81: 72 | B81: EICHERMOT | C81: 2551.95 | D81: 2542.63 | E81: 2526.32 | F81: 2500.68 | G81: 2484.37 | H81: 2568.27 | I81: 2584.58 | J81: 2610.22 | K81: 2558.95 | L81: 2517 | M81: 13.5182
A82: 73 | B82: EMAMILTD | C82: 463.2 | D82: 465.45 | E82: 458.00 | F82: 452.80 | G82: 445.35 | H82: 470.65 | I82: 478.10 | J82: 483.30 | K82: 472.9 | L82: 460.25 | M82: 4.90072
A83: 74 | B83: ENDURANCE | C83: 1439.2 | D83: 1415.38 | E83: 1380.77 | F83: 1322.33 | G83: 1287.72 | H83: 1473.82 | I83: 1508.43 | J83: 1566.87 | K83: 1450 | L83: 1356.95 | M83: 1.19492
A84: 75 | B84: ESCORTS | C84: 1309.05 | D84: 1316.43 | E84: 1292.87 | F84: 1276.68 | G84: 1253.12 | H84: 1332.62 | I84: 1356.18 | J84: 1372.37 | K84: 1340 | L84: 1300.25 | M84: 8.77139
A85: 76 | B85: EXIDEIND | C85: 207.95 | D85: 207.20 | E85: 204.85 | F85: 201.75 | G85: 199.40 | H85: 210.30 | I85: 212.65 | J85: 215.75 | K85: 209.55 | L85: 204.1 | M85: 72.62273
A86: 77 | B86: FEDERALBNK | C86: 86.25 | D86: 86.65 | E86: 85.15 | F86: 84.05 | G86: 82.55 | H86: 87.75 | I86: 89.25 | J86: 90.35 | K86: 88.15 | L86: 85.55 | M86: 317.5095
A87: 78 | B87: FORTIS | C87: 159 | D87: 159.80 | E87: 157.70 | F87: 156.40 | G87: 154.30 | H87: 161.10 | I87: 163.20 | J87: 164.50 | K87: 161.9 | L87: 158.5 | M87: 18.89983
A88: 79 | B88: FRETAIL | C88: 70.5 | D88: 70.33 | E88: 69.82 | F88: 69.13 | G88: 68.62 | H88: 71.02 | I88: 71.53 | J88: 72.22 | K88: 70.85 | L88: 69.65 | M88: 24.29217
A89: 80 | B89: GAIL | C89: 150.8 | D89: 149.93 | E89: 147.07 | F89: 143.33 | G89: 140.47 | H89: 153.67 | I89: 156.53 | J89: 160.27 | K89: 152.8 | L89: 146.2 | M89: 387.34458
A90: 81 | B90: GMRINFRA | C90: 26.85 | D90: 26.60 | E90: 25.90 | F90: 24.95 | G90: 24.25 | H90: 27.55 | I90: 28.25 | J90: 29.20 | K90: 27.3 | L90: 25.65 | M90: 282.22476
A91: 82 | B91: GICRE | C91: 198.45 | D91: 201.15 | E91: 192.80 | F91: 187.15 | G91: 178.80 | H91: 206.80 | I91: 215.15 | J91: 220.80 | K91: 209.5 | L91: 195.5 | M91: 24.61164
A92: 83 | B92: GLENMARK | C92: 472.75 | D92: 473.12 | E92: 468.23 | F92: 463.72 | G92: 458.83 | H92: 477.63 | I92: 482.52 | J92: 487.03 | K92: 478 | L92: 468.6 | M92: 17.32202
A93: 84 | B93: GODREJAGRO | C93: 483.95 | D93: 485.68 | E93: 480.27 | F93: 476.58 | G93: 471.17 | H93: 489.37 | I93: 494.78 | J93: 498.47 | K93: 491.1 | L93: 482 | M93: 1.51338
A94: 85 | B94: GODREJCP | C94: 696.4 | D94: 693.17 | E94: 687.33 | F94: 678.27 | G94: 672.43 | H94: 702.23 | I94: 708.07 | J94: 717.13 | K94: 699 | L94: 684.1 | M94: 19.52459
A95: 86 | B95: GODREJIND | C95: 445.15 | D95: 444.65 | E95: 440.30 | F95: 435.45 | G95: 431.10 | H95: 449.50 | I95: 453.85 | J95: 458.70 | K95: 449 | L95: 439.8 | M95: 2.66589
A96: 87 | B96: GODREJPROP | C96: 1550.35 | D96: 1538.83 | E96: 1513.02 | F96: 1475.68 | G96: 1449.87 | H96: 1576.17 | I96: 1601.98 | J96: 1639.32 | K96: 1564.65 | L96: 1501.5 | M96: 16.63938
A97: 88 | B97: GRASIM | C97: 1270.45 | D97: 1271.15 | E97: 1253.30 | F97: 1236.15 | G97: 1218.30 | H97: 1288.30 | I97: 1306.15 | J97: 1323.30 | K97: 1289 | L97: 1254 | M97: 19.42025
A98: 89 | B98: GUJGASLTD | C98: 496.45 | D98: 496.83 | E98: 492.67 | F98: 488.88 | G98: 484.72 | H98: 500.62 | I98: 504.78 | J98: 508.57 | K98: 501 | L98: 493.05 | M98: 10.30743
A99: 90 | B99: GSPL | C99: 254 | D99: 252.08 | E99: 247.42 | F99: 240.83 | G99: 236.17 | H99: 258.67 | I99: 263.33 | J99: 269.92 | K99: 256.75 | L99: 245.5 | M99: 15.92718
A100: 91 | B100: HCLTECH | C100: 929.25 | D100: 928.48 | E100: 922.92 | F100: 916.58 | G100: 911.02 | H100: 934.82 | I100: 940.38 | J100: 946.72 | K100: 934.05 | L100: 922.15 | M100: 62.34947
A101: 92 | B101: HDFCAMC | C101: 2951.95 | D101: 2948.98 | E101: 2932.97 | F101: 2913.98 | G101: 2897.97 | H101: 2967.97 | I101: 2983.98 | J101: 3002.97 | K101: 2965 | L101: 2930 | M101: 2.53631
A102: 93 | B102: HDFCBANK | C102: 1606.4 | D102: 1614.88 | E102: 1593.52 | F102: 1580.63 | G102: 1559.27 | H102: 1627.77 | I102: 1649.13 | J102: 1662.02 | K102: 1636.25 | L102: 1602 | M102: 100.54785
A103: 94 | B103: HDFCLIFE | C103: 733.5 | D103: 732.83 | E103: 721.67 | F103: 709.83 | G103: 698.67 | H103: 744.67 | I103: 755.83 | J103: 767.67 | K103: 744 | L103: 721 | M103: 56.35556
A104: 95 | B104: HAVELLS | C104: 1175.8 | D104: 1174.60 | E104: 1153.30 | F104: 1130.80 | G104: 1109.50 | H104: 1197.10 | I104: 1218.40 | J104: 1240.90 | K104: 1195.9 | L104: 1152.1 | M104: 25.37138
A105: 96 | B105: HEROMOTOCO | C105: 3434.4 | D105: 3432.22 | E105: 3404.43 | F105: 3374.47 | G105: 3346.68 | H105: 3462.18 | I105: 3489.97 | J105: 3519.93 | K105: 3460 | L105: 3402.25 | M105: 8.97962
A106: 97 | B106: HINDALCO | C106: 350.7 | D106: 347.43 | E106: 340.27 | F106: 329.83 | G106: 322.67 | H106: 357.87 | I106: 365.03 | J106: 375.47 | K106: 354.6 | L106: 337 | M106: 359.67464
A107: 98 | B107: HINDPETRO | C107: 252.45 | D107: 252.40 | E107: 245.55 | F107: 238.65 | G107: 231.80 | H107: 259.30 | I107: 266.15 | J107: 273.05 | K107: 259.25 | L107: 245.5 | M107: 145.85563
A108: 99 | B108: HINDUNILVR | C108: 2163.3 | D108: 2169.43 | E108: 2153.87 | F108: 2144.43 | G108: 2128.87 | H108: 2178.87 | I108: 2194.43 | J108: 2203.87 | K108: 2185 | L108: 2160 | M108: 20.9946
A109: 100 | B109: HINDZINC | C109: 304.45 | D109: 305.47 | E109: 301.18 | F109: 297.92 | G109: 293.63 | H109: 308.73 | I109: 313.02 | J109: 316.28 | K109: 309.75 | L109: 302.2 | M109: 10.14557
A110: 101 | B110: HUDCO | C110: 47.85 | D110: 47.95 | E110: 46.50 | F110: 45.15 | G110: 43.70 | H110: 49.30 | I110: 50.75 | J110: 52.10 | K110: 49.4 | L110: 46.6 | M110: 131.21663
A111: 102 | B111: HDFC | C111: 2684.7 | D111: 2700.23 | E111: 2661.47 | F111: 2638.23 | G111: 2599.47 | H111: 2723.47 | I111: 2762.23 | J111: 2785.47 | K111: 2739 | L111: 2677 | M111: 47.58112
A112: 103 | B112: ICICIBANK | C112: 628 | D112: 634.23 | E112: 620.07 | F112: 612.13 | G112: 597.97 | H112: 642.17 | I112: 656.33 | J112: 664.27 | K112: 648.4 | L112: 626.3 | M112: 385.71809
A113: 104 | B113: ICICIGI | C113: 1482.35 | D113: 1491.03 | E113: 1464.57 | F113: 1446.78 | G113: 1420.32 | H113: 1508.82 | I113: 1535.28 | J113: 1553.07 | K113: 1517.5 | L113: 1473.25 | M113: 6.21933
A114: 105 | B114: ICICIPRULI | C114: 477.65 | D114: 482.33 | E114: 470.67 | F114: 463.68 | G114: 452.02 | H114: 489.32 | I114: 500.98 | J114: 507.97 | K114: 494 | L114: 475.35 | M114: 28.44315
A115: 106 | B115: ISEC | C115: 408.3 | D115: 407.05 | E115: 401.85 | F115: 395.40 | G115: 390.20 | H115: 413.50 | I115: 418.70 | J115: 425.15 | K115: 412.25 | L115: 400.6 | M115: 7.53549
A116: 107 | B116: IDFCFIRSTB | C116: 64.7 | D116: 64.97 | E116: 64.13 | F116: 63.57 | G116: 62.73 | H116: 65.53 | I116: 66.37 | J116: 66.93 | K116: 65.8 | L116: 64.4 | M116: 705.65771
A117: 108 | B117: ITC | C117: 209.15 | D117: 209.72 | E117: 208.23 | F117: 207.32 | G117: 205.83 | H117: 210.63 | I117: 212.12 | J117: 213.03 | K117: 211.2 | L117: 208.8 | M117: 259.54142
A118: 109 | B118: IBULHSGFIN | C118: 225.45 | D118: 224.32 | E118: 221.13 | F118: 216.82 | G118: 213.63 | H118: 228.63 | I118: 231.82 | J118: 236.13 | K118: 227.5 | L118: 220 | M118: 179.37939
A119: 110 | B119: INDHOTEL | C119: 119.3 | D119: 120.17 | E119: 118.13 | F119: 116.97 | G119: 114.93 | H119: 121.33 | I119: 123.37 | J119: 124.53 | K119: 122.2 | L119: 119 | M119: 34.59619
A120: 111 | B120: IOC | C120: 100.9 | D120: 100.57 | E120: 99.18 | F120: 97.47 | G120: 96.08 | H120: 102.28 | I120: 103.67 | J120: 105.38 | K120: 101.95 | L120: 98.85 | M120: 627.50445
A121: 112 | B121: IRCTC | C121: 1726.95 | D121: 1712.23 | E121: 1684.72 | F121: 1642.48 | G121: 1614.97 | H121: 1754.47 | I121: 1781.98 | J121: 1824.22 | K121: 1739.75 | L121: 1670 | M121: 19.07444
A122: 113 | B122: IGL | C122: 511.55 | D122: 511.65 | E122: 506.90 | F122: 502.25 | G122: 497.50 | H122: 516.30 | I122: 521.05 | J122: 525.70 | K122: 516.4 | L122: 507 | M122: 44.76379
A123: 114 | B123: INDUSTOWER | C123: 273.5 | D123: 275.22 | E123: 267.78 | F123: 262.07 | G123: 254.63 | H123: 280.93 | I123: 288.37 | J123: 294.08 | K123: 282.65 | L123: 269.5 | M123: 53.43715
A124: 115 | B124: INDUSINDBK | C124: 1109.75 | D124: 1102.75 | E124: 1086.00 | F124: 1062.25 | G124: 1045.50 | H124: 1126.50 | I124: 1143.25 | J124: 1167.00 | K124: 1119.5 | L124: 1079 | M124: 127.16781
A125: 116 | B125: NAUKRI | C125: 4958.45 | D125: 4988.03 | E125: 4915.42 | F125: 4872.38 | G125: 4799.77 | H125: 5031.07 | I125: 5103.68 | J125: 5146.72 | K125: 5060.65 | L125: 4945 | M125: 6.26352
A126: 117 | B126: INFY | C126: 1274.55 | D126: 1282.10 | E126: 1264.45 | F126: 1254.35 | G126: 1236.70 | H126: 1292.20 | I126: 1309.85 | J126: 1319.95 | K126: 1299.75 | L126: 1272 | M126: 87.88221
A127: 118 | B127: INDIGO | C127: 1660.2 | D127: 1649.90 | E127: 1629.85 | F127: 1599.50 | G127: 1579.45 | H127: 1680.25 | I127: 1700.30 | J127: 1730.65 | K127: 1669.95 | L127: 1619.55 | M127: 13.44545
A128: 119 | B128: IPCALAB | C128: 1866.8 | D128: 1866.73 | E128: 1848.97 | F128: 1831.13 | G128: 1813.37 | H128: 1884.57 | I128: 1902.33 | J128: 1920.17 | K128: 1884.5 | L128: 1848.9 | M128: 2.97034
A129: 120 | B129: JSWENERGY | C129: 73.2 | D129: 73.57 | E129: 72.38 | F129: 71.57 | G129: 70.38 | H129: 74.38 | I129: 75.57 | J129: 76.38 | K129: 74.75 | L129: 72.75 | M129: 26.35963
A130: 121 | B130: JSWSTEEL | C130: 421.75 | D130: 418.92 | E130: 412.83 | F130: 403.92 | G130: 397.83 | H130: 427.83 | I130: 433.92 | J130: 442.83 | K130: 425 | L130: 410 | M130: 90.51315
A131: 122 | B131: JINDALSTEL | C131: 344.9 | D131: 343.95 | E131: 340.95 | F131: 337.00 | G131: 334.00 | H131: 347.90 | I131: 350.90 | J131: 354.85 | K131: 346.95 | L131: 340 | M131: 63.33361
A132: 123 | B132: JUBLFOOD | C132: 3056.25 | D132: 3059.23 | E132: 3013.47 | F132: 2970.68 | G132: 2924.92 | H132: 3102.02 | I132: 3147.78 | J132: 3190.57 | K132: 3105 | L132: 3016.45 | M132: 8.70053
A133: 124 | B133: KOTAKBANK | C133: 1895.5 | D133: 1916.08 | E133: 1866.97 | F133: 1838.43 | G133: 1789.32 | H133: 1944.62 | I133: 1993.73 | J133: 2022.27 | K133: 1965.2 | L133: 1887.55 | M133: 56.22516
A134: 125 | B134: L&TFH | C134: 106.25 | D134: 105.50 | E134: 104.05 | F134: 101.85 | G134: 100.40 | H134: 107.70 | I134: 109.15 | J134: 111.35 | K134: 106.95 | L134: 103.3 | M134: 288.58499
A135: 126 | B135: LTTS | C135: 2620.85 | D135: 2590.07 | E135: 2536.13 | F135: 2451.42 | G135: 2397.48 | H135: 2674.78 | I135: 2728.72 | J135: 2813.43 | K135: 2644 | L135: 2505.35 | M135: 2.21412
A136: 127 | B136: LICHSGFIN | C136: 451.25 | D136: 450.55 | E136: 445.40 | F136: 439.55 | G136: 434.40 | H136: 456.40 | I136: 461.55 | J136: 467.40 | K136: 455.7 | L136: 444.7 | M136: 53.97
A137: 128 | B137: LTI | C137: 3656.5 | D137: 3686.77 | E137: 3609.73 | F137: 3562.97 | G137: 3485.93 | H137: 3733.53 | I137: 3810.57 | J137: 3857.33 | K137: 3763.8 | L137: 3640 | M137: 2.51215
A138: 129 | B138: LT | C138: 1506.45 | D138: 1516.35 | E138: 1492.10 | F138: 1477.75 | G138: 1453.50 | H138: 1530.70 | I138: 1554.95 | J138: 1569.30 | K138: 1540.6 | L138: 1502 | M138: 31.68105
A139: 130 | B139: LUPIN | C139: 1024.6 | D139: 1026.70 | E139: 1012.90 | F139: 1001.20 | G139: 987.40 | H139: 1038.40 | I139: 1052.20 | J139: 1063.90 | K139: 1040.5 | L139: 1015 | M139: 33.11836
A140: 131 | B140: MRF | C140: 87622.8 | D140: 87861.88 | E140: 87123.77 | F140: 86624.73 | G140: 85886.62 | H140: 88360.92 | I140: 89099.03 | J140: 89598.07 | K140: 88600 | L140: 87362.85 | M140: 0.2242
A141: 132 | B141: MGL | C141: 1197.7 | D141: 1179.43 | E141: 1151.87 | F141: 1106.03 | G141: 1078.47 | H141: 1225.27 | I141: 1252.83 | J141: 1298.67 | K141: 1207 | L141: 1133.6 | M141: 12.51626
A142: 133 | B142: M&MFIN | C142: 219.05 | D142: 217.78 | E142: 215.07 | F142: 211.08 | G142: 208.37 | H142: 221.77 | I142: 224.48 | J142: 228.47 | K142: 220.5 | L142: 213.8 | M142: 77.56269
A143: 134 | B143: M&M | C143: 859 | D143: 855.88 | E143: 845.17 | F143: 831.33 | G143: 820.62 | H143: 869.72 | I143: 880.43 | J143: 894.27 | K143: 866.6 | L143: 842.05 | M143: 61.34649
A144: 135 | B144: MANAPPURAM | C144: 179.25 | D144: 177.47 | E144: 174.33 | F144: 169.42 | G144: 166.28 | H144: 182.38 | I144: 185.52 | J144: 190.43 | K144: 180.6 | L144: 172.55 | M144: 92.27463
A145: 136 | B145: MARICO | C145: 409.8 | D145: 414.88 | E145: 401.02 | F145: 392.23 | G145: 378.37 | H145: 423.67 | I145: 437.53 | J145: 446.32 | K145: 428.75 | L145: 406.1 | M145: 63.34193
A146: 137 | B146: MARUTI | C146: 6930.35 | D146: 6971.45 | E146: 6873.90 | F146: 6817.45 | G146: 6719.90 | H146: 7027.90 | I146: 7125.45 | J146: 7181.90 | K146: 7069 | L146: 6915 | M146: 17.40066
A147: 138 | B147: MFSL | C147: 889.05 | D147: 909.37 | E147: 865.03 | F147: 841.02 | G147: 796.68 | H147: 933.38 | I147: 977.72 | J147: 1001.73 | K147: 953.7 | L147: 885.35 | M147: 68.32524
A148: 139 | B148: MINDTREE | C148: 1604.3 | D148: 1620.40 | E148: 1579.80 | F148: 1555.30 | G148: 1514.70 | H148: 1644.90 | I148: 1685.50 | J148: 1710.00 | K148: 1661 | L148: 1595.9 | M148: 6.20525
A149: 140 | B149: MOTHERSUMI | C149: 218.25 | D149: 219.18 | E149: 215.57 | F149: 212.88 | G149: 209.27 | H149: 221.87 | I149: 225.48 | J149: 228.17 | K149: 222.8 | L149: 216.5 | M149: 120.91445
A150: 141 | B150: MPHASIS | C150: 1651.7 | D150: 1657.90 | E150: 1615.85 | F150: 1580.00 | G150: 1537.95 | H150: 1693.75 | I150: 1735.80 | J150: 1771.65 | K150: 1699.95 | L150: 1622.05 | M150: 8.70245
A151: 142 | B151: MUTHOOTFIN | C151: 1329.15 | D151: 1323.05 | E151: 1306.10 | F151: 1283.05 | G151: 1266.10 | H151: 1346.10 | I151: 1363.05 | J151: 1386.10 | K151: 1340 | L151: 1300 | M151: 23.53972
A152: 143 | B152: NATCOPHARM | C152: 802.3 | D152: 807.53 | E152: 790.82 | F152: 779.33 | G152: 762.62 | H152: 819.02 | I152: 835.73 | J152: 847.22 | K152: 824.25 | L152: 796.05 | M152: 3.1559
A153: 144 | B153: NMDC | C153: 128 | D153: 127.12 | E153: 125.08 | F153: 122.17 | G153: 120.13 | H153: 130.03 | I153: 132.07 | J153: 134.98 | K153: 129.15 | L153: 124.2 | M153: 176.91593
A154: 145 | B154: NTPC | C154: 108 | D154: 107.07 | E154: 103.93 | F154: 99.87 | G154: 96.73 | H154: 111.13 | I154: 114.27 | J154: 118.33 | K154: 110.2 | L154: 103 | M154: 683.61756
A155: 146 | B155: NATIONALUM | C155: 57.25 | D155: 56.82 | E155: 55.93 | F155: 54.62 | G155: 53.73 | H155: 58.13 | I155: 59.02 | J155: 60.33 | K155: 57.7 | L155: 55.5 | M155: 548.67256
A156: 147 | B156: NAVINFLUOR | C156: 2480.2 | D156: 2498.30 | E156: 2449.50 | F156: 2418.80 | G156: 2370.00 | H156: 2529.00 | I156: 2577.80 | J156: 2608.50 | K156: 2547.1 | L156: 2467.6 | M156: 0.90349
A157: 148 | B157: NESTLEIND | C157: 16113.9 | D157: 16195.73 | E157: 16018.17 | F157: 15922.43 | G157: 15744.87 | H157: 16291.47 | I157: 16469.03 | J157: 16564.77 | K157: 16373.3 | L157: 16100 | M157: 1.85713
A158: 149 | B158: NAM-INDIA | C158: 340.6 | D158: 340.82 | E158: 335.83 | F158: 331.07 | G158: 326.08 | H158: 345.58 | I158: 350.57 | J158: 355.33 | K158: 345.8 | L158: 336.05 | M158: 8.90993
A159: 150 | B159: OBEROIRLTY | C159: 553.25 | D159: 556.35 | E159: 543.20 | F159: 533.15 | G159: 520.00 | H159: 566.40 | I159: 579.55 | J159: 589.60 | K159: 569.5 | L159: 546.3 | M159: 16.63529
A160: 151 | B160: ONGC | C160: 119.05 | D160: 118.30 | E160: 116.10 | F160: 113.15 | G160: 110.95 | H160: 121.25 | I160: 123.45 | J160: 126.40 | K160: 120.5 | L160: 115.35 | M160: 620.38881
A161: 152 | B161: OIL | C161: 127.8 | D161: 127.78 | E161: 126.02 | F161: 124.23 | G161: 122.47 | H161: 129.57 | I161: 131.33 | J161: 133.12 | K161: 129.55 | L161: 126 | M161: 39.00737
A162: 153 | B162: OFSS | C162: 3018.95 | D162: 3058.02 | E162: 2966.03 | F162: 2913.12 | G162: 2821.13 | H162: 3110.93 | I162: 3202.92 | J162: 3255.83 | K162: 3150 | L162: 3005.1 | M162: 1.34862
A163: 154 | B163: PIIND | C163: 2216.45 | D163: 2235.82 | E163: 2191.63 | F163: 2166.82 | G163: 2122.63 | H163: 2260.63 | I163: 2304.82 | J163: 2329.63 | K163: 2280 | L163: 2211 | M163: 3.98066
A164: 155 | B164: PAGEIND | C164: 28790.2 | D164: 28873.10 | E164: 28517.25 | F164: 28244.30 | G164: 27888.45 | H164: 29146.05 | I164: 29501.90 | J164: 29774.85 | K164: 29228.95 | L164: 28600.15 | M164: 0.42564
A165: 156 | B165: PETRONET | C165: 258.7 | D165: 257.50 | E165: 254.05 | F165: 249.40 | G165: 245.95 | H165: 262.15 | I165: 265.60 | J165: 270.25 | K165: 260.95 | L165: 252.85 | M165: 93.27946
A166: 157 | B166: PFIZER | C166: 4559.6 | D166: 4547.20 | E166: 4497.40 | F166: 4435.20 | G166: 4385.40 | H166: 4609.40 | I166: 4659.20 | J166: 4721.40 | K166: 4597 | L166: 4485 | M166: 0.84286
A167: 158 | B167: PIDILITIND | C167: 1719.3 | D167: 1716.55 | E167: 1698.70 | F167: 1678.10 | G167: 1660.25 | H167: 1737.15 | I167: 1755.00 | J167: 1775.60 | K167: 1734.4 | L167: 1695.95 | M167: 15.54132
A168: 159 | B168: PEL | C168: 1949.65 | D168: 1927.28 | E168: 1890.57 | F168: 1831.48 | G168: 1794.77 | H168: 1986.37 | I168: 2023.08 | J168: 2082.17 | K168: 1964 | L168: 1868.2 | M168: 23.61039
A169: 160 | B169: POLYCAB | C169: 1355.05 | D169: 1358.22 | E169: 1344.43 | F169: 1333.82 | G169: 1320.03 | H169: 1368.83 | I169: 1382.62 | J169: 1393.23 | K169: 1372 | L169: 1347.6 | M169: 4.84835
A170: 161 | B170: PFC | C170: 129.75 | D170: 128.48 | E170: 126.02 | F170: 122.28 | G170: 119.82 | H170: 132.22 | I170: 134.68 | J170: 138.42 | K170: 130.95 | L170: 124.75 | M170: 108.42652
A171: 162 | B171: POWERGRID | C171: 227.55 | D171: 227.05 | E171: 221.30 | F171: 215.05 | G171: 209.30 | H171: 233.30 | I171: 239.05 | J171: 245.30 | K171: 232.8 | L171: 220.8 | M171: 172.66549
A172: 163 | B172: PRESTIGE | C172: 308.15 | D172: 307.03 | E172: 302.22 | F172: 296.28 | G172: 291.47 | H172: 312.97 | I172: 317.78 | J172: 323.72 | K172: 311.85 | L172: 301.1 | M172: 5.82885
A173: 164 | B173: PGHH | C173: 13028.55 | D173: 13013.60 | E173: 12883.05 | F173: 12737.55 | G173: 12607.00 | H173: 13159.10 | I173: 13289.65 | J173: 13435.15 | K173: 13144.15 | L173: 12868.1 | M173: 0.05923
A174: 165 | B174: PNB | C174: 41.9 | D174: 42.10 | E174: 41.55 | F174: 41.20 | G174: 40.65 | H174: 42.45 | I174: 43.00 | J174: 43.35 | K174: 42.65 | L174: 41.75 | M174: 1332.93103
A175: 166 | B175: RBLBANK | C175: 248.95 | D175: 250.95 | E175: 245.10 | F175: 241.25 | G175: 235.40 | H175: 254.80 | I175: 260.65 | J175: 264.50 | K175: 256.8 | L175: 247.1 | M175: 195.98751
A176: 167 | B176: RECLTD | C176: 143.55 | D176: 141.75 | E176: 139.00 | F176: 134.45 | G176: 131.70 | H176: 146.30 | I176: 149.05 | J176: 153.60 | K176: 144.5 | L176: 137.2 | M176: 148.0699
A177: 168 | B177: RAJESHEXPO | C177: 501.55 | D177: 499.95 | E177: 493.60 | F177: 485.65 | G177: 479.30 | H177: 507.90 | I177: 514.25 | J177: 522.20 | K177: 506.3 | L177: 492 | M177: 2.10886
A178: 169 | B178: RELIANCE | C178: 2144.35 | D178: 2123.12 | E178: 2094.23 | F178: 2044.12 | G178: 2015.23 | H178: 2173.23 | I178: 2202.12 | J178: 2252.23 | K178: 2152 | L178: 2073 | M178: 160.85897
A179: 170 | B179: SBICARD | C179: 1110.25 | D179: 1096.48 | E179: 1055.52 | F179: 1000.78 | G179: 959.82 | H179: 1151.22 | I179: 1192.18 | J179: 1246.92 | K179: 1137.45 | L179: 1041.75 | M179: 30.29314
A180: 171 | B180: SBILIFE | C180: 872.4 | D180: 875.00 | E180: 867.10 | F180: 861.80 | G180: 853.90 | H180: 880.30 | I180: 888.20 | J180: 893.50 | K180: 882.9 | L180: 869.7 | M180: 18.85254
A181: 172 | B181: SRF | C181: 5540.35 | D181: 5511.78 | E181: 5428.57 | F181: 5316.78 | G181: 5233.57 | H181: 5623.57 | I181: 5706.78 | J181: 5818.57 | K181: 5595 | L181: 5400 | M181: 2.10737
A182: 173 | B182: SANOFI | C182: 8144.1 | D182: 8172.27 | E182: 8094.53 | F182: 8044.97 | G182: 7967.23 | H182: 8221.83 | I182: 8299.57 | J182: 8349.13 | K182: 8250 | L182: 8122.7 | M182: 0.30394
A183: 174 | B183: SHREECEM | C183: 27450.9 | D183: 27523.03 | E183: 27166.17 | F183: 26881.43 | G183: 26524.57 | H183: 27807.77 | I183: 28164.63 | J183: 28449.37 | K183: 27879.9 | L183: 27238.3 | M183: 0.52154
A184: 175 | B184: SRTRANSFIN | C184: 1380.3 | D184: 1385.53 | E184: 1366.32 | F184: 1352.33 | G184: 1333.12 | H184: 1399.52 | I184: 1418.73 | J184: 1432.72 | K184: 1404.75 | L184: 1371.55 | M184: 21.06496
A185: 176 | B185: SIEMENS | C185: 1910 | D185: 1921.13 | E185: 1893.27 | F185: 1876.53 | G185: 1848.67 | H185: 1937.87 | I185: 1965.73 | J185: 1982.47 | K185: 1949 | L185: 1904.4 | M185: 6.4383
A186: 177 | B186: SBIN | C186: 407.25 | D186: 409.57 | E186: 404.23 | F186: 401.22 | G186: 395.88 | H186: 412.58 | I186: 417.92 | J186: 420.93 | K186: 414.9 | L186: 406.55 | M186: 469.88836
A187: 178 | B187: SAIL | C187: 73.2 | D187: 73.05 | E187: 72.20 | F187: 71.20 | G187: 70.35 | H187: 74.05 | I187: 74.90 | J187: 75.90 | K187: 73.9 | L187: 72.05 | M187: 619.33209
A188: 179 | B188: SUNPHARMA | C188: 609.55 | D188: 610.38 | E188: 601.87 | F188: 594.18 | G188: 585.67 | H188: 618.07 | I188: 626.58 | J188: 634.27 | K188: 618.9 | L188: 602.7 | M188: 62.61754
A189: 180 | B189: SUNTV | C189: 511.5 | D189: 510.72 | E189: 499.93 | F189: 488.37 | G189: 477.58 | H189: 522.28 | I189: 533.07 | J189: 544.63 | K189: 521.5 | L189: 499.15 | M189: 33.64534
A190: 181 | B190: SYNGENE | C190: 562 | D190: 564.12 | E190: 555.93 | F190: 549.87 | G190: 541.68 | H190: 570.18 | I190: 578.37 | J190: 584.43 | K190: 572.3 | L190: 558.05 | M190: 3.3352
A191: 182 | B191: TVSMOTOR | C191: 596.1 | D191: 599.55 | E191: 589.40 | F191: 582.70 | G191: 572.55 | H191: 606.25 | I191: 616.40 | J191: 623.10 | K191: 609.7 | L191: 592.85 | M191: 21.13293
A192: 183 | B192: TATACHEM | C192: 732.6 | D192: 715.45 | E192: 692.90 | F192: 653.20 | G192: 630.65 | H192: 755.15 | I192: 777.70 | J192: 817.40 | K192: 738 | L192: 675.75 | M192: 247.69312
A193: 184 | B193: TCS | C193: 2995.3 | D193: 2997.88 | E193: 2965.87 | F193: 2936.43 | G193: 2904.42 | H193: 3027.32 | I193: 3059.33 | J193: 3088.77 | K193: 3029.9 | L193: 2968.45 | M193: 42.24073
A194: 185 | B194: TATACONSUM | C194: 628.5 | D194: 630.67 | E194: 622.18 | F194: 615.87 | G194: 607.38 | H194: 636.98 | I194: 645.47 | J194: 651.78 | K194: 639.15 | L194: 624.35 | M194: 49.77348
A195: 186 | B195: TATAMOTORS | C195: 333.15 | D195: 330.37 | E195: 326.03 | F195: 318.92 | G195: 314.58 | H195: 337.48 | I195: 341.82 | J195: 348.93 | K195: 334.7 | L195: 323.25 | M195: 645.14912
A196: 187 | B196: TATAPOWER | C196: 96 | D196: 96.00 | E196: 94.35 | F196: 92.70 | G196: 91.05 | H196: 97.65 | I196: 99.30 | J196: 100.95 | K196: 97.65 | L196: 94.35 | M196: 709.38332
A197: 188 | B197: TATASTEEL | C197: 742.9 | D197: 742.62 | E197: 732.23 | F197: 721.57 | G197: 711.18 | H197: 753.28 | I197: 763.67 | J197: 774.33 | K197: 753 | L197: 731.95 | M197: 219.01596
A198: 189 | B198: TECHM | C198: 957.8 | D198: 959.68 | E198: 950.37 | F198: 942.93 | G198: 933.62 | H198: 967.12 | I198: 976.43 | J198: 983.87 | K198: 969 | L198: 952.25 | M198: 36.82791
A199: 190 | B199: RAMCOCEM | C199: 983.8 | D199: 978.65 | E199: 967.30 | F199: 950.80 | G199: 939.45 | H199: 995.15 | I199: 1006.50 | J199: 1023.00 | K199: 990 | L199: 962.15 | M199: 5.13364
A200: 191 | B200: TITAN | C200: 1434.45 | D200: 1442.63 | E200: 1422.32 | F200: 1410.18 | G200: 1389.87 | H200: 1454.77 | I200: 1475.08 | J200: 1487.22 | K200: 1462.95 | L200: 1430.5 | M200: 19.67386
A201: 192 | B201: TORNTPHARM | C201: 2467.5 | D201: 2484.00 | E201: 2445.00 | F201: 2422.50 | G201: 2383.50 | H201: 2506.50 | I201: 2545.50 | J201: 2568.00 | K201: 2523 | L201: 2461.5 | M201: 3.85483
A202: 193 | B202: TORNTPOWER | C202: 393.25 | D202: 384.93 | E202: 374.12 | F202: 354.98 | G202: 344.17 | H202: 404.07 | I202: 414.88 | J202: 434.02 | K202: 395.75 | L202: 365.8 | M202: 55.86051
A203: 194 | B203: TRENT | C203: 819.25 | D203: 811.00 | E203: 797.00 | F203: 774.75 | G203: 760.75 | H203: 833.25 | I203: 847.25 | J203: 869.50 | K203: 825 | L203: 788.75 | M203: 7.29553
A204: 195 | B204: UPL | C204: 593 | D204: 583.00 | E204: 569.00 | F204: 545.00 | G204: 531.00 | H204: 607.00 | I204: 621.00 | J204: 645.00 | K204: 597 | L204: 559 | M204: 167.64202
A205: 196 | B205: ULTRACEMCO | C205: 6383.3 | D205: 6396.58 | E205: 6325.17 | F205: 6267.03 | G205: 6195.62 | H205: 6454.72 | I205: 6526.13 | J205: 6584.27 | K205: 6468 | L205: 6338.45 | M205: 8.03072
... 29 more rows

Sheet MidCap Intra
L5: Back To Main Page
A6: FOR INTRA DAY TRADING | K6: =Main!B10 -> 2021-02-26
A9: Sr.no | B9: Scrip | C9: CLOSE RATE | D9: Pivot Point | E9: Supports | H9: Resistances
C10: Point | E10: S1 | F10: S2 | G10: S3 | H10: R1 | I10: R2 | J10: R3 | K10: HIGH | L10: LOW | M10: Total Trade Quanity in Lakhs
A11: 1 | B11: 3MINDIA | C11: 22361.05 | D11: 22125.87 | E11: 21751.73 | F11: 21142.42 | G11: 20768.28 | H11: 22735.18 | I11: 23109.32 | J11: 23718.63 | K11: 22500 | L11: 21516.55 | M11: 0.08776
A12: 2 | B12: ABB | C12: 1537.9 | D12: 1546.68 | E12: 1502.57 | F12: 1467.23 | G12: 1423.12 | H12: 1582.02 | I12: 1626.13 | J12: 1661.47 | K12: 1590.8 | L12: 1511.35 | M12: 1.84689
A13: 3 | B13: POWERINDIA | C13: 1619.15 | D13: 1592.00 | E13: 1555.00 | F13: 1490.85 | G13: 1453.85 | H13: 1656.15 | I13: 1693.15 | J13: 1757.30 | K13: 1629 | L13: 1527.85 | M13: 0.71232
A14: 4 | B14: ACC | C14: 1801.25 | D14: 1780.45 | E14: 1750.90 | F14: 1700.55 | G14: 1671.00 | H14: 1830.80 | I14: 1860.35 | J14: 1910.70 | K14: 1810 | L14: 1730.1 | M14: 11.14144
A15: 5 | B15: AIAENG | C15: 1818.75 | D15: 1813.43 | E15: 1791.77 | F15: 1764.78 | G15: 1743.12 | H15: 1840.42 | I15: 1862.08 | J15: 1889.07 | K15: 1835.1 | L15: 1786.45 | M15: 1.16972
A16: 6 | B16: APLAPOLLO | C16: 1062.75 | D16: 1055.65 | E16: 1037.40 | F16: 1012.05 | G16: 993.80 | H16: 1081.00 | I16: 1099.25 | J16: 1124.60 | K16: 1073.9 | L16: 1030.3 | M16: 3.95797
A17: 7 | B17: AUBANK | C17: 1166.7 | D17: 1177.25 | E17: 1147.50 | F17: 1128.30 | G17: 1098.55 | H17: 1196.45 | I17: 1226.20 | J17: 1245.40 | K17: 1207 | L17: 1158.05 | M17: 6.36284
A18: 8 | B18: AARTIDRUGS | C18: 635.55 | D18: 637.82 | E18: 632.28 | F18: 629.02 | G18: 623.48 | H18: 641.08 | I18: 646.62 | J18: 649.88 | K18: 643.35 | L18: 634.55 | M18: 2.02903
A19: 9 | B19: AARTIIND | C19: 1235.65 | D19: 1233.03 | E19: 1223.07 | F19: 1210.48 | G19: 1200.52 | H19: 1245.62 | I19: 1255.58 | J19: 1268.17 | K19: 1243 | L19: 1220.45 | M19: 1.97379
A20: 10 | B20: AAVAS | C20: 2253.7 | D20: 2248.47 | E20: 2206.93 | F20: 2160.17 | G20: 2118.63 | H20: 2295.23 | I20: 2336.77 | J20: 2383.53 | K20: 2290 | L20: 2201.7 | M20: 1.37948
A21: 11 | B21: ABBOTINDIA | C21: 14352.55 | D21: 14437.02 | E21: 14185.58 | F21: 14018.62 | G21: 13767.18 | H21: 14603.98 | I21: 14855.42 | J21: 15022.38 | K21: 14688.45 | L21: 14270.05 | M21: 0.249
A22: 12 | B22: ADANIENT | C22: 843.5 | D22: 838.30 | E22: 814.20 | F22: 784.90 | G22: 760.80 | H22: 867.60 | I22: 891.70 | J22: 921.00 | K22: 862.4 | L22: 809 | M22: 121.18095
A23: 13 | B23: ADANIGREEN | C23: 1128.55 | D23: 1146.00 | E23: 1100.00 | F23: 1071.45 | G23: 1025.45 | H23: 1174.55 | I23: 1220.55 | J23: 1249.10 | K23: 1192 | L23: 1117.45 | M23: 6.78592
A24: 14 | B24: ADANIPORTS | C24: 704.3 | D24: 694.27 | E24: 677.18 | F24: 650.07 | G24: 632.98 | H24: 721.38 | I24: 738.47 | J24: 765.58 | K24: 711.35 | L24: 667.15 | M24: 185.9669
A25: 15 | B25: ATGL | C25: 500.4 | D25: 501.25 | E25: 494.25 | F25: 488.10 | G25: 481.10 | H25: 507.40 | I25: 514.40 | J25: 520.55 | K25: 508.25 | L25: 495.1 | M25: 11.89419
A26: 16 | B26: ADANITRANS | C26: 739.6 | D26: 744.37 | E26: 730.73 | F26: 721.87 | G26: 708.23 | H26: 753.23 | I26: 766.87 | J26: 775.73 | K26: 758 | L26: 735.5 | M26: 5.05499
A27: 17 | B27: ABCAPITAL | C27: 120.8 | D27: 122.17 | E27: 116.98 | F27: 113.17 | G27: 107.98 | H27: 125.98 | I27: 131.17 | J27: 134.98 | K27: 127.35 | L27: 118.35 | M27: 137.09277
A28: 18 | B28: ABFRL | C28: 182.35 | D28: 181.23 | E28: 177.47 | F28: 172.58 | G28: 168.82 | H28: 186.12 | I28: 189.88 | J28: 194.77 | K28: 185 | L28: 176.35 | M28: 56.18914
A29: 19 | B29: ADVENZYMES | C29: 360.3 | D29: 365.43 | E29: 353.87 | F29: 347.43 | G29: 335.87 | H29: 371.87 | I29: 383.43 | J29: 389.87 | K29: 377 | L29: 359 | M29: 2.38524
A30: 20 | B30: AEGISCHEM | C30: 303.75 | D30: 297.37 | E30: 288.48 | F30: 273.22 | G30: 264.33 | H30: 312.63 | I30: 321.52 | J30: 336.78 | K30: 306.25 | L30: 282.1 | M30: 5.31292
A31: 21 | B31: AFFLE | C31: 5196.2 | D31: 5248.55 | E31: 5107.10 | F31: 5018.00 | G31: 4876.55 | H31: 5337.65 | I31: 5479.10 | J31: 5568.20 | K31: 5390 | L31: 5159.45 | M31: 0.90652
A32: 22 | B32: AJANTPHARM | C32: 1750.05 | D32: 1748.10 | E32: 1736.20 | F32: 1722.35 | G32: 1710.45 | H32: 1761.95 | I32: 1773.85 | J32: 1787.70 | K32: 1760 | L32: 1734.25 | M32: 1.95857
A33: 23 | B33: AKZOINDIA | C33: 2154.65 | D33: 2159.83 | E33: 2129.67 | F33: 2104.68 | G33: 2074.52 | H33: 2184.82 | I33: 2214.98 | J33: 2239.97 | K33: 2190 | L33: 2134.85 | M33: 0.55636
A34: 24 | B34: ALEMBICLTD | C34: 102.65 | D34: 103.17 | E34: 101.63 | F34: 100.62 | G34: 99.08 | H34: 104.18 | I34: 105.72 | J34: 106.73 | K34: 104.7 | L34: 102.15 | M34: 3.20357
A35: 25 | B35: APLLTD | C35: 897.35 | D35: 893.90 | E35: 884.45 | F35: 871.55 | G35: 862.10 | H35: 906.80 | I35: 916.25 | J35: 929.15 | K35: 903.35 | L35: 881 | M35: 3.12518
A36: 26 | B36: ALKEM | C36: 2733.5 | D36: 2747.35 | E36: 2706.20 | F36: 2678.90 | G36: 2637.75 | H36: 2774.65 | I36: 2815.80 | J36: 2843.10 | K36: 2788.5 | L36: 2720.05 | M36: 1.35048
A37: 27 | B37: ALKYLAMINE | C37: 5132.05 | D37: 5095.72 | E37: 5049.33 | F37: 4966.62 | G37: 4920.23 | H37: 5178.43 | I37: 5224.82 | J37: 5307.53 | K37: 5142.1 | L37: 5013 | M37: 0.26266
A38: 28 | B38: ALOKINDS | C38: 20.05 | D38: 20.10 | E38: 19.90 | F38: 19.75 | G38: 19.55 | H38: 20.25 | I38: 20.45 | J38: 20.60 | K38: 20.3 | L38: 19.95 | M38: 67.99556
A39: 29 | B39: AMARAJABAT | C39: 890.35 | D39: 889.62 | E39: 879.58 | F39: 868.82 | G39: 858.78 | H39: 900.38 | I39: 910.42 | J39: 921.18 | K39: 899.65 | L39: 878.85 | M39: 15.08314
A40: 30 | B40: AMBER | C40: 3235.85 | D40: 3221.95 | E40: 3173.90 | F40: 3111.95 | G40: 3063.90 | H40: 3283.90 | I40: 3331.95 | J40: 3393.90 | K40: 3270 | L40: 3160 | M40: 1.0872
A41: 31 | B41: AMBUJACEM | C41: 279.7 | D41: 277.48 | E41: 273.37 | F41: 267.03 | G41: 262.92 | H41: 283.82 | I41: 287.93 | J41: 294.27 | K41: 281.6 | L41: 271.15 | M41: 94.36339
A42: 32 | B42: APOLLOHOSP | C42: 3091.35 | D42: 3096.40 | E42: 3052.85 | F42: 3014.35 | G42: 2970.80 | H42: 3134.90 | I42: 3178.45 | J42: 3216.95 | K42: 3139.95 | L42: 3057.9 | M42: 8.19639
A43: 33 | B43: APOLLOTYRE | C43: 241.35 | D43: 241.53 | E43: 239.32 | F43: 237.28 | G43: 235.07 | H43: 243.57 | I43: 245.78 | J43: 247.82 | K43: 243.75 | L43: 239.5 | M43: 66.7869
A44: 34 | B44: ASHOKLEY | C44: 131.15 | D44: 130.05 | E44: 128.40 | F44: 125.65 | G44: 124.00 | H44: 132.80 | I44: 134.45 | J44: 137.20 | K44: 131.7 | L44: 127.3 | M44: 240.88432
A45: 35 | B45: ASHOKA | C45: 113.3 | D45: 113.37 | E45: 110.93 | F45: 108.57 | G45: 106.13 | H45: 115.73 | I45: 118.17 | J45: 120.53 | K45: 115.8 | L45: 111 | M45: 8.94987
A46: 36 | B46: ASIANPAINT | C46: 2373.75 | D46: 2365.40 | E46: 2344.55 | F46: 2315.35 | G46: 2294.50 | H46: 2394.60 | I46: 2415.45 | J46: 2444.65 | K46: 2386.25 | L46: 2336.2 | M46: 28.39515
A47: 37 | B47: ASTERDM | C47: 149.35 | D47: 150.28 | E47: 146.57 | F47: 143.78 | G47: 140.07 | H47: 153.07 | I47: 156.78 | J47: 159.57 | K47: 154 | L47: 147.5 | M47: 7.29877
A48: 38 | B48: ASTRAZEN | C48: 3505.6 | D48: 3513.82 | E48: 3491.78 | F48: 3477.97 | G48: 3455.93 | H48: 3527.63 | I48: 3549.67 | J48: 3563.48 | K48: 3535.85 | L48: 3500 | M48: 0.15028
A49: 39 | B49: ASTRAL | C49: 2116.75 | D49: 2108.92 | E49: 2087.83 | F49: 2058.92 | G49: 2037.83 | H49: 2137.83 | I49: 2158.92 | J49: 2187.83 | K49: 2130 | L49: 2080 | M49: 1.99252
A50: 40 | B50: ATUL | C50: 6605.75 | D50: 6619.17 | E50: 6511.73 | F50: 6417.72 | G50: 6310.28 | H50: 6713.18 | I50: 6820.62 | J50: 6914.63 | K50: 6726.6 | L50: 6525.15 | M50: 0.29414
A51: 41 | B51: AUROPHARMA | C51: 863.25 | D51: 864.93 | E51: 854.67 | F51: 846.08 | G51: 835.82 | H51: 873.52 | I51: 883.78 | J51: 892.37 | K51: 875.2 | L51: 856.35 | M51: 25.79512
A52: 42 | B52: AVANTIFEED | C52: 474.3 | D52: 478.40 | E52: 467.90 | F52: 461.50 | G52: 451.00 | H52: 484.80 | I52: 495.30 | J52: 501.70 | K52: 488.9 | L52: 472 | M52: 3.27595
A53: 43 | B53: DMART | C53: 3089.2 | D53: 3111.68 | E53: 3047.52 | F53: 3005.83 | G53: 2941.67 | H53: 3153.37 | I53: 3217.53 | J53: 3259.22 | K53: 3175.85 | L53: 3070 | M53: 4.05664
A54: 44 | B54: AXISBANK | C54: 770.65 | D54: 772.10 | E54: 760.70 | F54: 750.75 | G54: 739.35 | H54: 782.05 | I54: 793.45 | J54: 803.40 | K54: 783.5 | L54: 762.15 | M54: 266.35119
A55: 45 | B55: BASF | C55: 2005.85 | D55: 2003.03 | E55: 1981.07 | F55: 1956.28 | G55: 1934.32 | H55: 2027.82 | I55: 2049.78 | J55: 2074.57 | K55: 2025 | L55: 1978.25 | M55: 0.20104
A56: 46 | B56: BEML | C56: 1070.3 | D56: 1051.93 | E56: 1013.87 | F56: 957.43 | G56: 919.37 | H56: 1108.37 | I56: 1146.43 | J56: 1202.87 | K56: 1090 | L56: 995.5 | M56: 28.25075
A57: 47 | B57: BSE | C57: 581.5 | D57: 584.55 | E57: 577.05 | F57: 572.60 | G57: 565.10 | H57: 589.00 | I57: 596.50 | J57: 600.95 | K57: 592.05 | L57: 580.1 | M57: 2.88713
A58: 48 | B58: BAJAJ-AUTO | C58: 3944.8 | D58: 3944.95 | E58: 3909.90 | F58: 3875.00 | G58: 3839.95 | H58: 3979.85 | I58: 4014.90 | J58: 4049.80 | K58: 3980 | L58: 3910.05 | M58: 6.32973
A59: 49 | B59: BAJAJCON | C59: 253.6 | D59: 254.08 | E59: 249.52 | F59: 245.43 | G59: 240.87 | H59: 258.17 | I59: 262.73 | J59: 266.82 | K59: 258.65 | L59: 250 | M59: 14.68668
A60: 50 | B60: BAJAJELEC | C60: 992.55 | D60: 994.25 | E60: 963.50 | F60: 934.45 | G60: 903.70 | H60: 1023.30 | I60: 1054.05 | J60: 1083.10 | K60: 1025 | L60: 965.2 | M60: 4.15435
A61: 51 | B61: BAJFINANCE | C61: 5529.95 | D61: 5553.75 | E61: 5487.55 | F61: 5445.15 | G61: 5378.95 | H61: 5596.15 | I61: 5662.35 | J61: 5704.75 | K61: 5619.95 | L61: 5511.35 | M61: 15.84595
A62: 52 | B62: BAJAJFINSV | C62: 10264.45 | D62: 10258.00 | E62: 10138.05 | F62: 10011.65 | G62: 9891.70 | H62: 10384.40 | I62: 10504.35 | J62: 10630.75 | K62: 10377.95 | L62: 10131.6 | M62: 3.54802
A63: 53 | B63: BAJAJHLDNG | C63: 3718.2 | D63: 3705.45 | E63: 3653.75 | F63: 3589.30 | G63: 3537.60 | H63: 3769.90 | I63: 3821.60 | J63: 3886.05 | K63: 3757.15 | L63: 3641 | M63: 0.51595
A64: 54 | B64: BALKRISIND | C64: 1580.35 | D64: 1588.10 | E64: 1566.25 | F64: 1552.15 | G64: 1530.30 | H64: 1602.20 | I64: 1624.05 | J64: 1638.15 | K64: 1609.95 | L64: 1574 | M64: 6.97534
A65: 55 | B65: BALMLAWRIE | C65: 122.6 | D65: 121.50 | E65: 118.60 | F65: 114.60 | G65: 111.70 | H65: 125.50 | I65: 128.40 | J65: 132.40 | K65: 124.4 | L65: 117.5 | M65: 15.75965
A66: 56 | B66: BALRAMCHIN | C66: 177.2 | D66: 178.73 | E66: 175.47 | F66: 173.73 | G66: 170.47 | H66: 180.47 | I66: 183.73 | J66: 185.47 | K66: 182 | L66: 177 | M66: 8.86127
A67: 57 | B67: BANDHANBNK | C67: 342.2 | D67: 342.15 | E67: 337.55 | F67: 332.90 | G67: 328.30 | H67: 346.80 | I67: 351.40 | J67: 356.05 | K67: 346.75 | L67: 337.5 | M67: 76.41813
A68: 58 | B68: BANKBARODA | C68: 89.95 | D68: 89.87 | E68: 89.08 | F68: 88.22 | G68: 87.43 | H68: 90.73 | I68: 91.52 | J68: 92.38 | K68: 90.65 | L68: 89 | M68: 525.00068
A69: 59 | B69: BANKINDIA | C69: 86.5 | D69: 87.42 | E69: 85.13 | F69: 83.77 | G69: 81.48 | H69: 88.78 | I69: 91.07 | J69: 92.43 | K69: 89.7 | L69: 86.05 | M69: 98.56511
A70: 60 | B70: MAHABANK | C70: 25.75 | D70: 25.33 | E70: 24.92 | F70: 24.08 | G70: 23.67 | H70: 26.17 | I70: 26.58 | J70: 27.42 | K70: 25.75 | L70: 24.5 | M70: 310.66051
A71: 61 | B71: BATAINDIA | C71: 1482.6 | D71: 1482.40 | E71: 1470.20 | F71: 1457.80 | G71: 1445.60 | H71: 1494.80 | I71: 1507.00 | J71: 1519.40 | K71: 1494.6 | L71: 1470 | M71: 5.31883
A72: 62 | B72: BAYERCROP | C72: 5138.6 | D72: 5155.57 | E72: 5074.13 | F72: 5009.67 | G72: 4928.23 | H72: 5220.03 | I72: 5301.47 | J72: 5365.93 | K72: 5237 | L72: 5091.1 | M72: 0.31916
A73: 63 | B73: BERGEPAINT | C73: 722.9 | D73: 723.23 | E73: 715.37 | F73: 707.83 | G73: 699.97 | H73: 730.77 | I73: 738.63 | J73: 746.17 | K73: 731.1 | L73: 715.7 | M73: 12.19033
A74: 64 | B74: BDL | C74: 356.4 | D74: 355.30 | E74: 350.60 | F74: 344.80 | G74: 340.10 | H74: 361.10 | I74: 365.80 | J74: 371.60 | K74: 360 | L74: 349.5 | M74: 4.92662
A75: 65 | B75: BEL | C75: 141.7 | D75: 140.58 | E75: 138.17 | F75: 134.63 | G75: 132.22 | H75: 144.12 | I75: 146.53 | J75: 150.07 | K75: 143 | L75: 137.05 | M75: 197.7534
A76: 66 | B76: BHARATFORG | C76: 620.85 | D76: 616.28 | E76: 608.87 | F76: 596.88 | G76: 589.47 | H76: 628.27 | I76: 635.68 | J76: 647.67 | K76: 623.7 | L76: 604.3 | M76: 23.84168
A77: 67 | B77: BHEL | C77: 47.15 | D77: 46.18 | E77: 44.37 | F77: 41.58 | G77: 39.77 | H77: 48.97 | I77: 50.78 | J77: 53.57 | K77: 48 | L77: 43.4 | M77: 3286.16125
A78: 68 | B78: BPCL | C78: 461.55 | D78: 457.07 | E78: 446.33 | F78: 431.12 | G78: 420.38 | H78: 472.28 | I78: 483.02 | J78: 498.23 | K78: 467.8 | L78: 441.85 | M78: 188.10829
A79: 69 | B79: BHARATRAS | C79: 9991.3 | D79: 9960.27 | E79: 9920.28 | F79: 9849.27 | G79: 9809.28 | H79: 10031.28 | I79: 10071.27 | J79: 10142.28 | K79: 10000.25 | L79: 9889.25 | M79: 0.03144
A80: 70 | B80: BHARTIARTL | C80: 579.15 | D80: 580.22 | E80: 575.98 | F80: 572.82 | G80: 568.58 | H80: 583.38 | I80: 587.62 | J80: 590.78 | K80: 584.45 | L80: 577.05 | M80: 159.31134
A81: 71 | B81: BIOCON | C81: 397.8 | D81: 396.35 | E81: 392.00 | F81: 386.20 | G81: 381.85 | H81: 402.15 | I81: 406.50 | J81: 412.30 | K81: 400.7 | L81: 390.55 | M81: 43.5006
A82: 72 | B82: BIRLACORPN | C82: 863.8 | D82: 864.58 | E82: 857.22 | F82: 850.63 | G82: 843.27 | H82: 871.17 | I82: 878.53 | J82: 885.12 | K82: 871.95 | L82: 858 | M82: 0.76157
A83: 73 | B83: BSOFT | C83: 231.95 | D83: 233.82 | E83: 229.13 | F83: 226.32 | G83: 221.63 | H83: 236.63 | I83: 241.32 | J83: 244.13 | K83: 238.5 | L83: 231 | M83: 7.37716
A84: 74 | B84: BLISSGVS | C84: 174.4 | D84: 175.35 | E84: 173.05 | F84: 171.70 | G84: 169.40 | H84: 176.70 | I84: 179.00 | J84: 180.35 | K84: 177.65 | L84: 174 | M84: 6.91132
A85: 75 | B85: BLUEDART | C85: 4722.65 | D85: 4726.98 | E85: 4679.37 | F85: 4636.08 | G85: 4588.47 | H85: 4770.27 | I85: 4817.88 | J85: 4861.17 | K85: 4774.6 | L85: 4683.7 | M85: 0.17832
A86: 76 | B86: BLUESTARCO | C86: 840.05 | D86: 835.72 | E86: 827.33 | F86: 814.62 | G86: 806.23 | H86: 848.43 | I86: 856.82 | J86: 869.53 | K86: 844.1 | L86: 823 | M86: 1.32923
A87: 77 | B87: BBTC | C87: 1178.2 | D87: 1181.38 | E87: 1162.82 | F87: 1147.43 | G87: 1128.87 | H87: 1196.77 | I87: 1215.33 | J87: 1230.72 | K87: 1199.95 | L87: 1166 | M87: 0.4416
A88: 78 | B88: BOMDYEING | C88: 76.15 | D88: 76.30 | E88: 75.15 | F88: 74.15 | G88: 73.00 | H88: 77.30 | I88: 78.45 | J88: 79.45 | K88: 77.45 | L88: 75.3 | M88: 20.68169
A89: 79 | B89: BOSCHLTD | C89: 15109.05 | D89: 15105.35 | E89: 14923.70 | F89: 14738.35 | G89: 14556.70 | H89: 15290.70 | I89: 15472.35 | J89: 15657.70 | K89: 15287 | L89: 14920 | M89: 0.86192
A90: 80 | B90: BRIGADE | C90: 292 | D90: 292.23 | E90: 288.97 | F90: 285.93 | G90: 282.67 | H90: 295.27 | I90: 298.53 | J90: 301.57 | K90: 295.5 | L90: 289.2 | M90: 2.15166
A91: 81 | B91: BRITANNIA | C91: 3405 | D91: 3401.77 | E91: 3377.83 | F91: 3350.67 | G91: 3326.73 | H91: 3428.93 | I91: 3452.87 | J91: 3480.03 | K91: 3425.7 | L91: 3374.6 | M91: 5.86357
A92: 82 | B92: CARERATING | C92: 474.85 | D92: 475.48 | E92: 471.97 | F92: 469.08 | G92: 465.57 | H92: 478.37 | I92: 481.88 | J92: 484.77 | K92: 479 | L92: 472.6 | M92: 1.24752
A93: 83 | B93: CCL | C93: 238.8 | D93: 239.30 | E93: 236.90 | F93: 235.00 | G93: 232.60 | H93: 241.20 | I93: 243.60 | J93: 245.50 | K93: 241.7 | L93: 237.4 | M93: 2.18087
A94: 84 | B94: CESC | C94: 613.4 | D94: 610.93 | E94: 603.92 | F94: 594.43 | G94: 587.42 | H94: 620.42 | I94: 627.43 | J94: 636.92 | K94: 617.95 | L94: 601.45 | M94: 3.8059
A95: 85 | B95: CRISIL | C95: 1966.7 | D95: 1966.02 | E95: 1952.03 | F95: 1937.37 | G95: 1923.38 | H95: 1980.68 | I95: 1994.67 | J95: 2009.33 | K95: 1980 | L95: 1951.35 | M95: 0.2454
A96: 86 | B96: CSBBANK | C96: 227.85 | D96: 228.98 | E96: 226.47 | F96: 225.08 | G96: 222.57 | H96: 230.37 | I96: 232.88 | J96: 234.27 | K96: 231.5 | L96: 227.6 | M96: 2.16696
A97: 87 | B97: CADILAHC | C97: 438.05 | D97: 439.53 | E97: 434.67 | F97: 431.28 | G97: 426.42 | H97: 442.92 | I97: 447.78 | J97: 451.17 | K97: 444.4 | L97: 436.15 | M97: 31.41003
A98: 88 | B98: CANFINHOME | C98: 489.3 | D98: 496.97 | E98: 480.68 | F98: 472.07 | G98: 455.78 | H98: 505.58 | I98: 521.87 | J98: 530.48 | K98: 513.25 | L98: 488.35 | M98: 5.99512
A99: 89 | B99: CANBK | C99: 163.5 | D99: 163.93 | E99: 161.97 | F99: 160.43 | G99: 158.47 | H99: 165.47 | I99: 167.43 | J99: 168.97 | K99: 165.9 | L99: 162.4 | M99: 168.49604
A100: 90 | B100: CAPLIPOINT | C100: 465.45 | D100: 467.27 | E100: 461.43 | F100: 457.42 | G100: 451.58 | H100: 471.28 | I100: 477.12 | J100: 481.13 | K100: 473.1 | L100: 463.25 | M100: 1.03124
A101: 91 | B101: CGCL | C101: 366.1 | D101: 360.08 | E101: 350.07 | F101: 334.03 | G101: 324.02 | H101: 376.12 | I101: 386.13 | J101: 402.17 | K101: 370.1 | L101: 344.05 | M101: 2.15067
A102: 92 | B102: CARBORUNIV | C102: 505.65 | D102: 510.70 | E102: 497.90 | F102: 490.15 | G102: 477.35 | H102: 518.45 | I102: 531.25 | J102: 539.00 | K102: 523.5 | L102: 502.95 | M102: 2.46853
A103: 93 | B103: CASTROLIND | C103: 128.25 | D103: 127.42 | E103: 126.33 | F103: 124.42 | G103: 123.33 | H103: 129.33 | I103: 130.42 | J103: 132.33 | K103: 128.5 | L103: 125.5 | M103: 14.42915
A104: 94 | B104: CEATLTD | C104: 1657 | D104: 1636.67 | E104: 1606.33 | F104: 1555.67 | G104: 1525.33 | H104: 1687.33 | I104: 1717.67 | J104: 1768.33 | K104: 1667 | L104: 1586 | M104: 3.65628
A105: 95 | B105: CENTRALBK | C105: 19.65 | D105: 19.52 | E105: 19.38 | F105: 19.12 | G105: 18.98 | H105: 19.78 | I105: 19.92 | J105: 20.18 | K105: 19.65 | L105: 19.25 | M105: 44.60161
A106: 96 | B106: CDSL | C106: 619.45 | D106: 622.72 | E106: 612.93 | F106: 606.42 | G106: 596.63 | H106: 629.23 | I106: 639.02 | J106: 645.53 | K106: 632.5 | L106: 616.2 | M106: 12.01528
A107: 97 | B107: CENTURYPLY | C107: 308.9 | D107: 307.93 | E107: 305.87 | F107: 302.83 | G107: 300.77 | H107: 310.97 | I107: 313.03 | J107: 316.07 | K107: 310 | L107: 304.9 | M107: 1.58787
A108: 98 | B108: CENTURYTEX | C108: 494.3 | D108: 492.73 | E108: 487.57 | F108: 480.83 | G108: 475.67 | H108: 499.47 | I108: 504.63 | J108: 511.37 | K108: 497.9 | L108: 486 | M108: 6.11728
A109: 99 | B109: CERA | C109: 3954.55 | D109: 3953.85 | E109: 3907.80 | F109: 3861.05 | G109: 3815.00 | H109: 4000.60 | I109: 4046.65 | J109: 4093.40 | K109: 3999.9 | L109: 3907.1 | M109: 0.03958
A110: 100 | B110: CHALET | C110: 166.1 | D110: 167.18 | E110: 164.37 | F110: 162.63 | G110: 159.82 | H110: 168.92 | I110: 171.73 | J110: 173.47 | K110: 170 | L110: 165.45 | M110: 7.77907
A111: 101 | B111: CHAMBLFERT | C111: 244.1 | D111: 241.57 | E111: 234.78 | F111: 225.47 | G111: 218.68 | H111: 250.88 | I111: 257.67 | J111: 266.98 | K111: 248.35 | L111: 232.25 | M111: 21.1652
A112: 102 | B112: CHENNPETRO | C112: 99.65 | D112: 99.93 | E112: 96.97 | F112: 94.28 | G112: 91.32 | H112: 102.62 | I112: 105.58 | J112: 108.27 | K112: 102.9 | L112: 97.25 | M112: 21.79806
A113: 103 | B113: CHOLAHLDNG | C113: 607.1 | D113: 603.42 | E113: 591.88 | F113: 576.67 | G113: 565.13 | H113: 618.63 | I113: 630.17 | J113: 645.38 | K113: 614.95 | L113: 588.2 | M113: 1.47771
A114: 104 | B114: CHOLAFIN | C114: 526.05 | D114: 524.68 | E114: 511.37 | F114: 496.68 | G114: 483.37 | H114: 539.37 | I114: 552.68 | J114: 567.37 | K114: 538 | L114: 510 | M114: 62.24603
A115: 105 | B115: CIPLA | C115: 809.15 | D115: 804.53 | E115: 795.07 | F115: 780.98 | G115: 771.52 | H115: 818.62 | I115: 828.08 | J115: 842.17 | K115: 814 | L115: 790.45 | M115: 54.78169
A116: 106 | B116: CUB | C116: 167.5 | D116: 168.18 | E116: 166.07 | F116: 164.63 | G116: 162.52 | H116: 169.62 | I116: 171.73 | J116: 173.17 | K116: 170.3 | L116: 166.75 | M116: 55.6597
A117: 107 | B117: COALINDIA | C117: 156.1 | D117: 153.18 | E117: 148.67 | F117: 141.23 | G117: 136.72 | H117: 160.62 | I117: 165.13 | J117: 172.57 | K117: 157.7 | L117: 145.75 | M117: 855.80477
A118: 108 | B118: COCHINSHIP | C118: 382.3 | D118: 381.50 | E118: 376.20 | F118: 370.10 | G118: 364.80 | H118: 387.60 | I118: 392.90 | J118: 399.00 | K118: 386.8 | L118: 375.4 | M118: 7.57872
A119: 109 | B119: COFORGE | C119: 2516.9 | D119: 2528.30 | E119: 2495.60 | F119: 2474.30 | G119: 2441.60 | H119: 2549.60 | I119: 2582.30 | J119: 2603.60 | K119: 2561 | L119: 2507 | M119: 1.32411
A120: 110 | B120: COLPAL | C120: 1570.9 | D120: 1563.53 | E120: 1550.47 | F120: 1530.03 | G120: 1516.97 | H120: 1583.97 | I120: 1597.03 | J120: 1617.47 | K120: 1576.6 | L120: 1543.1 | M120: 7.58926
A121: 111 | B121: CONCOR | C121: 575.2 | D121: 581.22 | E121: 565.43 | F121: 555.67 | G121: 539.88 | H121: 590.98 | I121: 606.77 | J121: 616.53 | K121: 597 | L121: 571.45 | M121: 42.00415
A122: 112 | B122: COROMANDEL | C122: 779.1 | D122: 776.83 | E122: 766.67 | F122: 754.23 | G122: 744.07 | H122: 789.27 | I122: 799.43 | J122: 811.87 | K122: 787 | L122: 764.4 | M122: 3.56962
A123: 113 | B123: CREDITACC | C123: 694.25 | D123: 696.08 | E123: 689.17 | F123: 684.08 | G123: 677.17 | H123: 701.17 | I123: 708.08 | J123: 713.17 | K123: 703 | L123: 691 | M123: 0.52147
A124: 114 | B124: CROMPTON | C124: 383.6 | D124: 384.08 | E124: 379.52 | F124: 375.43 | G124: 370.87 | H124: 388.17 | I124: 392.73 | J124: 396.82 | K124: 388.65 | L124: 380 | M124: 24.36161
A125: 115 | B125: CUMMINSIND | C125: 805.1 | D125: 806.37 | E125: 790.73 | F125: 776.37 | G125: 760.73 | H125: 820.73 | I125: 836.37 | J125: 850.73 | K125: 822 | L125: 792 | M125: 25.07715
A126: 116 | B126: CYIENT | C126: 656.7 | D126: 657.17 | E126: 650.78 | F126: 644.87 | G126: 638.48 | H126: 663.08 | I126: 669.47 | J126: 675.38 | K126: 663.55 | L126: 651.25 | M126: 4.55006
A127: 117 | B127: DBCORP | C127: 97.85 | D127: 97.98 | E127: 96.47 | F127: 95.08 | G127: 93.57 | H127: 99.37 | I127: 100.88 | J127: 102.27 | K127: 99.5 | L127: 96.6 | M127: 3.30617
A128: 118 | B128: DCBBANK | C128: 117.8 | D128: 117.40 | E128: 115.90 | F128: 114.00 | G128: 112.50 | H128: 119.30 | I128: 120.80 | J128: 122.70 | K128: 118.9 | L128: 115.5 | M128: 23.44006
A129: 119 | B129: DCMSHRIRAM | C129: 472.35 | D129: 474.30 | E129: 466.05 | F129: 459.75 | G129: 451.50 | H129: 480.60 | I129: 488.85 | J129: 495.15 | K129: 482.55 | L129: 468 | M129: 1.31064
A130: 120 | B130: DLF | C130: 314.7 | D130: 315.68 | E130: 312.37 | F130: 310.03 | G130: 306.72 | H130: 318.02 | I130: 321.33 | J130: 323.67 | K130: 319 | L130: 313.35 | M130: 100.43934
A131: 121 | B131: DABUR | C131: 509.05 | D131: 508.22 | E131: 505.88 | F131: 502.72 | G131: 500.38 | H131: 511.38 | I131: 513.72 | J131: 516.88 | K131: 510.55 | L131: 505.05 | M131: 44.92656
A132: 122 | B132: DALBHARAT | C132: 1444.45 | D132: 1453.80 | E132: 1422.60 | F132: 1400.75 | G132: 1369.55 | H132: 1475.65 | I132: 1506.85 | J132: 1528.70 | K132: 1485 | L132: 1431.95 | M132: 2.03741
A133: 123 | B133: DEEPAKNTR | C133: 1395.9 | D133: 1380.30 | E133: 1350.60 | F133: 1305.30 | G133: 1275.60 | H133: 1425.60 | I133: 1455.30 | J133: 1500.60 | K133: 1410 | L133: 1335 | M133: 7.31085
A134: 124 | B134: DELTACORP | C134: 151.45 | D134: 152.00 | E134: 150.00 | F134: 148.55 | G134: 146.55 | H134: 153.45 | I134: 155.45 | J134: 156.90 | K134: 154 | L134: 150.55 | M134: 9.81237
A135: 125 | B135: DHANI | C135: 363.65 | D135: 362.95 | E135: 355.95 | F135: 348.25 | G135: 341.25 | H135: 370.65 | I135: 377.65 | J135: 385.35 | K135: 369.95 | L135: 355.25 | M135: 9.28468
A136: 126 | B136: DHANUKA | C136: 729.65 | D136: 732.22 | E136: 722.43 | F136: 715.22 | G136: 705.43 | H136: 739.43 | I136: 749.22 | J136: 756.43 | K136: 742 | L136: 725 | M136: 0.6857
A137: 127 | B137: DBL | C137: 667.1 | D137: 663.12 | E137: 652.23 | F137: 637.37 | G137: 626.48 | H137: 677.98 | I137: 688.87 | J137: 703.73 | K137: 674 | L137: 648.25 | M137: 3.59326
A138: 128 | B138: DISHTV | C138: 11.55 | D138: 11.60 | E138: 11.40 | F138: 11.25 | G138: 11.05 | H138: 11.75 | I138: 11.95 | J138: 12.10 | K138: 11.8 | L138: 11.45 | M138: 49.75875
A139: 129 | B139: DCAL | C139: 120.6 | D139: 120.83 | E139: 119.67 | F139: 118.73 | G139: 117.57 | H139: 121.77 | I139: 122.93 | J139: 123.87 | K139: 122 | L139: 119.9 | M139: 2.35618
A140: 130 | B140: DIVISLAB | C140: 3440.05 | D140: 3461.85 | E140: 3410.20 | F140: 3380.35 | G140: 3328.70 | H140: 3491.70 | I140: 3543.35 | J140: 3573.20 | K140: 3513.5 | L140: 3432 | M140: 8.76984
A141: 131 | B141: DIXON | C141: 20231.55 | D141: 20218.38 | E141: 19988.77 | F141: 19745.98 | G141: 19516.37 | H141: 20461.17 | I141: 20690.78 | J141: 20933.57 | K141: 20448 | L141: 19975.6 | M141: 0.72168
A142: 132 | B142: LALPATHLAB | C142: 2305.25 | D142: 2310.23 | E142: 2281.02 | F142: 2256.78 | G142: 2227.57 | H142: 2334.47 | I142: 2363.68 | J142: 2387.92 | K142: 2339.45 | L142: 2286 | M142: 2.32153
A143: 133 | B143: DRREDDY | C143: 4480.15 | D143: 4497.10 | E143: 4404.20 | F143: 4328.25 | G143: 4235.35 | H143: 4573.05 | I143: 4665.95 | J143: 4741.90 | K143: 4590 | L143: 4421.15 | M143: 17.06375
A144: 134 | B144: EIDPARRY | C144: 321.75 | D144: 321.45 | E144: 318.40 | F144: 315.05 | G144: 312.00 | H144: 324.80 | I144: 327.85 | J144: 331.20 | K144: 324.5 | L144: 318.1 | M144: 2.27651
A145: 135 | B145: EIHOTEL | C145: 97.25 | D145: 97.78 | E145: 96.47 | F145: 95.68 | G145: 94.37 | H145: 98.57 | I145: 99.88 | J145: 100.67 | K145: 99.1 | L145: 97 | M145: 6.91993
A146: 136 | B146: EPL | C146: 226.05 | D146: 225.05 | E146: 222.25 | F146: 218.45 | G146: 215.65 | H146: 228.85 | I146: 231.65 | J146: 235.45 | K146: 227.85 | L146: 221.25 | M146: 5.35725
A147: 137 | B147: ESABINDIA | C147: 1820.75 | D147: 1853.92 | E147: 1757.83 | F147: 1694.92 | G147: 1598.83 | H147: 1916.83 | I147: 2012.92 | J147: 2075.83 | K147: 1950 | L147: 1791 | M147: 0.71371
A148: 138 | B148: EDELWEISS | C148: 70.35 | D148: 69.75 | E148: 67.15 | F148: 63.95 | G148: 61.35 | H148: 72.95 | I148: 75.55 | J148: 78.75 | K148: 72.35 | L148: 66.55 | M148: 121.33979
A149: 139 | B149: EICHERMOT | C149: 2551.95 | D149: 2542.63 | E149: 2526.32 | F149: 2500.68 | G149: 2484.37 | H149: 2568.27 | I149: 2584.58 | J149: 2610.22 | K149: 2558.95 | L149: 2517 | M149: 13.5182
A150: 140 | B150: ELGIEQUIP | C150: 181.05 | D150: 177.35 | E150: 171.70 | F150: 162.35 | G150: 156.70 | H150: 186.70 | I150: 192.35 | J150: 201.70 | K150: 183 | L150: 168 | M150: 6.53058
A151: 141 | B151: EMAMILTD | C151: 463.2 | D151: 465.45 | E151: 458.00 | F151: 452.80 | G151: 445.35 | H151: 470.65 | I151: 478.10 | J151: 483.30 | K151: 472.9 | L151: 460.25 | M151: 4.90072
A152: 142 | B152: ENDURANCE | C152: 1439.2 | D152: 1415.38 | E152: 1380.77 | F152: 1322.33 | G152: 1287.72 | H152: 1473.82 | I152: 1508.43 | J152: 1566.87 | K152: 1450 | L152: 1356.95 | M152: 1.19492
A153: 143 | B153: ENGINERSIN | C153: 75.4 | D153: 75.18 | E153: 73.77 | F153: 72.13 | G153: 70.72 | H153: 76.82 | I153: 78.23 | J153: 79.87 | K153: 76.6 | L153: 73.55 | M153: 78.04508
A154: 144 | B154: EQUITAS | C154: 90.45 | D154: 90.72 | E154: 86.73 | F154: 83.02 | G154: 79.03 | H154: 94.43 | I154: 98.42 | J154: 102.13 | K154: 94.7 | L154: 87 | M154: 77.19613
A155: 145 | B155: ERIS | C155: 591.7 | D155: 593.90 | E155: 582.80 | F155: 573.90 | G155: 562.80 | H155: 602.80 | I155: 613.90 | J155: 622.80 | K155: 605 | L155: 585 | M155: 1.25456
A156: 146 | B156: ESCORTS | C156: 1309.05 | D156: 1316.43 | E156: 1292.87 | F156: 1276.68 | G156: 1253.12 | H156: 1332.62 | I156: 1356.18 | J156: 1372.37 | K156: 1340 | L156: 1300.25 | M156: 8.77139
A157: 147 | B157: EXIDEIND | C157: 207.95 | D157: 207.20 | E157: 204.85 | F157: 201.75 | G157: 199.40 | H157: 210.30 | I157: 212.65 | J157: 215.75 | K157: 209.55 | L157: 204.1 | M157: 72.62273
A158: 148 | B158: FDC | C158: 281.1 | D158: 282.43 | E158: 278.67 | F158: 276.23 | G158: 272.47 | H158: 284.87 | I158: 288.63 | J158: 291.07 | K158: 286.2 | L158: 280 | M158: 1.50463
A159: 149 | B159: FEDERALBNK | C159: 86.25 | D159: 86.65 | E159: 85.15 | F159: 84.05 | G159: 82.55 | H159: 87.75 | I159: 89.25 | J159: 90.35 | K159: 88.15 | L159: 85.55 | M159: 317.5095
A160: 150 | B160: FINEORG | C160: 2336.65 | D160: 2328.23 | E160: 2288.47 | F160: 2240.28 | G160: 2200.52 | H160: 2376.42 | I160: 2416.18 | J160: 2464.37 | K160: 2368 | L160: 2280.05 | M160: 0.4775
A161: 151 | B161: FINCABLES | C161: 408.8 | D161: 405.63 | E161: 395.27 | F161: 381.73 | G161: 371.37 | H161: 419.17 | I161: 429.53 | J161: 443.07 | K161: 416 | L161: 392.1 | M161: 10.19166
A162: 152 | B162: FINPIPE | C162: 641.75 | D162: 631.48 | E162: 618.27 | F162: 594.78 | G162: 581.57 | H162: 654.97 | I162: 668.18 | J162: 691.67 | K162: 644.7 | L162: 608 | M162: 5.48855
A163: 153 | B163: FSL | C163: 102.1 | D163: 102.35 | E163: 101.00 | F163: 99.90 | G163: 98.55 | H163: 103.45 | I163: 104.80 | J163: 105.90 | K163: 103.7 | L163: 101.25 | M163: 30.41316
A164: 154 | B164: FORTIS | C164: 159 | D164: 159.80 | E164: 157.70 | F164: 156.40 | G164: 154.30 | H164: 161.10 | I164: 163.20 | J164: 164.50 | K164: 161.9 | L164: 158.5 | M164: 18.89983
A165: 155 | B165: FCONSUMER | C165: 7.95 | D165: 7.97 | E165: 7.88 | F165: 7.82 | G165: 7.73 | H165: 8.03 | I165: 8.12 | J165: 8.18 | K165: 8.05 | L165: 7.9 | M165: 84.21108
A166: 156 | B166: FRETAIL | C166: 70.5 | D166: 70.33 | E166: 69.82 | F166: 69.13 | G166: 68.62 | H166: 71.02 | I166: 71.53 | J166: 72.22 | K166: 70.85 | L166: 69.65 | M166: 24.29217
A167: 157 | B167: GAIL | C167: 150.8 | D167: 149.93 | E167: 147.07 | F167: 143.33 | G167: 140.47 | H167: 153.67 | I167: 156.53 | J167: 160.27 | K167: 152.8 | L167: 146.2 | M167: 387.34458
A168: 158 | B168: GEPIL | C168: 278.85 | D168: 280.20 | E168: 276.00 | F168: 273.15 | G168: 268.95 | H168: 283.05 | I168: 287.25 | J168: 290.10 | K168: 284.4 | L168: 277.35 | M168: 1.36499
A169: 159 | B169: GHCL | C169: 215.7 | D169: 216.97 | E169: 213.18 | F169: 210.67 | G169: 206.88 | H169: 219.48 | I169: 223.27 | J169: 225.78 | K169: 220.75 | L169: 214.45 | M169: 2.24438
A170: 160 | B170: GMMPFAUDLR | C170: 4230.1 | D170: 4261.88 | E170: 4174.77 | F170: 4119.43 | G170: 4032.32 | H170: 4317.22 | I170: 4404.33 | J170: 4459.67 | K170: 4349 | L170: 4206.55 | M170: 0.49756
A171: 161 | B171: GMRINFRA | C171: 26.85 | D171: 26.60 | E171: 25.90 | F171: 24.95 | G171: 24.25 | H171: 27.55 | I171: 28.25 | J171: 29.20 | K171: 27.3 | L171: 25.65 | M171: 282.22476
A172: 162 | B172: GALAXYSURF | C172: 2201.2 | D172: 2205.82 | E172: 2171.63 | F172: 2142.07 | G172: 2107.88 | H172: 2235.38 | I172: 2269.57 | J172: 2299.13 | K172: 2240 | L172: 2176.25 | M172: 0.17185
A173: 163 | B173: GRSE | C173: 199.9 | D173: 200.53 | E173: 198.12 | F173: 196.33 | G173: 193.92 | H173: 202.32 | I173: 204.73 | J173: 206.52 | K173: 202.95 | L173: 198.75 | M173: 1.80101
A174: 164 | B174: GARFIBRES | C174: 2639.35 | D174: 2613.77 | E174: 2429.58 | F174: 2219.82 | G174: 2035.63 | H174: 2823.53 | I174: 3007.72 | J174: 3217.48 | K174: 2797.95 | L174: 2404 | M174: 0.64197
A175: 165 | B175: GICRE | C175: 198.45 | D175: 201.15 | E175: 192.80 | F175: 187.15 | G175: 178.80 | H175: 206.80 | I175: 215.15 | J175: 220.80 | K175: 209.5 | L175: 195.5 | M175: 24.61164
A176: 166 | B176: GILLETTE | C176: 5633.45 | D176: 5597.83 | E176: 5545.67 | F176: 5457.88 | G176: 5405.72 | H176: 5685.62 | I176: 5737.78 | J176: 5825.57 | K176: 5650 | L176: 5510.05 | M176: 0.09453
A177: 167 | B177: GLAXO | C177: 1474.7 | D177: 1469.10 | E177: 1455.70 | F177: 1436.70 | G177: 1423.30 | H177: 1488.10 | I177: 1501.50 | J177: 1520.50 | K177: 1482.5 | L177: 1450.1 | M177: 0.65907
A178: 168 | B178: GLENMARK | C178: 472.75 | D178: 473.12 | E178: 468.23 | F178: 463.72 | G178: 458.83 | H178: 477.63 | I178: 482.52 | J178: 487.03 | K178: 478 | L178: 468.6 | M178: 17.32202
A179: 169 | B179: GODFRYPHLP | C179: 908.3 | D179: 908.85 | E179: 902.75 | F179: 897.20 | G179: 891.10 | H179: 914.40 | I179: 920.50 | J179: 926.05 | K179: 914.95 | L179: 903.3 | M179: 0.44348
A180: 170 | B180: GODREJAGRO | C180: 483.95 | D180: 485.68 | E180: 480.27 | F180: 476.58 | G180: 471.17 | H180: 489.37 | I180: 494.78 | J180: 498.47 | K180: 491.1 | L180: 482 | M180: 1.51338
A181: 171 | B181: GODREJCP | C181: 696.4 | D181: 693.17 | E181: 687.33 | F181: 678.27 | G181: 672.43 | H181: 702.23 | I181: 708.07 | J181: 717.13 | K181: 699 | L181: 684.1 | M181: 19.52459
A182: 172 | B182: GODREJIND | C182: 445.15 | D182: 444.65 | E182: 440.30 | F182: 435.45 | G182: 431.10 | H182: 449.50 | I182: 453.85 | J182: 458.70 | K182: 449 | L182: 439.8 | M182: 2.66589
A183: 173 | B183: GODREJPROP | C183: 1550.35 | D183: 1538.83 | E183: 1513.02 | F183: 1475.68 | G183: 1449.87 | H183: 1576.17 | I183: 1601.98 | J183: 1639.32 | K183: 1564.65 | L183: 1501.5 | M183: 16.63938
A184: 174 | B184: GRANULES | C184: 326.55 | D184: 330.02 | E184: 322.18 | F184: 317.82 | G184: 309.98 | H184: 334.38 | I184: 342.22 | J184: 346.58 | K184: 337.85 | L184: 325.65 | M184: 21.76303
A185: 175 | B185: GRAPHITE | C185: 488.95 | D185: 487.30 | E185: 479.65 | F185: 470.35 | G185: 462.70 | H185: 496.60 | I185: 504.25 | J185: 513.55 | K185: 494.95 | L185: 478 | M185: 12.35669
A186: 176 | B186: GRASIM | C186: 1270.45 | D186: 1271.15 | E186: 1253.30 | F186: 1236.15 | G186: 1218.30 | H186: 1288.30 | I186: 1306.15 | J186: 1323.30 | K186: 1289 | L186: 1254 | M186: 19.42025
A187: 177 | B187: GESHIP | C187: 307.15 | D187: 304.62 | E187: 289.23 | F187: 271.32 | G187: 255.93 | H187: 322.53 | I187: 337.92 | J187: 355.83 | K187: 320 | L187: 286.7 | M187: 20.96852
A188: 178 | B188: GREAVESCOT | C188: 131.9 | D188: 130.10 | E188: 125.80 | F188: 119.70 | G188: 115.40 | H188: 136.20 | I188: 140.50 | J188: 146.60 | K188: 134.4 | L188: 124 | M188: 66.16715
A189: 179 | B189: GRINDWELL | C189: 882.7 | D189: 879.90 | E189: 869.85 | F189: 857.00 | G189: 846.95 | H189: 892.75 | I189: 902.80 | J189: 915.65 | K189: 889.95 | L189: 867.05 | M189: 0.47654
A190: 180 | B190: GUJALKALI | C190: 322.1 | D190: 320.88 | E190: 317.77 | F190: 313.43 | G190: 310.32 | H190: 325.22 | I190: 328.33 | J190: 332.67 | K190: 324 | L190: 316.55 | M190: 2.68567
A191: 181 | B191: GAEL | C191: 125.45 | D191: 126.22 | E191: 124.03 | F191: 122.62 | G191: 120.43 | H191: 127.63 | I191: 129.82 | J191: 131.23 | K191: 128.4 | L191: 124.8 | M191: 2.11881
A192: 182 | B192: FLUOROCHEM | C192: 578.7 | D192: 570.25 | E192: 548.50 | F192: 518.30 | G192: 496.55 | H192: 600.45 | I192: 622.20 | J192: 652.40 | K192: 592 | L192: 540.05 | M192: 2.98027
A193: 183 | B193: GUJGASLTD | C193: 496.45 | D193: 496.83 | E193: 492.67 | F193: 488.88 | G193: 484.72 | H193: 500.62 | I193: 504.78 | J193: 508.57 | K193: 501 | L193: 493.05 | M193: 10.30743
A194: 184 | B194: GMDCLTD | C194: 62.65 | D194: 62.07 | E194: 59.68 | F194: 56.72 | G194: 54.33 | H194: 65.03 | I194: 67.42 | J194: 70.38 | K194: 64.45 | L194: 59.1 | M194: 68.11816
A195: 185 | B195: GNFC | C195: 275.15 | D195: 271.87 | E195: 263.73 | F195: 252.32 | G195: 244.18 | H195: 283.28 | I195: 291.42 | J195: 302.83 | K195: 280 | L195: 260.45 | M195: 49.77519
A196: 186 | B196: GPPL | C196: 98.8 | D196: 98.77 | E196: 97.63 | F196: 96.47 | G196: 95.33 | H196: 99.93 | I196: 101.07 | J196: 102.23 | K196: 99.9 | L196: 97.6 | M196: 3.99955
A197: 187 | B197: GSFC | C197: 88.5 | D197: 87.32 | E197: 83.23 | F197: 77.97 | G197: 73.88 | H197: 92.58 | I197: 96.67 | J197: 101.93 | K197: 91.4 | L197: 82.05 | M197: 168.12887
A198: 188 | B198: GSPL | C198: 254 | D198: 252.08 | E198: 247.42 | F198: 240.83 | G198: 236.17 | H198: 258.67 | I198: 263.33 | J198: 269.92 | K198: 256.75 | L198: 245.5 | M198: 15.92718
A199: 189 | B199: GULFOILLUB | C199: 730.4 | D199: 727.18 | E199: 716.22 | F199: 702.03 | G199: 691.07 | H199: 741.37 | I199: 752.33 | J199: 766.52 | K199: 738.15 | L199: 713 | M199: 0.27498
A200: 190 | B200: HEG | C200: 1474.25 | D200: 1472.75 | E200: 1446.50 | F200: 1418.75 | G200: 1392.50 | H200: 1500.50 | I200: 1526.75 | J200: 1554.50 | K200: 1499 | L200: 1445 | M200: 3.02177
A201: 191 | B201: HCLTECH | C201: 929.25 | D201: 928.48 | E201: 922.92 | F201: 916.58 | G201: 911.02 | H201: 934.82 | I201: 940.38 | J201: 946.72 | K201: 934.05 | L201: 922.15 | M201: 62.34947
A202: 192 | B202: HDFCAMC | C202: 2951.95 | D202: 2948.98 | E202: 2932.97 | F202: 2913.98 | G202: 2897.97 | H202: 2967.97 | I202: 2983.98 | J202: 3002.97 | K202: 2965 | L202: 2930 | M202: 2.53631
A203: 193 | B203: HDFCBANK | C203: 1606.4 | D203: 1614.88 | E203: 1593.52 | F203: 1580.63 | G203: 1559.27 | H203: 1627.77 | I203: 1649.13 | J203: 1662.02 | K203: 1636.25 | L203: 1602 | M203: 100.54785
A204: 194 | B204: HDFCLIFE | C204: 733.5 | D204: 732.83 | E204: 721.67 | F204: 709.83 | G204: 698.67 | H204: 744.67 | I204: 755.83 | J204: 767.67 | K204: 744 | L204: 721 | M204: 56.35556
A205: 195 | B205: HFCL | C205: 29.8 | D205: 30.00 | E205: 29.40 | F205: 29.00 | G205: 28.40 | H205: 30.40 | I205: 31.00 | J205: 31.40 | K205: 30.6 | L205: 29.6 | M205: 70.03363
A206: 196 | B206: HATHWAY | C206: 30.05 | D206: 30.05 | E206: 29.75 | F206: 29.45 | G206: 29.15 | H206: 30.35 | I206: 30.65 | J206: 30.95 | K206: 30.35 | L206: 29.75 | M206: 3.31704
... 321 more rows

Sheet Bulk Deals
E6: Back To Main Page
A7: Subject : | B7: BULK DEAL | D7: =Main!B10 -> 2021-02-26
A9: Date | B9: Scrip code | C9: Scrip Name | D9: Client Name | E9: Buy / Sell | F9: Quantity Traded | G9: Trade Price / Wt.Avg.trade price | H9: Exchange
A10: 2021-02-25 | B10: 540615 | C10: 7NR | D10: RIDDHI PINAL SHAH | E10: SELL | F10: 100,000 | G10: 7 | H10: BSE
A11: 2021-02-25 | B11: 540615 | C11: 7NR | D11: QUMIN PHARMA PRIVATE LIMITED | E11: BUY | F11: 96,301 | G11: 7 | H11: BSE
A12: 2021-02-25 | B12: 540829 | C12: CHANDRIMA | D12: MOHIT DAYAMA | E12: BUY | F12: 7,475 | G12: 3.94 | H12: BSE
A13: 2021-02-25 | B13: 540829 | C13: CHANDRIMA | D13: MOHIT DAYAMA | E13: SELL | F13: 12,558 | G13: 4.1 | H13: BSE
A14: 2021-02-25 | B14: 542803 | C14: ELLORATRAD | D14: GAURAV CHANDRAKANT SHAH | E14: BUY | F14: 743 | G14: 116.7 | H14: BSE
A15: 2021-02-25 | B15: 542803 | C15: ELLORATRAD | D15: GAURAV CHANDRAKANT SHAH | E15: SELL | F15: 12,000 | G15: 116.76 | H15: BSE
A16: 2021-02-25 | B16: 542803 | C16: ELLORATRAD | D16: CHANDRIKABEN SAIJA | E16: SELL | F16: 8,000 | G16: 117.5 | H16: BSE
A17: 2021-02-25 | B17: 542803 | C17: ELLORATRAD | D17: VISHNUPRASAD SOMABHAI PATEL | E17: SELL | F17: 8,000 | G17: 117.55 | H17: BSE
A18: 2021-02-25 | B18: 539844 | C18: EQUITAS | D18: SETU SECURITIES PVT LTD | E18: BUY | F18: 2,288,665 | G18: 88.37 | H18: BSE
A19: 2021-02-25 | B19: 539844 | C19: EQUITAS | D19: SETU SECURITIES PVT LTD | E19: SELL | F19: 1,861,182 | G19: 89.27 | H19: BSE
A20: 2021-02-25 | B20: 539844 | C20: EQUITAS | D20: CDC GROUP PLC | E20: SELL | F20: 8,930,410 | G20: 88.23 | H20: BSE
A21: 2021-02-25 | B21: 532959 | C21: GAMMNINFRA | D21: ICICI BANK LIMITED | E21: SELL | F21: 24,232,537 | G21: 0.75 | H21: BSE
A22: 2021-02-25 | B22: 532959 | C22: GAMMNINFRA | D22: CONNECOR INVESTMENT ENTERPRISE LIMITED . | E22: BUY | F22: 21,900,000 | G22: 0.75 | H22: BSE
A23: 2021-02-25 | B23: 540936 | C23: GGL | D23: HANSABEN NITINBHAI CHAUHAN | E23: SELL | F23: 60,000 | G23: 61 | H23: BSE
A24: 2021-02-25 | B24: 540936 | C24: GGL | D24: SHAIKH ASRAFALI NURULHUDA | E24: SELL | F24: 83,912 | G24: 61.14 | H24: BSE
A25: 2021-02-25 | B25: 540936 | C25: GGL | D25: HIGHGROWTH VINCOM PRIVATE LIMITED | E25: SELL | F25: 159,000 | G25: 60.72 | H25: BSE
A26: 2021-02-25 | B26: 540936 | C26: GGL | D26: ARPIT PIYUSHBHAI SHAH | E26: SELL | F26: 164,500 | G26: 60.49 | H26: BSE
A27: 2021-02-25 | B27: 540936 | C27: GGL | D27: KALPESH RAJESHBHAI ZINZUVADIA | E27: SELL | F27: 164,500 | G27: 60.52 | H27: BSE
A28: 2021-02-25 | B28: 515147 | C28: HALDYNGL | D28: UNIFI AIF 2 | E28: SELL | F28: 368,255 | G28: 31.23 | H28: BSE
A29: 2021-02-25 | B29: 500184 | C29: HSCL | D29: BC INDIA INVESTMENTS | E29: SELL | F29: 25,987,834 | G29: 42.96 | H29: BSE
A30: 2021-02-25 | B30: 500184 | C30: HSCL | D30: PLUTUS WEALTH MANAGEMENT LLP | E30: BUY | F30: 9,781,191 | G30: 43.98 | H30: BSE
A31: 2021-02-25 | B31: 539692 | C31: IFINSER | D31: KAMAT MANASI AMIT | E31: SELL | F31: 22,264 | G31: 5.05 | H31: BSE
A32: 2021-02-25 | B32: 539692 | C32: IFINSER | D32: AKSHAY AGGARWAL | E32: BUY | F32: 23,250 | G32: 5.05 | H32: BSE
A33: 2021-02-25 | B33: 539692 | C33: IFINSER | D33: AKSHAY AGGARWAL | E33: SELL | F33: 750 | G33: 5.25 | H33: BSE
A34: 2021-02-25 | B34: 542924 | C34: JANUSCORP | D34: NARENDRA SHANKARLAL TANNA | E34: SELL | F34: 36,000 | G34: 93.29 | H34: BSE
A35: 2021-02-25 | B35: 542924 | C35: JANUSCORP | D35: ARUN DASHRATHBHAI PRAJAPATI | E35: BUY | F35: 55,500 | G35: 94.34 | H35: BSE
A36: 2021-02-25 | B36: 542924 | C36: JANUSCORP | D36: ARUN DASHRATHBHAI PRAJAPATI | E36: SELL | F36: 6,000 | G36: 93 | H36: BSE
A37: 2021-02-25 | B37: 500306 | C37: JAYKAY | D37: ALPHA LEON ENTERPRISES LLP | E37: BUY | F37: 9 | G37: 24.88 | H37: BSE
A38: 2021-02-25 | B38: 500306 | C38: JAYKAY | D38: ALPHA LEON ENTERPRISES LLP | E38: SELL | F38: 209,556 | G38: 24.9 | H38: BSE
A39: 2021-02-25 | B39: 539679 | C39: KAPILRAJ | D39: NILESH RASIKLAL SHAH | E39: BUY | F39: 32,299 | G39: 10 | H39: BSE
A40: 2021-02-25 | B40: 539679 | C40: KAPILRAJ | D40: BHAVIN HASMUKH SAVLA | E40: SELL | F40: 36,000 | G40: 10 | H40: BSE
A41: 2021-02-25 | B41: 539519 | C41: MAYUKH | D41: INDRAVADAN J MEHTA | E41: BUY | F41: 25,000 | G41: 19.6 | H41: BSE
A42: 2021-02-25 | B42: 539519 | C42: MAYUKH | D42: KETAN S MAHADDALKAR | E42: SELL | F42: 16,842 | G42: 19.45 | H42: BSE
A43: 2021-02-25 | B43: 539519 | C43: MAYUKH | D43: SHIVPARVATI TRADERS AND SUPPLIERS LIMITED | E43: BUY | F43: 3,500 | G43: 20.25 | H43: BSE
A44: 2021-02-25 | B44: 539519 | C44: MAYUKH | D44: SHIVPARVATI TRADERS AND SUPPLIERS LIMITED | E44: SELL | F44: 26,500 | G44: 19.58 | H44: BSE
A45: 2021-02-25 | B45: 532011 | C45: POOJAENT | D45: SACHIN H GUNJAL | E45: SELL | F45: 30,000 | G45: 69.25 | H45: BSE
A46: 2021-02-25 | B46: 532011 | C46: POOJAENT | D46: JACKY VASHUDEV BHAGNANI | E46: BUY | F46: 40,200 | G46: 69.25 | H46: BSE
A47: 2021-02-25 | B47: 512217 | C47: PRISMMEDI | D47: SUNIL KUMAR RANA | E47: SELL | F47: 60,000 | G47: 28 | H47: BSE
A48: 2021-02-25 | B48: 512217 | C48: PRISMMEDI | D48: MONIKA RAJPUT | E48: BUY | F48: 59,999 | G48: 28 | H48: BSE
A49: 2021-02-25 | B49: 512217 | C49: PRISMMEDI | D49: MONIKA RAJPUT | E49: SELL | F49: 98,746 | G49: 28.82 | H49: BSE
A50: 2021-02-25 | B50: 540259 | C50: SHANGAR | D50: SURESHKUMAR GHORDHANDAS PATEL | E50: SELL | F50: 84,000 | G50: 20.03 | H50: BSE
A51: 2021-02-25 | B51: 540259 | C51: SHANGAR | D51: OLGA TRADING PRIVATE LIMITED | E51: BUY | F51: 203,492 | G51: 21.99 | H51: BSE
A52: 2021-02-25 | B52: 540259 | C52: SHANGAR | D52: OLGA TRADING PRIVATE LIMITED | E52: SELL | F52: 203,492 | G52: 21.65 | H52: BSE
A53: 2021-02-25 | B53: 540259 | C53: SHANGAR | D53: VORA KINJAL RONAK | E53: BUY | F53: 66,000 | G53: 22.16 | H53: BSE
A54: 2021-02-25 | B54: 540259 | C54: SHANGAR | D54: VORA KINJAL RONAK | E54: SELL | F54: 66,000 | G54: 22.16 | H54: BSE
A55: 2021-02-25 | B55: 540259 | C55: SHANGAR | D55: VAIBHAV RAJENDRA DOSHI | E55: BUY | F55: 143,543 | G55: 20.95 | H55: BSE
A56: 2021-02-25 | B56: 540259 | C56: SHANGAR | D56: VAIBHAV RAJENDRA DOSHI | E56: SELL | F56: 143,543 | G56: 21.29 | H56: BSE
A57: 2021-02-25 | B57: 540259 | C57: SHANGAR | D57: MONIK CHANDUBHAI RUPAREL | E57: BUY | F57: 100,000 | G57: 22.16 | H57: BSE
A58: 2021-02-25 | B58: 540259 | C58: SHANGAR | D58: MONIK CHANDUBHAI RUPAREL | E58: SELL | F58: 100,000 | G58: 22.09 | H58: BSE
A59: 2021-02-25 | B59: 540259 | C59: SHANGAR | D59: SANDEEP SINGH | E59: BUY | F59: 111,669 | G59: 22.05 | H59: BSE
A60: 2021-02-25 | B60: 540259 | C60: SHANGAR | D60: SANDEEP SINGH | E60: SELL | F60: 111,669 | G60: 22.02 | H60: BSE
A61: 2021-02-25 | B61: 540259 | C61: SHANGAR | D61: TUSHAR SHASHIKANT SHAH | E61: SELL | F61: 167,298 | G61: 19.27 | H61: BSE
A62: 2021-02-25 | B62: 540259 | C62: SHANGAR | D62: HARSHADBHAI PANCHAL | E62: BUY | F62: 111,669 | G62: 22.04 | H62: BSE
A63: 2021-02-25 | B63: 540259 | C63: SHANGAR | D63: HARSHADBHAI PANCHAL | E63: SELL | F63: 111,669 | G63: 22.05 | H63: BSE
A64: 2021-02-25 | B64: 540259 | C64: SHANGAR | D64: VINOD VILAS SABLE | E64: BUY | F64: 75,000 | G64: 20 | H64: BSE
A65: 2021-02-25 | B65: 540259 | C65: SHANGAR | D65: VINOD VILAS SABLE | E65: SELL | F65: 75,000 | G65: 21.95 | H65: BSE
A66: 2021-02-25 | B66: 540259 | C66: SHANGAR | D66: KEYUR NATAVARLAL RUPAREL | E66: BUY | F66: 111,669 | G66: 22.03 | H66: BSE
A67: 2021-02-25 | B67: 540259 | C67: SHANGAR | D67: KEYUR NATAVARLAL RUPAREL | E67: SELL | F67: 111,669 | G67: 22.04 | H67: BSE
A68: 2021-02-25 | B68: 540259 | C68: SHANGAR | D68: DHAVAL MEHTA | E68: BUY | F68: 100,000 | G68: 22.13 | H68: BSE
A69: 2021-02-25 | B69: 540259 | C69: SHANGAR | D69: DHAVAL MEHTA | E69: SELL | F69: 100,000 | G69: 22.15 | H69: BSE
A70: 2021-02-25 | B70: 526981 | C70: SHBAJRG | D70: SCAN STEEL LIMITED | E70: SELL | F70: 48,057 | G70: 99.88 | H70: BSE
A71: 2021-02-25 | B71: 539334 | C71: SHREEPUSHK | D71: MANHARLAL CHIMANLA PARIKH HUF | E71: BUY | F71: 155,000 | G71: 154 | H71: BSE
A72: 2021-02-25 | B72: 539026 | C72: SSPNFIN | D72: SHIVA KUMAR | E72: SELL | F72: 36,000 | G72: 28.63 | H72: BSE
A73: 2021-02-25 | B73: 539026 | C73: SSPNFIN | D73: ASHOK KUMAR SINGH | E73: BUY | F73: 56,000 | G73: 28.89 | H73: BSE
A74: 2021-02-25 | B74: 538733 | C74: STARLIT | D74: VEEKAY APARTMENTS PRIVATE LIMITED | E74: BUY | F74: 150,000 | G74: 20.1 | H74: BSE
A75: 2021-02-25 | B75: 538733 | C75: STARLIT | D75: YMS FINANCE PRIVATE LIMITED | E75: SELL | F75: 150,000 | G75: 20.1 | H75: BSE
A76: 2021-02-25 | B76: 532070 | C76: SUPRBPA | D76: JAMUNADASS LALCHAND | E76: BUY | F76: 80,000 | G76: 10.9 | H76: BSE
A77: 2021-02-25 | B77: 532070 | C77: SUPRBPA | D77: VANDANA PARESH THAKKER | E77: SELL | F77: 47,110 | G77: 10.9 | H77: BSE
A78: 2021-02-25 | B78: 538607 | C78: TOYAMIND | D78: ECOTEK GENERAL TRADING LLC | E78: BUY | F78: 2,000,000 | G78: 3.74 | H78: BSE
A79: 2021-02-25 | B79: 538607 | C79: TOYAMIND | D79: SILVERTOSS SHOPPERS PVT LTD | E79: BUY | F79: 10,611 | G79: 3.87 | H79: BSE
A80: 2021-02-25 | B80: 538607 | C80: TOYAMIND | D80: SILVERTOSS SHOPPERS PVT LTD | E80: SELL | F80: 2,010,611 | G80: 3.74 | H80: BSE
A81: 2021-02-25 | B81: 542923 | C81: TRANWAY | D81: ANSHUGOEL | E81: BUY | F81: 100,000 | G81: 6.28 | H81: BSE
A82: 2021-02-25 | B82: 542923 | C82: TRANWAY | D82: NEHAANSHUGOEL | E82: SELL | F82: 100,000 | G82: 6.6 | H82: BSE
A83: 2021-02-25 | B83: 542923 | C83: TRANWAY | D83: PUSHPA BHAJU | E83: SELL | F83: 100,000 | G83: 6.28 | H83: BSE
A84: 2021-02-25 | B84: 504673 | C84: UNIVPRIM | D84: PRAKASH KUMAR MOHTA | E84: BUY | F84: 181,793 | G84: 3.04 | H84: BSE
A85: 2021-02-25 | B85: 504673 | C85: UNIVPRIM | D85: UNIVERSAL ENTERPRISES LIMITED | E85: SELL | F85: 67,340 | G85: 3.04 | H85: BSE
A86: 2021-02-25 | B86: 504673 | C86: UNIVPRIM | D86: PRATIBHA MANUFACTURING & MARKETING LIMITED | E86: SELL | F86: 948,025 | G86: 3.04 | H86: BSE
A87: 2021-02-25 | B87: 504673 | C87: UNIVPRIM | D87: PRAKASH KUMAR MOHTA | E87: BUY | F87: 1,015,537 | G87: 3.04 | H87: BSE
A88: 2021-02-25 | B88: 504673 | C88: UNIVPRIM | D88: JAYANTIKA JATIA | E88: SELL | F88: 82,164 | G88: 3.04 | H88: BSE
A89: 2021-02-25 | B89: 504673 | C89: UNIVPRIM | D89: MAITREYI KANDOI | E89: SELL | F89: 99,629 | G89: 3.04 | H89: BSE
A90: 2021-02-25 | B90: 511726 | C90: VIPUL | D90: ANALYSIS TRADE CONSULTANCY LLP | E90: SELL | F90: 898,987 | G90: 26 | H90: BSE
A91: 2021-02-25 | B91: AMDIND | C91: AMD Industries Limited | D91: B M TRADERS | E91: BUY | F91: 181,466 | G91: 22.73 | H91: NSE
A92: 2021-02-25 | B92: AMDIND | C92: AMD Industries Limited | D92: BRIJESH JITENDRA PAREKH | E92: BUY | F92: 157,682 | G92: 24.05 | H92: NSE
A93: 2021-02-25 | B93: BHEL | C93: Bharat Heavy Elect Ltd. | D93: HRTI PRIVATE LIMITED | E93: BUY | F93: 17,390,953 | G93: 46.33 | H93: NSE
A94: 2021-02-25 | B94: BHEL | C94: Bharat Heavy Elect Ltd. | D94: TOWER RESEARCH CAPITAL MARKETS INDIA PRIVATE LIMITED | E94: BUY | F94: 22,065,991 | G94: 46.09 | H94: NSE
A95: 2021-02-25 | B95: COMPINFO | C95: Compuage Infocom Ltd | D95: B M TRADERS | E95: BUY | F95: 455,942 | G95: 17.25 | H95: NSE
A96: 2021-02-25 | B96: GOLDTECH | C96: Goldstone Tech Ltd. | D96: GOPAL KRISHAN KOTHARI | E96: BUY | F96: 200,000 | G96: 16.45 | H96: NSE
A97: 2021-02-25 | B97: HSCL | C97: Himadri Speciality Chem L | D97: GRAVITON RESEARCH CAPITAL LLP | E97: BUY | F97: 3,606,491 | G97: 44.75 | H97: NSE
A98: 2021-02-25 | B98: HSCL | C98: Himadri Speciality Chem L | D98: XTX MARKETS LLP | E98: BUY | F98: 2,341,684 | G98: 45.92 | H98: NSE
A99: 2021-02-25 | B99: HSCL | C99: Himadri Speciality Chem L | D99: GEETA CHETAN SHAH | E99: BUY | F99: 4,854,510 | G99: 46.8 | H99: NSE
A100: 2021-02-25 | B100: HSCL | C100: Himadri Speciality Chem L | D100: PLUTUS WEALTH MANAGEMENT LLP | E100: BUY | F100: 2,218,809 | G100: 40.76 | H100: NSE
A101: 2021-02-25 | B101: HSCL | C101: Himadri Speciality Chem L | D101: QE SECURITIES | E101: BUY | F101: 3,569,244 | G101: 45.61 | H101: NSE
A102: 2021-02-25 | B102: HSCL | C102: Himadri Speciality Chem L | D102: KIRTAN MANEKLAL RUPARELIYA | E102: BUY | F102: 572,016 | G102: 40.9 | H102: NSE
A103: 2021-02-25 | B103: JUSTDIAL | C103: Justdial Ltd. | D103: TOWER RESEARCH CAPITAL MARKETS INDIA PRIVATE LIMITED | E103: BUY | F103: 382,377 | G103: 720.38 | H103: NSE
A104: 2021-02-25 | B104: JUSTDIAL | C104: Justdial Ltd. | D104: NK SECURITIES RESEARCH PRIVATE LIMITED | E104: BUY | F104: 415,565 | G104: 719.21 | H104: NSE
A105: 2021-02-25 | B105: JUSTDIAL | C105: Justdial Ltd. | D105: GRAVITON RESEARCH CAPITAL LLP | E105: BUY | F105: 457,616 | G105: 708.85 | H105: NSE
A106: 2021-02-25 | B106: JUSTDIAL | C106: Justdial Ltd. | D106: XTX MARKETS LLP | E106: BUY | F106: 1,038,267 | G106: 720.14 | H106: NSE
A107: 2021-02-25 | B107: MOHOTAIND | C107: Mohota Industries Ltd. | D107: JHAVERI TRADING AND INVESTMENT PVT LTD | E107: BUY | F107: 74,000 | G107: 7.4 | H107: NSE
A108: 2021-02-25 | B108: NECCLTD | C108: North East Carry Corp Ltd | D108: ECOTEK GENERAL TRADING L.L.C | E108: BUY | F108: 1,059,239 | G108: 9.69 | H108: NSE
A109: 2021-02-25 | B109: ORIENTALTL | C109: Oriental Trimex Limited | D109: ECOTEK GENERAL TRADING L.L.C | E109: BUY | F109: 781,814 | G109: 7.05 | H109: NSE
A110: 2021-02-25 | B110: PRICOLLTD | C110: Pricol Limited | D110: ANKITA VISHAL SHAH | E110: BUY | F110: 671,282 | G110: 68.39 | H110: NSE
A111: 2021-02-25 | B111: SEAMECLTD | C111: SEAMEC Limited | D111: RELITRADE STOCK BROKING PVT. LTD. | E111: BUY | F111: 250,000 | G111: 481.06 | H111: NSE
A112: 2021-02-25 | B112: SEAMECLTD | C112: SEAMEC Limited | D112: PRARAMBH SECURITIES PVT. LTD. | E112: BUY | F112: 252,154 | G112: 486.96 | H112: NSE
A113: 2021-02-25 | B113: SHREEPUSHK | C113: Shre Push Chem & Fert Ltd | D113: M.C.PARIKH-HUF | E113: BUY | F113: 168,000 | G113: 153.95 | H113: NSE
A114: 2021-02-25 | B114: TATACHEM | C114: Tata Chemicals Ltd. | D114: XTX MARKETS LLP | E114: BUY | F114: 1,528,234 | G114: 718.29 | H114: NSE
A115: 2021-02-25 | B115: VINYLINDIA | C115: Vinyl Chemicals (India) L | D115: B M TRADERS | E115: BUY | F115: 97,077 | G115: 134.24 | H115: NSE
A116: 2021-02-25 | B116: AMDIND | C116: AMD Industries Limited | D116: B M TRADERS | E116: SELL | F116: 181,466 | G116: 24.05 | H116: NSE
A117: 2021-02-25 | B117: ASIANTILES | C117: Asian Granito India Limit | D117: DILIPBHAI PURSOTTAMBHAI SUTHAR | E117: SELL | F117: 157,715 | G117: 172.29 | H117: NSE
A118: 2021-02-25 | B118: ASIANTILES | C118: Asian Granito India Limit | D118: SHREE PADMAVATI TRADE-LINK PROP. ATUL J SHAH | E118: SELL | F118: 172,750 | G118: 169.25 | H118: NSE
A119: 2021-02-25 | B119: BAJAJHIND | C119: Bajaj Hindustan Sugar Ltd | D119: ARUNA R JAIN | E119: SELL | F119: 5,871,243 | G119: 6.11 | H119: NSE
A120: 2021-02-25 | B120: BHEL | C120: Bharat Heavy Elect Ltd. | D120: HRTI PRIVATE LIMITED | E120: SELL | F120: 17,549,386 | G120: 46.36 | H120: NSE
A121: 2021-02-25 | B121: BHEL | C121: Bharat Heavy Elect Ltd. | D121: TOWER RESEARCH CAPITAL MARKETS INDIA PRIVATE LIMITED | E121: SELL | F121: 22,948,484 | G121: 46.16 | H121: NSE
A122: 2021-02-25 | B122: BLKASHYAP | C122: B. L. Kashyap and Sons Li | D122: ACACIA PARTNERS L.P | E122: SELL | F122: 1,709,494 | G122: 15 | H122: NSE
A123: 2021-02-25 | B123: COMPINFO | C123: Compuage Infocom Ltd | D123: B M TRADERS | E123: SELL | F123: 419,942 | G123: 17.77 | H123: NSE
A124: 2021-02-25 | B124: HSCL | C124: Himadri Speciality Chem L | D124: GEETA CHETAN SHAH | E124: SELL | F124: 4,896,170 | G124: 45.63 | H124: NSE
A125: 2021-02-25 | B125: HSCL | C125: Himadri Speciality Chem L | D125: XTX MARKETS LLP | E125: SELL | F125: 2,345,075 | G125: 46.02 | H125: NSE
A126: 2021-02-25 | B126: HSCL | C126: Himadri Speciality Chem L | D126: BC INDIA INVESTMENTS | E126: SELL | F126: 9,012,166 | G126: 40.1 | H126: NSE
A127: 2021-02-25 | B127: HSCL | C127: Himadri Speciality Chem L | D127: QE SECURITIES | E127: SELL | F127: 3,593,336 | G127: 45.62 | H127: NSE
A128: 2021-02-25 | B128: HSCL | C128: Himadri Speciality Chem L | D128: KIRTAN MANEKLAL RUPARELIYA | E128: SELL | F128: 2,201,484 | G128: 40.56 | H128: NSE
A129: 2021-02-25 | B129: HSCL | C129: Himadri Speciality Chem L | D129: GRAVITON RESEARCH CAPITAL LLP | E129: SELL | F129: 3,606,491 | G129: 44.85 | H129: NSE
A130: 2021-02-25 | B130: JUSTDIAL | C130: Justdial Ltd. | D130: TOWER RESEARCH CAPITAL MARKETS INDIA PRIVATE LIMITED | E130: SELL | F130: 389,817 | G130: 720.95 | H130: NSE
A131: 2021-02-25 | B131: JUSTDIAL | C131: Justdial Ltd. | D131: NK SECURITIES RESEARCH PRIVATE LIMITED | E131: SELL | F131: 415,597 | G131: 719.54 | H131: NSE
A132: 2021-02-25 | B132: JUSTDIAL | C132: Justdial Ltd. | D132: GRAVITON RESEARCH CAPITAL LLP | E132: SELL | F132: 457,616 | G132: 709.83 | H132: NSE
A133: 2021-02-25 | B133: JUSTDIAL | C133: Justdial Ltd. | D133: XTX MARKETS LLP | E133: SELL | F133: 1,019,011 | G133: 719.86 | H133: NSE
A134: 2021-02-25 | B134: MOHOTAIND | C134: Mohota Industries Ltd. | D134: ERROR-SALTLAKE(INSIGHT SHARE BROKERS LTD) | E134: SELL | F134: 100,000 | G134: 7.4 | H134: NSE
A135: 2021-02-25 | B135: NECCLTD | C135: North East Carry Corp Ltd | D135: SILVERTOSS SHOPPERS PVT LTD | E135: SELL | F135: 1,008,500 | G135: 9.7 | H135: NSE
A136: 2021-02-25 | B136: ORIENTALTL | C136: Oriental Trimex Limited | D136: NISHCHAYA TRADINGS PRIVATE LIMITED . | E136: SELL | F136: 782,099 | G136: 7.05 | H136: NSE
A137: 2021-02-25 | B137: PRICOLLTD | C137: Pricol Limited | D137: ANKITA VISHAL SHAH | E137: SELL | F137: 229,907 | G137: 68.03 | H137: NSE
A138: 2021-02-25 | B138: SEAMECLTD | C138: SEAMEC Limited | D138: ALGOMIND CAPITAL FUND | E138: SELL | F138: 509,811 | G138: 484.17 | H138: NSE
A139: 2021-02-25 | B139: TATACHEM | C139: Tata Chemicals Ltd. | D139: XTX MARKETS LLP | E139: SELL | F139: 1,524,286 | G139: 719.02 | H139: NSE
A140: 2021-02-25 | B140: TEMBO | C140: Tembo Global Ind Ltd | D140: VINOD HARILAL JHAVERI | E140: SELL | F140: 44,000 | G140: 192.03 | H140: NSE
A141: 2021-02-25 | B141: VINYLINDIA | C141: Vinyl Chemicals (India) L | D141: B M TRADERS | E141: SELL | F141: 70,906 | G141: 137.33 | H141: NSE

Sheet Call Tracker (Equity & F&O)
M5: Back To Main Page
A6: Retail Research Technical Calls & Fundamental Performance Report for the month of February-2021
M7: =Main!B10 -> 2021-02-26
B8: Positional Call
A9: Sr.no | B9: Date | D9: Company | E9: Rec | F9: Rec Price | G9: Stop Loss*** | H9: Call Closed At | I9: Target | J9: Remark | K9: Profit / Loss per Share | L9: All charges | M9: Net Gain / Loss % | N9: Status | O9: Closed Date
A10: 1 | B10: 2020-12-10 | D10: IRCTC | E10: Buy | F10: 1427.5 | G10: 1330 | H10: 1535 | I10: 1550-1600 | J10: Profit of Rs.107.5/- | K10: =H10-F10 -> 107.5 | L10: =(F10*-0.8)/100 -> -11.42 | M10: =(K10+L10)/F10 -> 6.73% | N10: Successful | O10: 2021-02-04 | R10: H
A11: 2 | B11: 2021-01-05 | D11: BRITANNIA | E11: Buy | F11: 3540 | G11: 3295 | H11: =(3682.5+3520)/2 -> 3601.25 | I11: 3900-4000 | J11: Profit of Rs.61.25/- | K11: =H11-F11 -> 61.25 | L11: =(F11*-0.8)/100 -> -28.32 | M11: =(K11+L11)/F11 -> 0.93% | N11: Successful | O11: 2021-02-01 | R11: H
A12: 3 | B12: 2021-02-02 | D12: JKCEMENT | E12: Buy | F12: 2197.5 | G12: 2070 | H12: 2357.5 | I12: 2400-2450 | J12: Profit of Rs.160/- | K12: 160 | L12: =(F12*-0.8)/100 -> -17.58 | M12: =(K12+L12)/F12 -> 6.48% | N12: Successful | O12: 2020-02-08 | R12: H
A13: 4 | B13: 2021-02-02 | D13: HINDUNILVR | E13: Buy | F13: 2235-2245 | G13: 2090 | I13: 2500-2550 | J13: Open | R13: H
A14: 5 | B14: 2021-02-04 | D14: PIIND | E14: Buy | F14: 2190 | G14: 1995 | H14: 2330 | I14: 2500 | J14: Profit of Rs.140/- | K14: =H14-F14 -> 140 | L14: =(F14*-0.07)/100 -> -1.53 | M14: =(K14+L14)/F14 -> 6.32% | N14: Successful | O14: 2020-02-04 | R14: H
A15: 6 | B15: 2021-02-09 | D15: IRCTC | E15: Buy | F15: 1597.5 | G15: 1514 | H15: 1702.5 | I15: 1750-1800 | J15: Profit of Rs.105/- | K15: 105 | L15: =(F15*-0.8)/100 -> -12.78 | M15: 5.77% | N15: Successful | O15: 2020-02-12 | R15: H
A16: 7 | B16: 2021-02-09 | D16: PIIND | E16: Buy | F16: 2200-2210 | G16: 2070 | I16: 2400-2500 | J16: Open | R16: H
A17: 8 | B17: 2021-02-19 | D17: PNB | E17: Buy | F17: 43.9 | G17: 41.4 | H17: 41.75 | I17: 49-50 | J17: Loss of Rs.2.15/- | K17: =H17-F17 -> -2.15 | L17: =(F17*-0.07)/100 -> -0.03 | M17: =(K17+L17)/F17 -> -4.97% | N17: Unsuccessful | O17: 2020-02-19 | R17: H
A18: 9 | B18: 2021-02-19 | D18: ENGINERSIN | E18: Buy | F18: 74.5-75 | G18: 70 | I18: 84-86 | J18: Open | R18: H
A19: 10 | B19: 2021-02-22 | D19: SUDARSCHEM | E19: Buy | F19: 505.5 | G19: 475 | H19: 546 | I19: 550-560 | J19: Profit of Rs.40.5/- | K19: =H19-F19 -> 40.5 | L19: =(F19*-0.8)/100 -> -4.04 | M19: =(K19+L19)/F19 -> 7.21% | N19: Successful | O19: 2020-02-23 | R19: N
A23: CLBS = Closing Basis ***
A24: Dividend adjusted <> | F24: Reinitiated $
A25: Part book {} | F25: Revised stoploss #
B27: Momentum Call
A28: Sr.no | B28: Date | D28: Company | E28: Rec | F28: Rec Price | G28: Stop Loss | H28: Call Closed At | I28: Target | J28: Remark | K28: Profit / Loss per Share/Lot | L28: All charges | M28: Net Gain / Loss % | N28: Status | O28: Closed Date
A29: 1 | B29: 2021-02-01 | D29: BHARTIARTL | E29: Buy | F29: 566 | G29: 548 | H29: 577 | I29: 600 | J29: Profit of Rs.11/- | K29: =H29-F29 -> 11 | L29: =(F29*-0.07)/100 -> -0.40 | M29: =(K29+L29)/F29 -> 1.87% | N29: Successful | O29: 2021-02-01 | R29: H
A30: 2 | B30: 2021-02-02 | D30: CESC | E30: Buy | F30: 627.5 | G30: 609 | H30: 608.5 | I30: 660 | J30: Loss of Rs.19/- | K30: -19 | L30: =(F30*-0.7)/100 -> -4.39 | M30: -3.73% | N30: Unsuccessful | O30: 2021-02-08 | R30: H
A31: 3 | B31: 2021-02-02 | D31: MCDOWELL-N | E31: Buy | F31: 576.5 | G31: 560 | H31: 590 | I31: 600-610 | J31: Profit of Rs.14/- | K31: =H31-F31 -> 13.5 | L31: -4.04 | M31: =(K31+L31)/F31 -> 1.64% | N31: Successful | O31: 2021-02-04 | R31: N
A32: 4 | B32: 2021-02-02 | D32: BHARTIARTL | E32: Buy | F32: 601.5 | G32: 585 | H32: 615.5 | I32: 630 | J32: Profit of Rs.14/- | K32: =H32-F32 -> 14 | L32: -4.21 | M32: =(K32+L32)/F32 -> 1.63% | N32: Successful | O32: 2021-02-03 | R32: H
A33: 5 | B33: 2021-02-03 | D33: KOTAKBANK | E33: Buy | F33: 1844 | G33: 1790 | H33: 1887.5 | I33: 1920-1950 | J33: Profit of Rs.43.5/- | K33: =H33-F33 -> 43.5 | L33: -12.91 | M33: =(K33+L33)/F33 -> 1.66% | N33: Successful | O33: 2021-02-04 | R33: H
A34: 6 | B34: 2021-02-04 | D34: BHARTIARTL | E34: Buy | F34: 612.5 | G34: 598 | H34: 592.5 | I34: 640-650 | J34: Loss of Rs.20/- | K34: =H34-F34 -> -20 | L34: -4.29 | M34: =(K34+L34)/F34 -> -3.97% | N34: Unsuccessful | O34: 2021-02-05 | R34: H
A35: 7 | B35: 2021-02-04 | D35: ICICIPRULI | E35: Buy | F35: 472 | G35: 457 | H35: 485 | I35: 495-505 | J35: Profit of Rs.13/- | K35: 13 | L35: -3.30 | M35: 2.05% | N35: Successful | O35: 2021-02-11 | R35: H
A36: 8 | B36: 2021-02-05 | D36: IRCTC | E36: Buy | F36: 1520 | G36: 1469 | H36: 1560 | I36: 1600-1620 | J36: Profit of Rs.40/- | K36: =H36-F36 -> 40 | L36: =(F36*-0.07)/100 -> -1.06 | M36: =(K36+L36)/F36 -> 2.56% | N36: Successful | O36: 2021-02-05 | R36: H
A37: 9 | B37: 2021-02-08 | D37: ZEEL | E37: Buy | F37: 221 | G37: 214.5 | H37: 214.5 | I37: 230-235 | J37: Loss of Rs.6.5/- | K37: -6.5 | L37: =(F37*-0.7)/100 -> -1.55 | M37: -3.64% | N37: Unsuccessful | O37: 2021-02-05 | R37: H
A38: 10 | B38: 2021-02-10 | D38: ITC | E38: Buy | F38: 224.5 | G38: 218 | H38: 227.75 | I38: 235 | J38: Profit of Rs.3.25/- | K38: =H38-F38 -> 3.25 | L38: =(F38*-0.07)/100 -> -0.16 | M38: =(K38+L38)/F38 -> 1.38% | N38: Successful | O38: 2021-02-10 | R38: H
A39: 11 | B39: 2021-02-12 | D39: EXIDEIND | E39: Buy | F39: 213 | G39: 207 | H39: 207 | I39: 222-225 | J39: Loss of Rs.6/- | K39: -6 | L39: =(F39*-0.7)/100 -> -1.49 | M39: -3.52% | N39: Unsuccessful | O39: 2021-02-19 | R39: H
A40: 12 | B40: 2021-02-12 | D40: MOTHERSUMI | E40: Buy | F40: 173 | G40: 168 | H40: 183.5 | I40: 185 | J40: Profit of Rs.10.5/- | K40: =H40-F40 -> 10.5 | L40: =(F40*-0.07)/100 -> -0.12 | M40: =(K40+L40)/F40 -> 6.00% | N40: Successful | O40: 2021-02-12 | R40: H
A41: 13 | B41: 2021-02-15 | D41: NESTLEIND | E41: Buy | F41: 17400 | G41: 16900 | H41: 16890 | I41: 18000-18200 | J41: Loss of Rs.121.8/- | K41: -510 | L41: =(F41*-0.7)/100 -> -121.80 | M41: -3.63% | N41: Unsuccessful | O41: 2021-02-17 | R41: H
A42: 14 | B42: 2021-02-16 | D42: IRCTC | E42: Buy | F42: 1685 | G42: 1635 | H42: 1635 | I42: 1780-1800 | J42: Loss of Rs.50/- | K42: =H42-F42 -> -50 | L42: =(F42*-0.7)/100 -> -11.80 | M42: =(K42+L42)/F42 -> -3.67% | N42: Unsuccessful | O42: 2021-02-22 | R42: H
A43: 15 | B43: 2021-02-17 | D43: BHARTIARTL | E43: Buy | F43: 592.5 | G43: 577 | H43: 596.5 | I43: 620-625 | J43: Profit of Rs.4/- | K43: =H43-F43 -> 4 | L43: =(F43*-0.7)/100 -> -4.15 | M43: =(K43+L43)/F43 -> -0.02% | N43: Neutral | O43: 2021-02-18 | R43: H
A44: 16 | B44: 2021-02-18 | D44: TATAPOWER | E44: Buy | F44: 92.5 | G44: 89.5 | H44: 89.5 | I44: 98-100 | J44: Loss of Rs.3/- | K44: -3 | L44: -0.65 | M44: -3.94% | N44: Unsuccessful | O44: 2021-02-22 | R44: H
A45: 17 | B45: 2021-02-22 | D45: HINDALCO | E45: Sell | F45: 323.5 | G45: 333 | H45: 317 | I45: 310-305 | J45: Profit of Rs.6.5/- | K45: =F45-H45 -> 6.5 | L45: =(F45*-0.07)/100 -> -0.23 | M45: 1.94% | N45: Successful | O45: 2021-02-22 | R45: H
A46: 18 | B46: 2021-02-22 | D46: ONGC | E46: Sell | F46: 107 | G46: 110.5 | H46: 110.5 | I46: 103-100 | J46: Loss of Rs.3,5/- | K46: =F46-H46 -> -3.5 | L46: =(F46*-0.7)/100 -> -0.75 | M46: =(K46+L46)/F46 -> -3.97% | N46: Unsuccessful | O46: 2021-02-23 | R46: H
A47: 19 | B47: 2021-02-23 | D47: GMMPFAUDLR | E47: Buy | F47: 4050 | G47: 3940 | H47: 4130 | I47: 4300-4350 | J47: Profit of Rs.80/- | K47: =H47-F47 -> 80 | L47: =(F47*-0.07)/100 -> -2.84 | M47: 1.91% | N47: Successful | O47: 2021-02-23 | R47: H
A48: 20 | B48: 2021-02-23 | D48: TITAN | E48: Buy | F48: 1420 | G48: 1370 | H48: 1460 | I48: 1470-1480 | J48: Profit of Rs.40/- | K48: 40 | L48: =(F48*-0.7)/100 -> -9.94 | M48: 2.12% | N48: Successful | O48: 2021-02-25 | R48: H
A49: 21 | B49: 2021-02-24 | D49: CHAMBLFERT | E49: Buy | F49: 234.5 | G49: 228 | H49: 241.5 | I49: 245 | J49: Profit of Rs.7/- | K49: =H49-F49 -> 7 | L49: =(F49*-0.7)/100 -> -1.64 | M49: =(K49+L49)/F49 -> 2.29% | N49: Successful | O49: 2021-02-25 | R49: N
A50: 22 | B50: 2021-02-25 | D50: CADILAHC | E50: Buy | F50: 439-441 | G50: 427 | I50: 465 | J50: Open | R50: N
A55: CLBS = Closing Basis *** | H55: *
A56: Dividend adjusted <> | F56: Reinitiated $
F57: Revised stoploss #
A59: Master Trade High Risk
A60: Sr.no | B60: Date | D60: Company | E60: Rec | F60: Rec Price | G60: Stop Loss | H60: Call Closed At | I60: Target | J60: Remark | K60: Profit / Loss per share | L60: All charges | M60: Gain / Loss per Lot | N60: Lot | O60: Status | P60: Closed Date
A61: 1 | B61: 2021-02-02 | D61: AUROPHARMA FEB FUT | E61: Buy | F61: 925.5 | G61: 905 | H61: 941 | I61: 960-965 | J61: Profit of Rs.15.50/- | K61: =H61-F61 -> 15.5 | L61: =(H61*N61)*0.035% -> 214.08 | M61: =(K61*N61)-L61 -> 9860.9 | N61: 650 | O61: Successful | P61: 2021-02-03 | R61: N
A62: 2 | B62: 2021-02-02 | D62: RELIANCE FEB FUT | E62: Buy | F62: 1930 | G62: 1885 | H62: 1964 | I62: 2000 | J62: Profit of Rs.34/- | K62: =H62-F62 -> 34 | L62: =(H62*N62)*0.035% -> 171.85 | M62: =(K62*N62)-L62 -> 8328.2 | N62: 250 | O62: Successful | P62: 2021-02-08 | R62: H
A63: 3 | B63: 2021-02-03 | D63: NIFTY FEB FUT | E63: Sell | F63: 14700 | G63: 14820 | H63: 14820 | I63: 14500 | J63: Loss of Rs, 120/- | K63: =F63-H63 -> -120 | L63: 389.025 | M63: =(K63*N63)-L63 -> -9389.025 | N63: 75 | O63: Unsuccessful | P63: 2021-02-03 | R63: H
A64: 4 | B64: 2021-02-03 | D64: BATAINDIA FEB FUT | E64: Buy | F64: 1569 | G64: 1545 | H64: 1586 | I64: 1600-1620 | J64: Profit of Rs.17/- | K64: =H64-F64 -> 17 | L64: =(H64*N64)*0.035% -> 305.31 | M64: =(K64*N64)-L64 -> 9044.7 | N64: 550 | O64: Successful | P64: 2021-02-03 | R64: N
A65: 5 | B65: 2021-02-04 | D65: AUROPHARMA FEB FUT | E65: Buy | F65: 924 | G65: 903 | H65: 942 | I65: 960-965 | J65: Profit of Rs.18/- | K65: =H65-F65 -> 18 | L65: 214.31 | M65: 11485.7 | N65: 650 | O65: Successful | P65: 2021-02-05 | R65: N
A66: 6 | B66: 2021-02-05 | D66: NIFTY FEB FUT | E66: Sell | F66: 14980 | G66: 15080 | H66: 14910 | I66: 14800 | J66: Profit of Rs.70/- | K66: =F66-H66 -> 70 | L66: =(H66*N66)*0.035% -> 391.39 | M66: =(K66*N66)-L66 -> 4858.6 | N66: 75 | O66: Successful | P66: 2021-02-05 | R66: H
A67: 7 | B67: 2021-02-08 | D67: HDFCLIFE FEB FUT | E67: Buy | F67: 687 | G67: 675 | H67: 697.5 | I67: 710 | J67: Profit of Rs.10.5/- | K67: =H67-F67 -> 10.5 | L67: 268.54 | M67: 11281.5 | N67: 1100 | O67: Successful | P67: 2021-02-09 | R67: H
A68: 8 | B68: 2021-02-15 | D68: HDFCLIFE FEB FUT | E68: Buy | F68: 701.5 | G68: 689 | H68: 708.25 | I68: 720 | J68: Profit of Rs.6.75/- | K68: =H68-F68 -> 6.75 | L68: =(H68*N68)*0.035% -> 272.68 | M68: =(K68*N68)-L68 -> 7152.3 | N68: 1100 | O68: Successful | P68: 2021-02-17 | R68: H
A69: 9 | B69: 2021-02-16 | D69: SRF FEB FUT | E69: Buy | F69: 5790 | G69: 5680 | H69: 5845 | I69: 6000 | J69: Profit of Rs.55/- | K69: =H69-F69 -> 55 | L69: =(H69*N69)*0.035% -> 255.72 | M69: =(K69*N69)-L69 -> 6619.3 | N69: 125 | O69: Successful | P69: 2021-02-17 | R69: H
A70: 10 | B70: 2021-02-17 | D70: ASIANPAINT FEB FUT | E70: Buy | F70: 2407.5 | G70: 2367 | H70: 2431 | I70: 2450-2470 | J70: Profit of Rs.23.5/- | K70: =H70-F70 -> 23.5 | L70: =(H70*N70)*0.035% -> 255.26 | M70: =(K70*N70)-L70 -> 6794.7 | N70: 300 | O70: Successful | P70: 2021-02-18 | R70: H
A71: 11 | B71: 2021-02-17 | D71: NIFTY FEB FUT | E71: Sell | F71: 15300 | G71: 15440 | H71: 15220 | I71: 15100 | J71: Profit of Rs.80/- | K71: =F71-H71 -> 80 | L71: =(H71*N71)*0.035% -> 399.53 | M71: =(K71*N71)-L71 -> 5600.5 | N71: 75 | O71: Successful | P71: 2021-02-17 | R71: H
A72: 12 | B72: 2021-02-18 | D72: M&MFIN FEB FUT | E72: Sell | F72: 218.5 | G72: 221.5 | H72: 216.25 | I72: 212-210 | J72: Profit of Rs.2.25/- | K72: =F72-H72 -> 2.25 | L72: 302.75 | M72: 8697.3 | N72: 4000 | O72: Successful | P72: 2021-02-18 | R72: H
A73: 13 | B73: 2021-02-22 | D73: ASIANPAINT FEB FUT | E73: Buy | F73: 2422 | G73: 2385 | H73: 2385 | I73: 2480 | J73: Loss of Rs.37/- | K73: =H73-F73 -> -37 | L73: 250.43 | M73: -11350.4 | N73: 300 | O73: Unsuccessful | P73: 2021-02-22 | R73: H
A74: 14 | B74: 2021-02-22 | D74: NIFTY FEB FUT | E74: Sell | F74: 14750 | H74: 14665 | J74: Profit of Rs, 70/- | K74: =F74-H74 -> 85 | L74: 384.96 | M74: =(70*N74)-484.96 -> 4765.04 | N74: 75 | O74: Successful | P74: 2021-02-22 | R74: H
D75: NIFTY 14500 PE 25-FEB | E75: Sell | F75: 47.5 | H75: 62.5 | K75: =F75-H75 -> -15 | L75: 100.00 | R75: H
A76: 15 | B76: 2021-02-23 | D76: BRITANNIA MAR FUT | E76: Buy | F76: 3355 | G76: 3290 | H76: 3394.5 | I76: 3450 | J76: Profit of Rs.39.5/- | K76: =H76-F76 -> 39.5 | L76: =(H76*N76)*0.035% -> 237.62 | M76: =(K76*N76)-L76 -> 7662.4 | N76: 200 | O76: Successful | P76: 2021-02-24 | R76: H
A77: 16 | B77: 2021-02-23 | D77: NIFTY MAR FUT | E77: Sell | F77: 14785 | G77: 14910 | H77: 14775 | I77: 14550 | J77: Profit of Rs.10/- | K77: =F77-H77 -> 10 | L77: =(H77*N77)*0.035% -> 387.84 | M77: =(K77*N77)-L77 -> 362.2 | N77: 75 | O77: Neutral | P77: 2021-02-23 | R77: H
A78: 17 | B78: 2021-02-23 | D78: NIFTY MAR FUT | E78: Sell | F78: 14910 | G78: 15075 | H78: 14805 | I78: 14600 | J78: Profit of Rs, 75/- | K78: =F78-H78 -> 105 | L78: 388.63 | M78: =(70*N78)-484.96 -> 4765.04 | N78: 75 | O78: Successful | P78: 2021-02-23 | R78: H
D79: NIFTY 14600 PE 4-MAR | E79: Sell | F79: 95 | H79: 125 | K79: =F79-H79 -> -30 | L79: 100.00 | R79: H
A80: 18 | B80: 2021-02-23 | D80: AUROPHARMA MAR FUT | E80: Buy | F80: 863 | G80: 842 | H80: 876 | I80: 900 | J80: Profit of Rs.13/- | K80: =H80-F80 -> 13 | L80: =(H80*N80)*0.035% -> 199.29 | M80: =(K80*N80)-L80 -> 8250.7 | N80: 650 | O80: Successful | P80: 2021-02-25 | R80: N
A81: 19 | B81: 2021-02-24 | D81: NIFTY MAR FUT | E81: Sell | F81: 14900 | G81: 15075 | H81: 15045 | I81: 14600 | J81: Loss of Rs, 108.5/- | K81: =F81-H81 -> -145 | L81: =(H81*N81)*0.035% -> 394.93 | M81: =(-108.5*N81)-484.96 -> -8622.46 | N81: 75 | O81: Unsuccessful | P81: 2021-02-24 | R81: H
D82: NIFTY 14600 PE 4-MAR | E82: Sell | F82: 82.5 | H82: 46 | K82: =F82-H82 -> 36.5 | L82: 100.00 | R82: H
A83: 20 | B83: 2021-02-25 | D83: DRREDDY MAR FUT | E83: Buy | F83: 4520-4540 | G83: 4425 | I83: 4730 | J83: Open | R83: N
A84: 21 | B84: 2021-02-25 | D84: LT MAR FUT | E84: Buy | F84: 1514-1517 | G84: 1490 | I84: 1560-1570 | J84: Open | R84: N
A90: Master Trade Medium Risk
A91: Sr.no | B91: Date | D91: Company | E91: Rec | F91: Rec Price | G91: Stop Loss | H91: Call Closed At | I91: Target | J91: Remark | K91: Profit/ Loss per lot | L91: All charges | M91: Gain / Loss per Lot | N91: Lot | O91: Status | P91: Closed Date
A92: 1 | B92: 2021-01-29 | D92: NIFTY 13800 PE 11-FEB | E92: Buy | F92: 215 | H92: 0 | J92: Loss of Rs, 117.5/- | K92: =H92-F92 -> -215 | L92: 100.00 | M92: -8612.5 | N92: 75 | O92: Unsuccessful | P92: 2021-02-11 | R92: N
D93: NIFTY 13400 PE 11-FEB | E93: Sell | F93: 97.5 | H93: 0 | K93: =F93-H93 -> 97.5 | L93: 100.00 | R93: N
A94: 2 | B94: 2021-02-01 | D94: NIFTY 13800 PE 4-FEB | E94: Buy | F94: 67.5 | G94: 35 | H94: 35 | I94: 150 | J94: Loss of Rs. 32.5/- | K94: =H94-F94 -> -32.5 | L94: 100 | M94: =(K94*N94)+L94 -> -2337.5 | N94: 75 | O94: Unsuccessful | P94: 2021-02-01 | R94: H
A95: 3 | B95: 2021-02-03 | D95: NIFTY 14800 PE 4-FEB | E95: Buy | F95: 51 | G95: 18 | H95: 71.5 | I95: 100-120 | J95: Profit of Rs.20.50/- | K95: =H95-F95 -> 20.5 | L95: 100.00 | M95: =(K95*N95)-L95 -> 1437.5 | N95: 75 | O95: Successful | P95: 2021-02-03 | R95: H
A96: 4 | B96: 2021-02-03 | D96: NIFTY 14800 PE 4-FEB | E96: Buy | F96: 52.5 | G96: 19 | H96: 72 | I96: 100-120 | J96: Profit of Rs.19.50/- | K96: =H96-F96 -> 19.5 | L96: 100.00 | M96: 1362.5 | N96: 75 | O96: Successful | P96: 2021-02-03 | R96: H
A97: 5 | B97: 2021-02-05 | D97: NIFTY 15100 CE 25-FEB | E97: Sell | F97: 227 | G97: 325 | H97: 325 | I97: 50-10 | J97: Loss of Rs, 98/- | K97: =F97-H97 -> -98 | L97: 100 | M97: =(K97*N97)+L97 -> -7250 | N97: 75 | O97: Unsuccessful | P97: 2021-02-09 | R97: H
A98: 6 | B98: 2021-02-10 | D98: NIFTY 15200 CE 25-FEB | E98: Sell | F98: 227.5 | G98: 325 | H98: 175 | I98: 50-10 | J98: Profit of Rs, 52.5/- | K98: =F98-H98 -> 52.5 | L98: 100 | M98: =(K98*N98)+L98 -> 4037.5 | N98: 75 | O98: Successful | P98: 2021-02-10 | R98: H
A99: 7 | B99: 2021-02-10 | D99: NIFTY 15200 CE 25-FEB | E99: Sell | F99: 202.5 | G99: 302 | H99: 302 | I99: 50-10 | J99: Loss of Rs, 99.5/- | K99: =F99-H99 -> -99.5 | L99: 100 | M99: =(K99*N99)+L99 -> -7362.5 | N99: 75 | O99: Unsuccessful | P99: 2021-02-16 | R99: H
A100: 8 | B100: 2021-02-11 | D100: BANKNIFTY 36500 CE 25-FEB | E100: Sell | F100: 470 | G100: 680 | H100: 375 | I100: 100-50 | J100: Profit of Rs, 95/- | K100: =F100-H100 -> 95 | L100: 100 | M100: =(K100*N100)+L100 -> 2475 | N100: 25 | O100: Successful | P100: 2021-02-12 | R100: H
A101: 9 | B101: 2021-02-15 | D101: BANKNIFTY 37400 CE 25-FEB | E101: Sell | F101: 370 | G101: 522 | H101: 522 | I101: 50-10 | J101: Loss of Rs, 152/- | K101: =F101-H101 -> -152 | L101: 100 | M101: =(K101*N101)+L101 -> -3700 | N101: 25 | O101: Unsuccessful | P101: 2021-02-15 | R101: H
A102: 10 | B102: 2021-02-16 | D102: NIFTY 14800 PE 25-FEB | E102: Buy | F102: 66 | G102: 19 | H102: 79 | I102: 100-120 | J102: Profit of Rs.13/- | K102: =H102-F102 -> 13 | L102: 100 | M102: =(K102*N102)-L102 -> 875.0 | N102: 75 | O102: Successful | P102: 2021-02-16 | R102: H
A103: 11 | B103: 2021-02-17 | D103: BANKNIFTY 36800 PE 25-FEB | E103: Buy | F103: 365 | G103: 175 | H103: 470 | I103: 600-700 | J103: Profit of Rs.105/- | K103: 105 | L103: 100 | M103: =(K103*N103)-L103 -> 2525.0 | N103: 25 | O103: Successful | P103: 2021-02-17 | R103: H
A104: 12 | B104: 2021-02-18 | D104: NIFTY 15250 PE 18-FEB | E104: Buy | F104: 45.5 | H104: 65.5 | I104: 100-120 | J104: Profit of Rs.20/- | K104: 20 | L104: 100 | M104: 1400.0 | N104: 75 | O104: Successful | P104: 2021-02-18 | R104: H
A105: 13 | B105: 2021-02-19 | D105: ASIANPAINT 2440 CE 25-FEB | E105: Buy | F105: 29 | G105: 15 | H105: 34 | I105: 45-50 | J105: Profit of Rs.5/- | K105: 5 | L105: 100 | M105: =(K105*N105)-L105 -> 1400.0 | N105: 300 | O105: Successful | P105: 2021-02-22 | R105: H
A106: 14 | B106: 2021-02-22 | D106: ASIANPAINT 2440 CE 25-FEB | E106: Buy | F106: 24 | G106: 8 | H106: 7 | I106: 50 | J106: Loss of Rs, 17/- | K106: -17 | L106: 100 | M106: =(K106*N106)+L106 -> -5000 | N106: 300 | O106: Unsuccessful | P106: 2021-02-23 | R106: N
A107: 15 | B107: 2021-02-24 | D107: NIFTY 14700 PE FEB | E107: Buy | F107: 42 | H107: 53 | I107: 90 | J107: Profit of Rs.11/- | K107: 11 | L107: 100 | M107: =(K107*N107)-L107 -> 725.0 | N107: 75 | O107: Successful | P107: 2021-02-24 | R107: N
A108: 16 | B108: 2021-02-24 | D108: NIFTY 14700 PE FEB | E108: Buy | F108: 34.5 | H108: 0 | I108: 90 | J108: Loss of Rs. 34.5/- | K108: =H108-F108 -> -34.5 | L108: 100 | M108: =(K108*N108)+L108 -> -2487.5 | N108: 75 | O108: Unsuccessful | P108: 2021-02-25 | R108: N
A117: Techno -Funda (positional)
A118: Sr.no | B118: Date | D118: Company | E118: Rec | F118: Rec Price | G118: Stop Loss*** | H118: Call Closed At | I118: Target | J118: Remark | K118: Profit / Loss per Share/Lot | L118: All charges | M118: Net Gain / Loss % | N118: Status | O118: Closed Date
A119: 1 | B119: 2021-01-07 | D119: SIS | E119: Buy | F119: 424 | G119: 385 | H119: 455 | I119: 500-520 | J119: Part profit of Rs.31/- | K119: =H119-F119 -> 31 | L119: =(F119*-0.8)/100 -> -3.39 | M119: =(K119+L119)/F119 -> 6.51% | N119: Successful | O119: 2020-02-16 | R119: H
A120: 2 | B120: 2021-02-11 | D120: MCX | E120: Buy | F120: 1500-1530 | G120: 1390 | I120: 1800-1850 | J120: Open | R120: H
A122: CLBS = Closing Basis *** | F122: Reinitiated $
A123: Dividend adjusted <> | F123: Revised stoploss #
B125: Intrday Call
A126: Sr.no | B126: Date | D126: Company | E126: Rec | F126: Rec Price | G126: Stop Loss | H126: Call Closed At | I126: Target | J126: Remark | K126: Profit / Loss per Share/Lot | L126: Gain / Loss per Lot | M126: Lot | N126: All charges | O126: Net Gain / Loss % | P126: Status | Q126: Closed Date
B139: Investment Idea
A140: Sr.no | B140: Date | D140: Company | E140: Rec | F140: Rec Price | G140: Point of Review | H140: Close Rate | I140: Target | J140: Remark | K140: Profit / Loss per Share | L140: Gain / Loss % | M140: Status | N140: Closed Date
A141: 1 | B141: 2013-11-01 | D141: L&T Finance Holding | E141: Accu | F141: 82.00 | G141: - | H141: 100 | I141: 100.00 | J141: Target Achieved | K141: =H141-F141 -> 18.00 | L141: =K141/F141 -> 21.95% | M141: Successful | N141: 2016-10-14
A142: 2 | B142: 2014-06-04 | D142: Finolex Inds | E142: Buy | F142: 257.00 | G142: - | H142: 300 | I142: 300.00 | J142: Target Achieved | K142: 43.00 | L142: 16.73% | M142: Successful | N142: 2014-07-02
A143: 3 | B143: 2014-07-08 | D143: JK Cement | E143: Buy | F143: 393.00 | G143: - | H143: 468 | I143: 468.00 | J143: Target Achieved | K143: 75.00 | L143: 19.08% | M143: Successful | N143: 2014-08-12
A144: 4 | B144: 2014-08-06 | D144: Finolex Cables | E144: Buy | F144: 205.00 | G144: - | H144: 275 | I144: 250.00 | J144: Target Achieved | K144: 70.00 | L144: 34.15% | M144: Successful | N144: 2014-11-19
A145: 5 | B145: 2014-09-04 | D145: Exide Inds | E145: Buy | F145: 162.00 | G145: - | H145: 190 | I145: 190.00 | J145: Target Achieved | K145: 28.00 | L145: 17.28% | M145: Successful | N145: 2015-01-02
A146: 6 | B146: 2014-09-04 | D146: Deepak Nitrite | E146: Buy | F146: 75.00 | G146: - | H146: 91.5 | I146: 95-100 | J146: Profit of Rs.16.50/- | K146: 16.50 | L146: 22.00% | M146: Successful | N146: 2014-11-11
A147: 7 | B147: 2014-10-01 | D147: Mercks | E147: Buy | F147: 850.00 | G147: - | H147: 982.5 | I147: 1050.00 | J147: Profit of Rs.132.50/- | K147: 132.50 | L147: 15.59% | M147: Successful | N147: 2015-02-04
A148: 8 | B148: 2014-10-01 | D148: Grindwell Norton | E148: Buy | F148: 475.00 | G148: - | H148: 515 | I148: 600.00 | J148: Profit of Rs.40/- | K148: 40.00 | L148: 8.42% | M148: Successful | N148: 2014-10-27
A149: 9 | B149: 2014-10-01 | D149: Snowman Logistics | E149: Buy | F149: 86.00 | G149: - | H149: 99 | I149: 140.00 | J149: Profit of Rs.13.00/- | K149: 13.00 | L149: 15.12% | M149: Successful | N149: 2014-10-27
A150: 10 | B150: 2014-10-14 | D150: Birla Corp | E150: Buy | F150: 496.60 | G150: - | H150: 621 | I150: 580.00 | J150: Target Achieved | K150: 124.40 | L150: 25.05% | M150: Successful | N150: 2016-08-23
A151: 11 | B151: 2014-10-14 | D151: Ultratech Cem | E151: Buy | F151: 2481.90 | G151: - | H151: 2840 | I151: 2870.00 | J151: Profit of Rs.358.10/- | K151: 358.10 | L151: 14.43% | M151: Successful | N151: 2015-01-13
A152: 12 | B152: 2014-10-16 | D152: Sintex Inds | E152: Buy | F152: 84.50 | G152: - | H152: 93 | I152: 110.00 | J152: Profit of Rs.8.50/- | K152: 8.50 | L152: 10.06% | M152: Successful | N152: 2014-10-27
A153: 13 | B153: 2014-10-16 | D153: HSIL | E153: Buy | F153: 401.00 | G153: - | H153: 428 | I153: 450.00 | J153: Profit of Rs.27.00/- | K153: 27.00 | L153: 6.73% | M153: Successful | N153: 2015-01-16
A154: 14 | B154: 2014-10-16 | D154: Eveready Inds | E154: Buy | F154: 101.00 | G154: - | H154: 112 | I154: 120.00 | J154: Profit of Rs.11.00/- | K154: 11.00 | L154: 10.89% | M154: Successful | N154: 2014-10-27
A155: 15 | B155: 2014-11-11 | D155: Pennar Inds | E155: Buy | F155: 59.00 | G155: - | H155: 76 | I155: 76.00 | J155: Target Achieved | K155: 17.00 | L155: 28.81% | M155: Successful | N155: 2017-10-24
A156: 16 | B156: 2014-11-11 | D156: Snowman Logistics | E156: Buy | F156: 99.00 | G156: - | H156: 120 | I156: 120.00 | J156: Profit of Rs.21/- | K156: 21.00 | L156: 21.21% | M156: Successful | N156: 2014-11-17
A157: 17 | B157: 2014-11-13 | D157: Dharamsi Morarji Chem | E157: Buy | F157: 22.00 | G157: - | H157: 33.55 | I157: 32.00 | J157: Profit of Rs 11.55/- | K157: 11.55 | L157: 52.50% | M157: Successful | N157: 2015-07-03
A158: 18 | B158: 2014-12-03 | D158: Tatachem | E158: Buy | F158: 440.00 | G158: - | H158: 520 | I158: 520.00 | J158: Profit of Rs 80.00/- | K158: 80.00 | L158: 18.18% | M158: Successful | N158: 2015-07-23
A159: 19 | B159: 2014-12-03 | D159: Advanta | E159: Buy | F159: 360.00 | G159: - | H159: 427 | I159: 425.00 | J159: Profit of Rs.67.00/- | K159: 67.00 | L159: 18.61% | M159: Successful | N159: 2015-02-23
A160: 20 | B160: 2015-01-08 | D160: GDL | E160: Buy | F160: 360.00 | G160: - | H160: 455 | I160: 420.00 | J160: Profit of Rs.95.00/- | K160: 95.00 | L160: 26.39% | M160: Successful | N160: 2015-01-20
A161: 21 | B161: 2015-01-08 | D161: NRB Bearing | E161: Buy | F161: 130.00 | H161: 175.5 | I161: 165.00 | J161: Profit of Rs 45.50/- | K161: 45.50 | L161: 35.00% | M161: Successful | N161: 2017-12-19
A162: 22 | B162: 2015-02-05 | D162: GSFC | E162: Accu | F162: 98.00 | H162: 120 | I162: 120.00 | J162: Target Achieved | K162: 22.00 | L162: 22.45% | M162: Successful | N162: 2017-01-18
A163: 23 | B163: 2015-02-05 | D163: Sundrmfast | E163: Accu | F163: 196.00 | H163: 262 | I163: 255.00 | J163: Target Achieved | K163: 66.00 | L163: 33.67% | M163: Successful | N163: 2016-08-17
A164: 24 | B164: 2015-03-04 | D164: GPPL | E164: Accu | F164: 235 | H164: 77.00 | I164: 280-285 | J164: Loss of Rs.158/- | K164: -158.00 | L164: -67.23% | M164: Unsuccessful | N164: 2019-02-26
A165: 25 | B165: 2015-03-04 | D165: ORIENTCEM | E165: Accu | F165: 185.00 | H165: 224 | I165: 220-225 | J165: Target Achieved | K165: 39.00 | L165: 21.08% | M165: Successful | N165: 2016-10-04
A166: 26 | B166: 2015-03-27 | D166: PFS | E166: Accu | F166: 49.5 | H166: 15.85 | I166: 67.00 | J166: Loss of Rs.33.65/- | K166: -33.65 | L166: -68% | M166: Unsuccessful | N166: 2019-06-11
A167: 27 | B167: 2015-03-30 | D167: Walchandnagar Ind Ltd | E167: Accu | F167: 183.50 | H167: 219 | I167: 218.00 | J167: Profit of Rs.35.50/- | K167: 35.50 | L167: 19.35% | M167: Successful | N167: 2015-04-09
A168: 28 | B168: 2015-04-20 | D168: Kalpataru Power Transmission Ltd | E168: Accu | F168: =(227+237)/2 -> 232.00 | H168: 298 | I168: 298.00 | J168: Target Achieved | K168: 66.00 | L168: 28.45% | M168: Successful | N168: 2017-03-29
A169: 29 | B169: 2015-05-04 | D169: Mastek Ltd | E169: Buy | F169: 385.00 | H169: =212.5+331 -> 543.5 | I169: 510.00 | J169: Profit of Rs 158.50/- | K169: 158.50 | L169: 41.17% | M169: Successful | N169: 2015-08-19
A170: 30 | B170: 2015-05-04 | D170: Suprajit Eng | E170: Buy | F170: 115.50 | H170: 146 | I170: 142.00 | J170: Profit of Rs 30.50/- | K170: 30.50 | L170: 26.41% | M170: Successful | N170: 2015-07-17
A171: 31 | B171: 2015-05-27 | D171: TCI | E171: Buy | F171: 237.50 | H171: 279.5 | I171: 278.00 | J171: Target Achieved | K171: 42.00 | L171: 17.68% | M171: Successful | N171: 2015-08-06
A172: 32 | B172: 2015-06-19 | D172: HSIL | E172: Accu | F172: 340.00 | H172: 448 | I172: 448.00 | J172: Target Achieved | K172: 108.00 | L172: 31.76% | M172: Successful | N172: 2017-10-10
A173: 33 | B173: 2015-07-06 | D173: Capital First | E173: Accu | F173: 390.00 | H173: 460 | I173: 460.00 | J173: Target Achieved | K173: =H173-F173 -> 70.00 | L173: =K173/F173 -> 17.95% | M173: Successful | N173: 2016-04-18
A174: 34 | B174: 2015-07-10 | D174: Dolphin OffShore | E174: Accu | F174: 122.5 | H174: 61.00 | I174: 172.00 | J174: Loss of Rs.61.50/- | K174: -61.50 | L174: -50.20% | M174: Unsuccessful | N174: 2018-08-21
A175: 35 | B175: 2015-08-03 | D175: Allcargo logistics | E175: Accu | F175: 297.50 | H175: 350 | I175: 360.00 | J175: Profit of Rs 52.50/- | K175: 52.50 | L175: 17.65% | M175: Successful | N175: 2015-08-16
A176: 36 | B176: 2015-08-03 | D176: Camline Fine | E176: Accu | F176: 115.50 | H176: 149 | I176: 140.00 | J176: Profit of Rs 33.50/- | K176: 33.50 | L176: 29.00% | M176: Successful | N176: 2017-01-05
A177: 37 | B177: 2015-09-04 | D177: TCI | E177: Accu | F177: 226.00 | H177: 292 | I177: 292.00 | J177: Target Achieved | K177: 66.00 | L177: 29.20% | M177: Successful | N177: 2015-10-09
A178: 38 | B178: 2015-09-07 | D178: Kalpataru Power Transmission Ltd | E178: Accu | F178: 232.50 | H178: 312.5 | I178: 310.00 | J178: Target Achieved | K178: 80.00 | L178: 34.41% | M178: Successful | N178: 2017-03-29
A179: 39 | B179: 2015-09-21 | D179: LLOYD ELECTRIC & ENG LTD | E179: Accu | F179: 196.50 | H179: 238 | I179: 238.00 | J179: Target Achieved | K179: 41.50 | L179: 21.12% | M179: Successful | N179: 2015-10-14
A180: 40 | B180: 2015-09-24 | D180: L&T Finance Holding | E180: Accu | F180: 65.00 | H180: 82 | I180: 82.00 | J180: Target Achieved | K180: 17.00 | L180: 26.15% | M180: Successful | N180: 2016-07-27
A181: 41 | B181: 2015-10-14 | D181: KEC International ltd | E181: Accu | F181: 144.00 | H181: 182.5 | I181: 181.00 | J181: Target Achieved | K181: 38.50 | L181: 26.74% | M181: Successful | N181: 2017-03-23
A182: 42 | B182: 2015-10-14 | D182: Gruh Finance | E182: Accu | F182: 264.00 | H182: 311 | I182: 311.00 | J182: Target Achieved | K182: 47.00 | L182: 17.80% | M182: Successful | N182: 2016-08-22
A183: 43 | B183: 2015-11-10 | D183: Pidilitind | E183: Buy | F183: 549.50 | H183: 630 | I183: 630.00 | J183: Target Achieved | K183: 80.50 | L183: 14.65% | M183: Successful | N183: 2016-02-19
A184: 44 | B184: 2015-12-04 | D184: Zensar Technology | E184: Accu | F184: 1027.50 | H184: 1315 | I184: 1250.00 | J184: Target Achieved | K184: 287.50 | L184: 27.98% | M184: Successful | N184: 2018-05-24
A185: 45 | B185: 2015-12-29 | D185: Vinati Organics Ltd | E185: Accu | F185: 465.00 | H185: 540 | I185: 540.00 | J185: Target Achieved | K185: 75.00 | L185: 16.13% | M185: Successful | N185: 2016-06-09
A186: 46 | B186: 2016-01-11 | D186: GSFC | E186: Buy | F186: 81.00 | H186: 110 | I186: 110.00 | J186: Target Achieved | K186: 29.00 | L186: 35.80% | M186: Successful | N186: 2017-01-10
A187: 47 | B187: 2016-01-13 | D187: SSWL | E187: Buy | F187: 417.50 | H187: 547 | I187: 535.00 | J187: Target Achieved | K187: 129.50 | L187: 31.02% | M187: Successful | N187: 2016-07-27
A188: 48 | B188: 2016-02-08 | D188: Persistent System Ltd | E188: Accu | F188: 650.00 | H188: 800 | I188: 800.00 | J188: Target Achieved | K188: 150.00 | L188: 23.08% | M188: Successful | N188: 2018-02-23
A189: 49 | B189: 2016-03-04 | D189: UPL | E189: Accu | F189: 437.50 | H189: 504.5 | I189: 522.00 | J189: Profit of Rs.67/- | K189: 67.00 | L189: 15.31% | M189: Successful | N189: 2016-04-20
A190: 50 | B190: 2016-03-09 | D190: Ashoka Buildcon Ltd | E190: Accu | F190: 189.50 | H190: 218 | I190: 218.00 | J190: Target Achieved | K190: 28.50 | L190: 15.04% | M190: Successful | N190: 2017-10-26
A191: 51 | B191: 2016-04-11 | D191: PTC INDIA FIN SERV LTD | E191: Accu | F191: 36.5 | H191: 15.85 | I191: 60.00 | J191: Loss of Rs.20.65/- | K191: -20.65 | L191: -56.58% | M191: Unsuccessful | N191: 2019-06-11
A192: 52 | B192: 2016-04-12 | D192: CAMLINFINE $ | E192: Accu | F192: 93.00 | H192: 149 | I192: 140.00 | J192: Profit of Rs 56/- | K192: 56.00 | L192: 60.22% | M192: Successful | N192: 2017-01-05
A193: 53 | B193: 2016-04-12 | D193: Greaves Cotton Ltd. | E193: Accu | F193: 130.00 | H193: 150 | I193: 150-155 | J193: Target Achieved | K193: 20.00 | L193: 15.38% | M193: Successful | N193: 2016-07-13
A194: 54 | B194: 2016-04-13 | D194: DHFL | E194: Accu | F194: 196.00 | H194: 299 | I194: 299.00 | J194: Target Achieved | K194: 103.00 | L194: 52.55% | M194: Successful | N194: 2016-09-07
A195: 55 | B195: 2016-04-13 | D195: Magma | E195: Accu | F195: 88.00 | H195: 103 | I195: 103.00 | J195: Target Achieved | K195: 15.00 | L195: 17.05% | M195: Successful | N195: 2016-06-09
A196: 56 | B196: 2016-05-02 | D196: KEC International ltd $ | E196: Accu | F196: 127.50 | H196: 148 | I196: 148-150 | J196: Target Achieved | K196: =H196-F196 -> 20.50 | L196: =K196/F196 -> 16.08% | M196: Successful | N196: 2016-07-13
A197: 57 | B197: 2016-05-03 | D197: Mindtree | E197: Accu | F197: 675.00 | H197: 815 | I197: 790-800 | J197: Target Achieved | K197: =H197-F197 -> 140.00 | L197: =K197/F197 -> 20.74% | M197: Successful | N197: 2018-02-23
A198: 58 | B198: 2016-06-01 | D198: Atulauto | E198: Accu | F198: 500 | H198: 232.50 | I198: 565-570 | J198: Loss of Rs.267.50 /- | K198: =H198-F198 -> -267.50 | L198: =K198/F198 -> -53.50% | M198: Unsuccessful | N198: 2019-09-27
A199: 59 | B199: 2016-06-06 | D199: TRITURBINE | E199: Accu | F199: 110.00 | H199: 126.5 | I199: 125.00 | J199: Profit of Rs.16.50/- | K199: =H199-F199 -> 16.50 | L199: =K199/F199 -> 15.00% | M199: Successful | N199: 2016-07-01
A200: 60 | B200: 2016-06-17 | D200: Pennar Industries Ltd | E200: Accu | F200: 44.00 | H200: 69.5 | I200: 69.50 | J200: Profit of Rs.25.50/- | K200: =H200-F200 -> 25.50 | L200: =K200/F200 -> 57.95% | M200: Successful | N200: 2017-08-30
A201: 61 | B201: 2016-06-28 | D201: EVEREADY | E201: Accu | F201: 262.50 | H201: 340 | I201: 333.00 | J201: Profit of Rs.77.50/- | K201: 77.50 | L201: 29.52% | M201: Successful | N201: 2017-10-09
A202: 62 | B202: 2016-06-28 | D202: FIEMIND | E202: Accu | F202: 840.00 | H202: 1230 | I202: 1230.00 | J202: Target Achieved | K202: 390.00 | L202: 46.43% | M202: Successful | N202: 2016-10-06
A203: 63 | B203: 2016-07-05 | D203: Bajaj Corp Ltd | E203: Accu | F203: 395 | H203: =(468.5+342.5)/2 -> 405.50 | I203: 510.00 | J203: Profit of Rs.10.50/- | K203: =H203-F203 -> 10.50 | L203: =K203/F203 -> 3% | M203: Neutral | N203: 2019-05-21
A204: 64 | B204: 2016-08-02 | D204: GPPL $ | E204: Buy | F204: =169.5-12.8 -> 156.7 | H204: 77.00 | I204: 198-200 | J204: Loss of Rs.79.7/- | K204: -79.70 | L204: -50.86% | M204: Unsuccessful | N204: 2019-02-26
A205: 65 | B205: 2016-08-04 | D205: WONDERLA HOLIDAYS LTD | E205: Accu | F205: 400 | H205: 305.00 | I205: 475.00 | J205: Loss of Rs.95/- | K205: -95.00 | L205: -23.75% | M205: Unsuccessful | N205: 2019-05-21
A206: 66 | B206: 2016-08-11 | D206: CAMLINFINE | E206: Accu | F206: 86.50 | H206: 130 | I206: 130.00 | J206: Profit of Rs.43.50/- | K206: 43.50 | L206: 50.29% | M206: Successful | N206: 2017-12-22
A207: 67 | B207: 2016-08-18 | D207: GRANULES | E207: Accu | F207: 133.5 | H207: 126.50 | I207: 178.00 | J207: Exit | K207: -7.00 | L207: -5.24% | M207: Unsuccessful | N207: 2016-09-02
A208: 68 | B208: 2016-08-31 | D208: VA TECH WABAG | E208: Accu | F208: 560.00 | H208: 725 | I208: 725.00 | J208: Target Achieved | K208: 165.00 | L208: 29.46% | M208: Successful | N208: 2016-03-27
A209: 69 | B209: 2016-09-01 | D209: SKIPPER LIMITED | E209: Accu | F209: 160.50 | H209: 210 | I209: 210.00 | J209: Target Achieved | K209: 49.50 | L209: 30.84% | M209: Successful | N209: 2017-05-16
A210: 70 | B210: 2016-10-03 | D210: IFBIND | E210: Accu | F210: 430.00 | H210: 596 | I210: 575.00 | J210: Profit of Rs.166/- | K210: 166.00 | L210: 38.60% | M210: Successful | N210: 2017-02-03
A211: 71 | B211: 2016-10-14 | D211: ASIANTILES | E211: Accu | F211: 280.00 | H211: 345 | I211: 345.00 | J211: Target Achieved | K211: =H211-F211 -> 65.00 | L211: =K211/F211 -> 23.21% | M211: Successful | N211: 2017-03-20
A212: 72 | B212: 2016-10-14 | D212: DEEPIND | E212: Accu | F212: 245.00 | H212: 325.5 | I212: 330.00 | J212: Profit of Rs.80.5/- | K212: 80.50 | L212: =K212/F212 -> 32.86% | M212: Successful | N212: 2017-02-03
A213: 73 | B213: 2016-10-17 | D213: DCBBANK | E213: Accu | F213: 125.00 | H213: 160 | I213: 160.00 | J213: Target Achieved | K213: 35.00 | L213: 28.00% | M213: Successful | N213: 2017-03-09
A214: 74 | B214: 2016-10-17 | D214: ORIENTREF | E214: Accu | F214: 114.00 | H214: 145 | I214: 145.00 | J214: Target Achieved | K214: 31.00 | L214: =K214/F214 -> 27.19% | M214: Successful | N214: 2017-05-04
A215: 75 | B215: 2016-10-17 | D215: GANECOS | E215: Accu | F215: 212.00 | H215: 280 | I215: 276.00 | J215: Profit of Rs.68/- | K215: 68.00 | L215: =K215/F215 -> 32.08% | M215: Successful | N215: 2017-05-03
A216: 76 | B216: 2016-11-04 | D216: NBCC | E216: Accu | F216: 155.00 | H216: 210 | I216: 210.00 | J216: Profit of Rs.55/- | K216: 55.00 | L216: =K216/F216 -> 35.48% | M216: Successful | N216: 2017-07-28
A217: 77 | B217: 2016-12-06 | D217: PRECAM | E217: Accu | F217: 150.5 | H217: 72.50 | I217: 174.00 | J217: Loss of Rs.78/- | K217: -78.00 | L217: -51.83% | M217: Unsuccessful | N217: 2018-08-21
A218: 78 | B218: 2016-12-08 | D218: INFRATEL | E218: Accu | F218: 380.00 | H218: 478 | I218: 468.00 | J218: Target Achieved | K218: =H218-F218 -> 98.00 | L218: =K218/F218 -> 25.79% | M218: Successful | N218: 2017-10-17
A219: 79 | B219: 2016-12-30 | D219: GODREJPROP | E219: Accu | F219: 305.00 | H219: 375 | I219: 375.00 | J219: Target Achieved | K219: =H219-F219 -> 70.00 | L219: =K219/F219 -> 22.95% | M219: Successful | N219: 2017-02-02
A220: 80 | B220: 2017-01-04 | D220: DEEPAKNTR | E220: Accu | F220: 99.50 | H220: 158 | I220: 158.00 | J220: Target Achieved | K220: =H220-F220 -> 58.50 | L220: =K220/F220 -> 58.79% | M220: Successful | N220: 2017-06-12
A221: 81 | B221: 2017-01-04 | D221: DEEPAKNTR | E221: Accu | F221: 99.50 | H221: 158 | I221: 158.00 | J221: Target Achieved | K221: 58.50 | L221: 58.79% | M221: Successful | N221: 2017-06-12
A222: 82 | B222: 2017-02-20 | D222: RECLTD | E222: Accu | F222: 140.50 | H222: 220 | I222: 220.00 | J222: Target Achieved | K222: =H222-F222 -> 79.50 | L222: =K222/F222 -> 56.58% | M222: Successful | N222: 2017-05-09
A223: 83 | B223: 2017-02-20 | D223: SUBROS | E223: Accu | F223: 202.50 | H223: 234 | I223: 234.00 | J223: Target Achieved | K223: 31.50 | L223: 15.56% | M223: Successful | N223: 2017-04-11
A224: 84 | B224: 2017-03-24 | D224: VRLLOG | E224: Accu | F224: 300.50 | H224: 417.5 | I224: 420.00 | J224: Profit of Rs.117/- | K224: =H224-F224 -> 117.00 | L224: =K224/F224 -> 38.94% | M224: Successful | N224: 2017-12-01
A225: 85 | B225: 2017-03-24 | D225: FIEMIND | E225: Accu | F225: 850.00 | H225: 1042.5 | I225: 1023.00 | J225: Profit of Rs 192.50/- | K225: 192.50 | L225: 22.65% | M225: Successful | N225: 2017-04-05
A226: 86 | B226: 2017-04-05 | D226: RATNAMANI | E226: Accu | F226: 785.00 | H226: 930 | I226: 920.00 | J226: Profit of Rs.145/- | K226: =H226-F226 -> 145.00 | L226: =K226/F226 -> 18.47% | M226: Successful | N226: 2017-08-29
A227: 87 | B227: 2017-04-06 | D227: ZEEMEDIA | E227: Accu | F227: 40 | H227: 13.10 | I227: 60.00 | J227: Loss of Rs.26.9/- | K227: -26.90 | L227: -67.25% | M227: Unsuccessful | N227: 2018-02-07
A228: 88 | B228: 2017-04-12 | D228: DABUR | E228: Accu | F228: 289.50 | H228: 354 | I228: 360.00 | J228: Profit of Rs.64.5/- | K228: =H228-F228 -> 64.50 | L228: =K228/F228 -> 22.28% | M228: Successful | N228: 2017-11-01
A229: 89 | B229: 2017-04-20 | D229: KPRMILL | E229: Accu | F229: 700.00 | H229: 840 | I229: 840.00 | J229: Profit of Rs.140/- | K229: 140.00 | L229: 20.00% | M229: Successful | N229: 2017-06-07
A230: 90 | B230: 2017-06-01 | D230: ESSELPACK | E230: Accu | F230: 130.00 | H230: 144.25 | I230: 170.00 | J230: Profit of Rs.14.25/- | K230: 14.25 | L230: 10.96% | M230: Successful | N230: 2019-07-29
A231: 91 | B231: 2017-06-15 | D231: KEI | E231: Accu | F231: 214.50 | H231: 262 | I231: 262.00 | J231: Profit of Rs.47.5/- | K231: 47.50 | L231: 22.14% | M231: Successful | N231: 2017-08-30
A232: 92 | B232: 2017-07-17 | D232: MAYURUNIQ | E232: Accu | F232: 370.00 | H232: 447.5 | I232: 450.00 | J232: Target Achieved | K232: 77.50 | L232: 20.95% | M232: Successful | N232: 2017-10-27
A233: 93 | B233: 2017-07-27 | D233: RAMCOCEM | E233: Accu | F233: 657.50 | H233: 825 | I233: 820.00 | J233: Target Achieved | K233: 167.50 | L233: 25.48% | M233: Successful | N233: 2017-12-21
A234: 94 | B234: 2017-08-17 | D234: FINPIPE | E234: Accu | F234: 605.00 | H234: 750 | I234: 750.00 | J234: Profit of Rs.145/- | K234: 145.00 | L234: 23.97% | M234: Successful | N234: 2017-10-19
A235: 95 | B235: 2017-09-01 | D235: SHK | E235: Accu | F235: 255 | H235: 217.25 | I235: 320.00 | J235: Loss of Rs.37.75/- | K235: -37.75 | L235: -15% | M235: Unsuccessful | N235: 2019-07-15
A236: 96 | B236: 2017-09-19 | D236: SKIPPER | E236: Accu | F236: 215.00 | H236: 258 | I236: 258.00 | J236: Target Achieved | K236: 43.00 | L236: 20.00% | M236: Successful | N236: 2017-11-01
A237: 97 | B237: 2017-09-19 | D237: SKIPPER | E237: Accu | F237: 215.00 | H237: 258 | I237: 258.00 | J237: Target Achieved | K237: 43.00 | L237: 20.00% | M237: Successful | N237: 2017-11-01
A238: 98 | B238: 2017-09-20 | D238: CAMLINFINE$ | E238: Accu | F238: 75.00 | H238: 90 | I238: 90.00 | J238: Profit of Rs.15.00/- | K238: =H238-F238 -> 15.00 | L238: =K238/F238 -> 20.00% | M238: Successful | N238: 2017-10-11
A239: 99 | B239: 2017-10-03 | D239: GNA | E239: Accu | F239: 315.00 | H239: 392 | I239: 384.00 | J239: Profit of Rs.77/- | K239: 77.00 | L239: 24.44% | M239: Successful | N239: 2017-10-09
A240: 100 | B240: 2017-10-05 | D240: NOCIL | E240: Accu | F240: 145.00 | H240: 179 | I240: 180.00 | J240: Profit of Rs.34/- | K240: 34.00 | L240: 23.45% | M240: Successful | N240: 2017-10-17
... 62 more rows
